{"text_format":"1","workbook":"xlsx","n_sheets":15,"sheets":["Front Page","Disclaimer","Methodology","Significance Description","Summary","Option A","Option B","Option C","Option D","Option E","Site_2","Site_3","Site_4","Site_1","Sheet1"],"not_rendered":{"charts":0,"images":2,"macros":1,"external_links":0,"defined_names":15,"comments":2,"pivot_tables":0},"unopened":[],"bounds":{"document_bytes":16777216,"sheet_cells":100000,"rows_first":2000,"rows_last":500,"rows_between":2000,"halvings":0,"cell_chars":16384,"cell_head_chars":4096},"cells_cut":0,"cells_raw":0,"read":"whole","date_system":"1900"}

{"sheet":"Front Page","index":0,"n_rows":30,"n_cols":11,"rows_kept":30,"cut":false,"hidden":false,"merged":[[7,2,8,10]]}
[]
[]
[]
[]
[]
[]
[]
[]
[]
[]
[]
[]
[null,null,null,null,null,null,"South Derbyshire District Council    "]
[null,null,null,null,null,null,"Regulation 19 Proposed Modifications Local Plan: Appendix F"]
[null,null,null,null,null,null,"Spatial Distribution Options Assessment"]
[]
[]
[]
[]
[]
[]
[]
[null,null,null,null,null,null,null,null,null,null,"Prepared by:"]
[null,null,null,null,null,null,null,null,null,null,"SLR Consulting Ltd "]
[]
[]
[]
[]
[]
[null,null,null,null,null,null,null,null,null,null,"Project Ref: C0428"]

{"sheet":"Disclaimer","index":1,"n_rows":41,"n_cols":7,"rows_kept":41,"cut":false,"hidden":false,"merged":[[39,1,39,2],[39,6,39,7],[40,1,40,2],[40,6,40,7],[41,1,41,2],[41,6,41,7],[8,4,8,6],[21,2,34,6],[37,1,37,2],[37,6,37,7],[38,1,38,2],[38,6,38,7]]}
[]
[]
[]
[]
[null,null,null,"Contract  No:","C0428"]
[]
[null,null,null,"Issue",3]
[]
[null,null,null,"Authors        ","C Town"]
[]
[]
[]
[]
[null,null,null,"Project Director                     ","V Pearson"]
[]
[]
[]
[]
[null,null,null,"Date:","2026-05-05"]
[]
[]
[null,null,"This document has been prepared by SLR Consulting Ltd with reasonable skill, care and diligence, and taking account of the timescales and resources devoted to it by agreement with South Derbyshire District Council (the Client) as part or all of the services it has been appointed by the Client to carry out. It is subject to the terms and conditions of that appointment.\nSLR shall not be liable for the use of or reliance on any information, advice, recommendations and opinions in this document for any purpose by any person other than the Client. Reliance may be granted to a third party only in the event that SLR and the third party have executed a reliance agreement or collateral warranty.\nInformation reported herein may be based on the interpretation of public domain data collected by SLR, and/or information supplied by the Client and/or its other advisors and associates. These data have been accepted in good faith as being accurate and valid.  \nThe copyright and intellectual property in all drawings, reports, specifications, bills of quantities, calculations and other information set out in this report remain vested in SLR unless the terms of appointment state otherwise.  \nThis document may contain information of a specialised and/or highly technical nature and the Client is advised to seek clarification on any elements which may be unclear to it. \nInformation, advice, recommendations and opinions in this document should only be relied upon in the context of the whole document and any documents referenced explicitly herein and should then only be used within the context of the appointment."]
[]
[]
[]
[]
[]
[]
[]
[]
[]
[]
[]
[]
[]
[]
[null,"VERSION CONTROL RECORD"]
[null,"Issue",null,"Description of Status","Date","Reviewer Initials","Authors Initials"]
[null,1,null,"Reg 19 MM Consultation version","2026-04-07","VP","CT"]
[null,2,null,"Final for Reg 19 MM Consultation","2026-05-01","VP","CT"]
[null,3,null,"Final Version for Reg 19 MM Consultation","2026-05-05","VP","CT"]

{"sheet":"Methodology","index":2,"n_rows":19,"n_cols":11,"rows_kept":19,"cut":false,"hidden":false,"merged":[[2,1,2,3],[3,1,3,3],[7,0,7,1],[7,2,7,10],[16,0,16,10],[9,3,9,7],[17,0,17,10],[18,0,18,10],[11,0,11,10],[12,0,12,10],[13,0,13,10],[14,0,14,10],[15,0,15,10]]}
["The methodology used for the assessment of all options is outlined below, with an explanation given under each header. The same assessment matrices has been used for the assessment of all sites, hence all follow the same format. "]
[]
["Spatial Option"]
["Option Summary"]
["Option Description"]
["Assumptions Made"]
[]
["SA Framework",null,"SA Policy Assessment"]
["SA objective","SA sub-objective","Spatially Assessible?","Direct/\nIndirect","Magnitude","Duration","Spatial Extent","Permanence/ Reversibility","Significance","Description of potential effects","Potential for cumulative effects? "]
["SA objectives will be listed here","SA sub-objectives will be listed here.","This indicates whether the option could be spatially assessed. If not able to be spatially assessed, this SA objective has been screened out of the assessment.","Details on the nature of any potential effects will be listed here. For further details and definitions of each category, please see the 'Significance Scores' tab. \nFor cases where a neutral effect has been identified, N/A will be present across columns  G-K. ",null,null,null,null,"A significance score will be selected here, which corresponds with the definitions detailed in the 'Significance Scores' tab. ","The potential effect identified in columns H-L will be detailed here, with justification for the significance score. \nAny information considered as a part of the assessments which has informed these potential effects will also be detailed here. ","Yes or No will indicate whether this option has potential to result in cumulative effects."]
[]
["Significant Negative and Uncertain Effects"]
["All potential significant negative and uncertain effects outlined in the assessment above, will be accumulated into this box. "]
["Significant Positive Effects"]
["Any potential significant positive effects identified within the assessment will be detailed here. "]
["Potential Cumulative Effects Identified"]
["Details of any potential cumulative effects, including which SA objectives could be affected, will be outlined here. This could include specific cumulative effects with another site, or those which could arise as a result of all development across the district. "]
["Mitigation and enhancements"]
["Details of all  mitigation listed in column O and any potential enhancements arising from assessment will be summarised against the relevant assessment here. All potential significant negative and uncertain effects will have mitigation listed. "]

{"sheet":"Significance Description","index":3,"n_rows":28,"n_cols":10,"rows_kept":28,"cut":false,"hidden":false,"merged":[[2,1,2,2],[2,7,2,9],[4,7,11,7],[4,8,11,8],[4,9,11,9],[7,1,10,1],[11,1,14,1],[12,7,18,7],[12,8,18,8],[12,9,18,9],[15,1,18,1],[21,7,26,7],[21,8,26,8],[21,9,26,9],[27,7,36,7],[27,8,36,8],[27,9,36,9]]}
[]
[]
[null,"Nature of effects",null,null,null,null,null,"Significance Scores"]
[null,"Criterion","Description",null,null,null,null,"Symbol","Definitions of Significance of Effects Against the SA Objectives","Assumptions on the nature of effects"]
[null,"Significance ","An assessment of the significance of the potential effects identified. This could be a positive effect, negative effect, neutral effect, significant positive effect or significant negative effect. The definitions for these effects are detailed to the right.",null,null,null,null,"++","Significant Positive Effect: the policy option supports the achievement of this objective; it addresses all relevant assessment questions and could result in a potentially significant beneficial effect e.g. improved access by walking and cycling modes to a local or town centre","Permanent\nContinual\nMagnitude: High 80%+ receptor or environmental capacity affected; or Medium 40-80% of receptor or environmental capacity of affected\nThe effect could be to:\n•\tenhance and redefine the location in a positive manner, making a contribution at a national or international scale; \n•\trepair or restore receptors badly damaged or degraded through previous uses; and/or \n•\timprove one or more key elements/features/ characteristics of a receptor with recognised quality such as a specific regional or national designation."]
[null,"Permanent/temporary","An assessment of whether the predicted effects would be permanent (P), or temporary (T). "]
[null,"Reversible/Irreversible","An assessment of whether or not the identified effect can be reversed (R) e.g. the loss of greenfield land to development would be irreversible (I). "]
[null,"Spatial extent","How far the effect is predicted to be spread geographically: "]
[null,null,"Low (L) = A specific area within South Derbyshire"]
[null,null,"Medium (M) = Across the entire South Derbyshire, possibly reaching to neighbouring boroughs"]
[null,null,"High (H) = Beyond the South Derbyshire with national or international ramifications"]
[null,"Magnitude","An assessment of the proportion of the receptor affected by the identified effect. "]
[null,null,"Low (L) =20-40% of receptor or capacity affected ",null,null,null,null,"+","Minor Positive Effect: the policy option supports the achievement of this objective; it addresses some relevant assessment questions, although it may have only a minor beneficial effect","Reversible\nInfrequent or intermittent\nMagnitude: Low 20-40% of receptor or capacity affected.\nThe size, nature and location of a proposed scheme would: \n•\timprove undesignated yet recognised receptor qualities at the neighbourhood scale; \n•\tfit into or with the existing location and existing receptor qualities; and/or\n•\tenable the restoration of valued characteristic features partially lost through other land uses.  "]
[null,null,"Medium (M) = 40-80% of receptor affected"]
[null,null,"High (H) =80+% of the receptor affected"]
[null,"Duration ","An assessment of the time period the predicted effects are likely to last. This could be:"]
[null,null,"Short (S)= 0-5 years"]
[null,null,"Medium (M) = 5-10 years"]
[null,null,"Long (L)= 10 years or more, up to the end of the Local Plan period "]
[null,"Direct/Indirect","An assessment of whether the predicted effect will be directly (D) as a result of option implementation, or indirectly (I) caused by the policy option. ",null,null,null,null,0,"Neutral Effect: the policy option has no impact or effect and is neutral insofar as the benefits and drawbacks appear equal and neither is considered significant","N/A"]
[null,"Likelihood","An assessment of how likely it is that the implementation of the policy option will lead to the precited effect. This could be low (L), moderate (M) or high (H). ",null,null,null,null,"?","Uncertain Effect: Uncertain or insufficient information on which to determine the assessment this stage","N/A"]
[null,"Cumulative effect","An assessment of whether or not there is potential for a cumulative effect to occur on the IIA objective as a result of the policy option working in combination with other circumstances, policies or factors. Y= potential cumulative effect. No potential cumulative effect identified. ",null,null,null,null,"-","Minor Negative Effect: the policy option appears to conflict with the achievement of this objective; it does not address relevant assessment questions and may result in minor adverse effects","Reversible\nInfrequent or intermittent\nMagnitude: Low 20-40% of receptor or capacity affected.\nThe size, nature and location of a proposed scheme would: \n•\tbe out of scale with the location; or \n•\tleave an adverse impact on a receptor of recognised quality such as a specific district or county designation."]
[]
[]
[]
[]
[]
[null,null,null,null,null,null,null,"- -","Significant Negative Effect: the policy option works against the achievement of this objective; it could exacerbate a negative situation and may result in a potentially significant adverse effect e.g. loss of all or part of a designated ecological site of national importance.","Permanent \nIrreversible\nContinual\nMagnitude: High 80%+ receptor or environmental capacity affected; or Medium 40-80% of receptor or environmental capacity of affected\nThe effect could be to:\n•\tpermanently degrade, diminish or destroy the integrity of the receptor; \n•\tcause a very high quality receptor to be permanently changed and its quality diminished; \n•\tcannot be fully mitigated and may cumulatively amount to a severe adverse effect;  \n•\tbe at a considerable variance to the location, degrading the integrity of the receptor; and/or \n•\twill be substantially damaging to a high quality receptor such as a specific regional or national designation."]

{"sheet":"Summary","index":4,"n_rows":8,"n_cols":22,"rows_kept":8,"cut":false,"hidden":false,"merged":[]}
[]
[null,null,null,null,null,null,null,null,null,null,null,null,null,null,null,null,null,null,null,null,"Significant Positive","+ +"]
[null,"Site Name","S01","S02","S03","S04","S05","S06","S07","S08","S09","S010","S011","S012","S013","S014","S015","S016",null,null,"Minor Positive","+"]
[null,"Option A",{"$f":"IFERROR(VLOOKUP('Option A'!$I$8, Summary!$U:$V, 2, FALSE), \"\")","v":"-"},{"$f":"IFERROR(VLOOKUP('Option A'!$I$9, Summary!$U:$V, 2, FALSE), \"\")","v":"+ +"},{"$f":"IFERROR(VLOOKUP('Option A'!$I$10, Summary!$U:$V, 2, FALSE), \"\")","v":"+"},{"$f":"IFERROR(VLOOKUP('Option A'!$I$11, Summary!$U:$V, 2, FALSE), \"\")","v":"+"},{"$f":"IFERROR(VLOOKUP('Option A'!$I$12, Summary!$U:$V, 2, FALSE), \"\")","v":"+"},{"$f":"IFERROR(VLOOKUP('Option A'!$I$13, Summary!$U:$V, 2, FALSE), \"\")","v":"+"},{"$f":"IFERROR(VLOOKUP('Option A'!$I$14, Summary!$U:$V, 2, FALSE), \"\")","v":"+ +"},{"$f":"IFERROR(VLOOKUP('Option A'!$I$15, Summary!$U:$V, 2, FALSE), \"\")","v":"+ +"},{"$f":"IFERROR(VLOOKUP('Option A'!$I$16, Summary!$U:$V, 2, FALSE), \"\")","v":"+"},{"$f":"IFERROR(VLOOKUP('Option A'!$I$17, Summary!$U:$V, 2, FALSE), \"\")","v":"-"},{"$f":"IFERROR(VLOOKUP('Option A'!$I$18, Summary!$U:$V, 2, FALSE), \"\")","v":"- -"},{"$f":"IFERROR(VLOOKUP('Option A'!$I$19, Summary!$U:$V, 2, FALSE), \"\")","v":"-"},{"$f":"IFERROR(VLOOKUP('Option A'!$I$20, Summary!$U:$V, 2, FALSE), \"\")","v":"+"},{"$f":"IFERROR(VLOOKUP('Option A'!$I$21, Summary!$U:$V, 2, FALSE), \"\")","v":"- -"},{"$f":"IFERROR(VLOOKUP('Option A'!$I$22, Summary!$U:$V, 2, FALSE), \"\")","v":"+"},{"$f":"IFERROR(VLOOKUP('Option A'!$I$23, Summary!$U:$V, 2, FALSE), \"\")","v":"- -"},null,null,"Neutral",0]
[null,"Option B",{"$f":"IFERROR(VLOOKUP('Option B'!$I$8, Summary!$U:$V, 2, FALSE), \"\")","v":"?"},{"$f":"IFERROR(VLOOKUP('Option B'!$I$9, Summary!$U:$V, 2, FALSE), \"\")","v":"+"},{"$f":"IFERROR(VLOOKUP('Option B'!$I$10, Summary!$U:$V, 2, FALSE), \"\")","v":"-"},{"$f":"IFERROR(VLOOKUP('Option B'!$I$11, Summary!$U:$V, 2, FALSE), \"\")","v":"?"},{"$f":"IFERROR(VLOOKUP('Option B'!$I$12, Summary!$U:$V, 2, FALSE), \"\")","v":"+"},{"$f":"IFERROR(VLOOKUP('Option B'!$I$13, Summary!$U:$V, 2, FALSE), \"\")","v":"+"},{"$f":"IFERROR(VLOOKUP('Option B'!$I$14, Summary!$U:$V, 2, FALSE), \"\")","v":0},{"$f":"IFERROR(VLOOKUP('Option B'!$I$15, Summary!$U:$V, 2, FALSE), \"\")","v":"-"},{"$f":"IFERROR(VLOOKUP('Option B'!$I$16, Summary!$U:$V, 2, FALSE), \"\")","v":"-"},{"$f":"IFERROR(VLOOKUP('Option B'!$I$17, Summary!$U:$V, 2, FALSE), \"\")","v":"+"},{"$f":"IFERROR(VLOOKUP('Option B'!$I$18, Summary!$U:$V, 2, FALSE), \"\")","v":"- -"},{"$f":"IFERROR(VLOOKUP('Option B'!$I$19, Summary!$U:$V, 2, FALSE), \"\")","v":"-"},{"$f":"IFERROR(VLOOKUP('Option B'!$I$20, Summary!$U:$V, 2, FALSE), \"\")","v":"-"},{"$f":"IFERROR(VLOOKUP('Option B'!$I$21, Summary!$U:$V, 2, FALSE), \"\")","v":"?"},{"$f":"IFERROR(VLOOKUP('Option B'!$I$22, Summary!$U:$V, 2, FALSE), \"\")","v":"?"},{"$f":"IFERROR(VLOOKUP('Option B'!$I$23, Summary!$U:$V, 2, FALSE), \"\")","v":"?"},null,null,"Minor Negative","-"]
[null,"Option C",{"$f":"IFERROR(VLOOKUP('Option C'!$I$8, Summary!$U:$V, 2, FALSE), \"\")","v":"?"},{"$f":"IFERROR(VLOOKUP('Option C'!$I$9, Summary!$U:$V, 2, FALSE), \"\")","v":"+"},{"$f":"IFERROR(VLOOKUP('Option C'!$I$10, Summary!$U:$V, 2, FALSE), \"\")","v":"-"},{"$f":"IFERROR(VLOOKUP('Option C'!$I$11, Summary!$U:$V, 2, FALSE), \"\")","v":"?"},{"$f":"IFERROR(VLOOKUP('Option C'!$I$12, Summary!$U:$V, 2, FALSE), \"\")","v":"+"},{"$f":"IFERROR(VLOOKUP('Option C'!$I$13, Summary!$U:$V, 2, FALSE), \"\")","v":"+"},{"$f":"IFERROR(VLOOKUP('Option C'!$I$14, Summary!$U:$V, 2, FALSE), \"\")","v":0},{"$f":"IFERROR(VLOOKUP('Option C'!$I$15, Summary!$U:$V, 2, FALSE), \"\")","v":"-"},{"$f":"IFERROR(VLOOKUP('Option C'!$I$16, Summary!$U:$V, 2, FALSE), \"\")","v":0},{"$f":"IFERROR(VLOOKUP('Option C'!$I$17, Summary!$U:$V, 2, FALSE), \"\")","v":"+"},{"$f":"IFERROR(VLOOKUP('Option C'!$I$18, Summary!$U:$V, 2, FALSE), \"\")","v":"- -"},{"$f":"IFERROR(VLOOKUP('Option C'!$I$19, Summary!$U:$V, 2, FALSE), \"\")","v":"-"},{"$f":"IFERROR(VLOOKUP('Option C'!$I$20, Summary!$U:$V, 2, FALSE), \"\")","v":"-"},{"$f":"IFERROR(VLOOKUP('Option C'!$I$21, Summary!$U:$V, 2, FALSE), \"\")","v":"?"},{"$f":"IFERROR(VLOOKUP('Option C'!$I$22, Summary!$U:$V, 2, FALSE), \"\")","v":"?"},{"$f":"IFERROR(VLOOKUP('Option C'!$I$23, Summary!$U:$V, 2, FALSE), \"\")","v":"?"},null,null,"Significant Negative","- -"]
[null,"Option D",{"$f":"IFERROR(VLOOKUP('Option D'!$I$8, Summary!$U:$V, 2, FALSE), \"\")","v":"?"},{"$f":"IFERROR(VLOOKUP('Option D'!$I$9, Summary!$U:$V, 2, FALSE), \"\")","v":"+"},{"$f":"IFERROR(VLOOKUP('Option D'!$I$10, Summary!$U:$V, 2, FALSE), \"\")","v":"-"},{"$f":"IFERROR(VLOOKUP('Option D'!$I$11, Summary!$U:$V, 2, FALSE), \"\")","v":"?"},{"$f":"IFERROR(VLOOKUP('Option D'!$I$12, Summary!$U:$V, 2, FALSE), \"\")","v":"?"},{"$f":"IFERROR(VLOOKUP('Option D'!$I$13, Summary!$U:$V, 2, FALSE), \"\")","v":"+"},{"$f":"IFERROR(VLOOKUP('Option D'!$I$14, Summary!$U:$V, 2, FALSE), \"\")","v":"-"},{"$f":"IFERROR(VLOOKUP('Option D'!$I$15, Summary!$U:$V, 2, FALSE), \"\")","v":"- -"},{"$f":"IFERROR(VLOOKUP('Option D'!$I$16, Summary!$U:$V, 2, FALSE), \"\")","v":"- -"},{"$f":"IFERROR(VLOOKUP('Option D'!$I$17, Summary!$U:$V, 2, FALSE), \"\")","v":"+"},{"$f":"IFERROR(VLOOKUP('Option D'!$I$18, Summary!$U:$V, 2, FALSE), \"\")","v":"- -"},{"$f":"IFERROR(VLOOKUP('Option D'!$I$19, Summary!$U:$V, 2, FALSE), \"\")","v":"- -"},{"$f":"IFERROR(VLOOKUP('Option D'!$I$20, Summary!$U:$V, 2, FALSE), \"\")","v":"- -"},{"$f":"IFERROR(VLOOKUP('Option D'!$I$21, Summary!$U:$V, 2, FALSE), \"\")","v":"?"},{"$f":"IFERROR(VLOOKUP('Option D'!$I$22, Summary!$U:$V, 2, FALSE), \"\")","v":"?"},{"$f":"IFERROR(VLOOKUP('Option D'!$I$23, Summary!$U:$V, 2, FALSE), \"\")","v":"- -"},null,null,"Uncertain","?"]
[null,"Option E",{"$f":"IFERROR(VLOOKUP('Option E'!$I$8, Summary!$U:$V, 2, FALSE), \"\")","v":"?"},{"$f":"IFERROR(VLOOKUP('Option E'!$I$9, Summary!$U:$V, 2, FALSE), \"\")","v":"+"},{"$f":"IFERROR(VLOOKUP('Option E'!$I$10, Summary!$U:$V, 2, FALSE), \"\")","v":"+"},{"$f":"IFERROR(VLOOKUP('Option E'!$I$11, Summary!$U:$V, 2, FALSE), \"\")","v":"+"},{"$f":"IFERROR(VLOOKUP('Option E'!$I$12, Summary!$U:$V, 2, FALSE), \"\")","v":"+"},{"$f":"IFERROR(VLOOKUP('Option E'!$I$13, Summary!$U:$V, 2, FALSE), \"\")","v":"+"},{"$f":"IFERROR(VLOOKUP('Option E'!$I$14, Summary!$U:$V, 2, FALSE), \"\")","v":"+"},{"$f":"IFERROR(VLOOKUP('Option E'!$I$15, Summary!$U:$V, 2, FALSE), \"\")","v":"-"},{"$f":"IFERROR(VLOOKUP('Option E'!$I$16, Summary!$U:$V, 2, FALSE), \"\")","v":"-"},{"$f":"IFERROR(VLOOKUP('Option E'!$I$17, Summary!$U:$V, 2, FALSE), \"\")","v":"+"},{"$f":"IFERROR(VLOOKUP('Option E'!$I$18, Summary!$U:$V, 2, FALSE), \"\")","v":"- -"},{"$f":"IFERROR(VLOOKUP('Option E'!$I$19, Summary!$U:$V, 2, FALSE), \"\")","v":"-"},{"$f":"IFERROR(VLOOKUP('Option E'!$I$20, Summary!$U:$V, 2, FALSE), \"\")","v":"-"},{"$f":"IFERROR(VLOOKUP('Option E'!$I$21, Summary!$U:$V, 2, FALSE), \"\")","v":"- -"},{"$f":"IFERROR(VLOOKUP('Option E'!$I$22, Summary!$U:$V, 2, FALSE), \"\")","v":"?"},{"$f":"IFERROR(VLOOKUP('Option E'!$I$23, Summary!$U:$V, 2, FALSE), \"\")","v":"?"}]

{"sheet":"Option A","index":5,"n_rows":23,"n_cols":11,"rows_kept":23,"cut":false,"hidden":false,"merged":[[5,0,5,1],[5,3,5,10]]}
["Spatial Option","Option A"]
["Option Summary"]
["Option Description","100% Derby Fringe and Strategic Allocations"]
["Assumptions Made","Strategic allocations include STRA1, STRA2 and FLG1 Brun Lane"]
[]
["SA Framework",null,"GIS Inputs","SA Policy Assessment"]
["SA objective","SA sub-objective","Spatially assessable? ","Direct/\nIndirect","Magnitude","Duration","Spatial Extent","Permanence/ Reversibility","Significance","Description of potential effects","Potential for cumulative effects? "]
["S01 Biodiversity\nTo safeguard and enhance biodiversity (including BAP habitats and species) and geodiversity through biodiversity net gain and improve connectivity between, and access to, green spaces and functional habitats.","· Will it conserve and enhance natural or semi natural habitats including internationally, nationally and locally designated wildlife sites, or create new wildlife habitats, and contribute to the creation of a network of habitats and green infrastructure in the District?\n· Will it protect BAP or protected species and contribute to the delivery of new, or safeguard existing BAP priority species and habitats?\n· Will it protect sites of geological importance?","Yes","Direct","Low","Medium(10yrs)","Localised","Permanent/Irreversible","Minor Negative","Development in the Derby Fringe area is anticipated to improve biodiversity, with the potential to enhance biodiversity. However, development may result in low level loss of habitats at sites around the Derby Fringe. STRA1 contains a local wildlife site, a LIG, and contains a number of TPOs, whilst STRA2 has no internationally designated/BAP species or habitats located on or near to this site, nor are there any locally designated wildlife sites nearby. Habitat loss is therefore not considered to be significant. ","Yes"]
["S02 Housing\nTo ensure everyone has access to sustainable housing, which is affordable, and meets the needs of all residents including the elderly and other vulnerable groups and will support the vitality of existing communities and settlements. ","· Will it reduce the number of households waiting for accommodation or accepted as homeless?\n· Will it increase the number and mix of housing? \n· Will it improve the suitability of new homes for older and disabled people?\n· Will it provide affordable housing for those unable to access market housing?\n· Will it meet the needs of the travelling community and show people?\n· Will it secure infrastructure or community facilities?","Yes","Direct","High","Long(20+yrs)","Regional","Permanent/Irreversible","Significant Positive","This option provides 15,263 homes within South Derbyshire, also contributing to meeting Derby's unmet housing need as part of the Derby HMA. This option also locates housing to meet Derby's unmet housing need in close proximity to the City, close to where the unmet need arises.","Yes"]
["S03 Accessibility and Health\nTo improve local accessibility to healthcare, education, employment, retail facilities and recreational resources (including open spaces and sports facilities) and enhance wellbeing, promoting healthy and sustainable lifestyles.","· Will it promote healthy lifestyles?\n· Will it deliver new, or contribute to the expansion or improvement of existing open spaces, green infrastructure, schools or healthcare facilities within reasonable walking distance?\n· Will it deliver growth within reasonable walking distance to a planned or existing major employment area (5ha +) or town centre?\n· Will it improve opportunities for active travel including walking and cycling?\n· Will it deliver services or facilities on-site or elsewhere within the District? ","Yes","Direct","Medium","Medium(10yrs)","District-wide","Permanent/Irreversible","Minor Positive","The development of housing located within the Derby Fringe at STRA1 and STRA2 has potential to encourage active travel when accessing local services and facilities. Development within the Derby Fringe also has potential to result in reduced barriers to healthcare services, by bringing residents closer to community infrastructure and healthcare.","Yes"]
["S04 Quality of Life\nTo create safe and attractive places which contribute towards quality of life and community cohesion.","· Will it contribute towards reducing crime or fear of crime?\n· Will it provide attractive places which provide opportunities for communities to mix and meet?","No","Indirect","Low","Medium(10yrs)","Localised","Permanent/Reversible","Minor Positive","It is anticipated that development may improve feelings of safety as a result of delivering well design new development, providing natural surveillance and active frontages. The Derby Fringe area of South Derbyshire has existing low levels of deprivation, including for crime, and therefore development in this area is anticipated to result in improved feelings of safety.","Yes"]
["S05 Inequalities\nEnsure all residents have equitable access to employment, education, community services and facilities irrespective of race, religion, sex, age, sexual orientation, disability, gender reassignment, marriage and civil partnership or pregnancy/maternity.","· Ensure the option / policy does not have an adverse/ discriminatory impact on protected characteristics/ equality groups?\n· Will it narrow the inequality gap between the richest and poorest in the District?\n· Will it reduce inequalities associated with deprivation across the District?","Yes","Indirect","Low","Medium(10yrs)","District-wide","Permanent/Reversible","Minor Positive","Overall levels of deprivation is low across the two sites but there are still pockets of deprivation. The provision of more community infrastructure and accessibility across the district, could help to reduce levels of inequalities and promote equity. ","No"]
["S06 Economy\nTo deliver growth in key employment sectors and support the creation of new and retention of existing businesses in urban and rural areas.","· Will it encourage the creation of new businesses and existing businesses to grow?\n· Will it encourage economic diversification?\n· Will it help support and encourage the growth of the local economy (including in rural areas)?\n· Will it support the enhancement of the District’s tourism and cultural offer?","Yes","Indirect","Low","Medium(10yrs)","Regional","Permanent/Irreversible","Minor Positive","Development in the Derby Fringe is anticipated to improve the economy in the north of South Derbyshire district, and also allow access to Derby City, providing opportunities for businesses and employment.","Yes"]
["S07 Employment\nTo create greater employment opportunities and higher value jobs across the whole District","· Will it help to improve skills levels and access to training within the District?\n· Will it reduce unemployment rates overall and reduce disparities which exist across different parts of the District?","Yes","Indirect","High","Medium/Long","Regional","Permanent/Irreversible","Significant Positive","Development in the Derby Fringe area is well located close to a number of large employment opportunities, including the Toyota manufacturing site, East Midlands Freeport, and Rolls Royce, in addition to having good access to employment in Derby City centre. As a result, housing provision in the Derby Fringe area is anticipated to have good access to employment opportunities for residents.","Yes"]
["S08 Infrastructure\nTo deliver improved infrastructure to support growth and economic competitiveness of urban and rural businesses and communities.","· Will it minimise the impact of traffic congestion on the strategic and local road network through the delivery of new or enhanced transport infrastructure?\n· Will it provide opportunities to access key services, including doctor’s surgeries, education facilities, employment and town, local or village centres by means other than car?\n· Will it make the best use of other infrastructure which serves new development?","No","Direct","Medium","Medium(10yrs)","Regional","Permanent/Irreversible","Significant Positive","It is anticipated that development focused within Derby Fringe has potential to reduce congestion on the local road network, as well as providing access to services located within Derby. The development at STRA1 in particular will provide a new local centre, community sports facilities, primary and secondary schools and recreational facilities. This will help to reduce the need to travel and allow residents to live their lives more locally. Similarly, STRA2 will include a primary and secondary school, a local centre, sports hub and financial contributions to healthcare. ","Yes"]
["S09 Sustainable Travel\nTo promote sustainable travel habits including walking, cycling and public transport (bus and rail) usage.  ","· Will it reduce journey lengths and times? \n· Will it maximise opportunities for walking and cycling?\n· Will it maximise opportunities to access public transport provision?","Yes","Direct","Medium","Medium(10yrs)","Regional","Permanent/Irreversible","Minor Positive","It is anticipated that development focused within Derby Fringe has potential to improve access to sustainable transport modes into Derby, including through bus and therefore minimise private vehicle use.","Yes"]
["S010 Town and Village Centres\nTo ensure that town and village centres are vibrant and viable.","· Will it improve existing shopping facilities within town and village centres? \n· Will it help safeguard existing town and village centres?","Yes","Indirect","Low","Medium/Long","District-wide","Permanent/Irreversible","Minor Negative","Development located in the Derby Fringe focuses development away from local town and village centres, which may restrict the growth and vitality of these centres.","Yes"]
["S011 Resources\nTo minimise waste and ensure the sustainable use and protection of natural resources including greenfield land, soil and minerals resources.  ","· Will it enhance opportunities for increased levels of recycling in the District?\n· Will it improve or remediate contaminated land or reuse previously developed land which has not been restored?\n· Will it protect Best and Most Versatile (BMV) Agricultural Land?\n· Will it avoid the sterilisation of minerals resources?","Yes","Direct","High","Medium/Long","Localised","Permanent/Irreversible","Significant Negative","The Derby Fringe area largely consists of agricultural land, some of which is Grade 3 agricultural land. Development will subsequently lead to the irreversible loss of greenfield land, and potentially soils considered as the 'best and most versatile'.","Yes"]
["S012 Pollution\nTo minimise water, air, light and noise pollution and ensure that future growth does not lead to the further deterioration of environmental conditions.","· Will it contribute to improvements in water quality in the District?\n· Will it avoid increasing noise levels locally or introducing incompatible uses into an already noisy location?\n· Will it avoid deterioration in air quality within the District?\n· Will it avoid exacerbating light pollution by keeping external lighting to the minimum required for safety and security?","Yes","Direct","Medium","Medium(10yrs)","Localised","Permanent/Irreversible","Minor Negative","Derby Fringe has high noise pollution and some light pollution. It is likely that development in this area will increase both noise and light pollution, and thus exacerbate existing issues. There is potential that development at this scale may increase pollution in South Derbyshire, particularly as residents may commute into Derby for work.","Yes"]
["S013 Contributions to Climate Change \nTo reduce the District’s contribution towards the emission of climate change gases.","· Will it provide opportunities to access local services and facilities by public transport walking or cycling?\n· Will it support the delivery of renewable energy capacity (including small scale or community energy projects)?\n· Will it support the shift toward usage of electric and ultralow emissions vehicles? ","Yes","Indirect","Low","Medium/Long","District-wide","Permanent/Reversible","Minor Positive","During construction there may be increase construction traffic and HGVs which could effect accessibility and result in driver delays. This may also contribute to increased emissions. However, it is anticipated that development focused within Derby Fringe has potential to improve access to sustainable transport modes into Derby, including through buses and therefore may aid in reducing the emission of greenhouse gases from private vehicles. Overall, it is considered that effects will be minor positive.  ","Yes"]
["S014 Adaptation to Climate Change \nTo manage the effects of climate change including flood risk, reduced water availability and overheating.","· Will it minimise flood risk?\n· Will it include provision of sustainable urban drainage which mimic natural drainage patterns?\n· Will it contribute towards sustainable water use?","Yes","Direct","Medium","Medium/Long","Localised","Permanent/Irreversible","Significant Negative","Development on greenfield land has potential to reduce climate resilience through reducing green infrastructure provision within South Derbyshire and the Derby Fringe. Areas of the Derby Fringe are also located within flood zones 2 and 3. Therefore, increased development in these areas may exacerbate flood risk. ","Yes"]
["S015 Townscape and Historic Environment\nTo conserve and enhance the townscape, historic environment, heritage assets (including known and unknown archaeological sites) and their settings. ","· Will it protect and enhance the condition and setting of historic, cultural, architectural and archaeological features in South Derbyshire?\n· Does it improve the quality of the built environment, and respect and protect existing townscape character?\n· Will it improve access to, and understanding of, the District’s historic and cultural assets for enjoyment and educational purposes?","Yes","Direct","Medium","Long(20+yrs)","Localised","Permanent/Irreversible","Minor Positive","Development arising from this spatial strategy option has potential to alter the setting of heritage assets located in the Derby Fringe, however, there are very few designated assets located in close proximity to either sites. This option is, however, likely to improve the setting of the townscape on the Derby Fringe.","Yes"]
["S016 Landscape\nTo conserve and enhance the District’s landscape character.","· Does it respect and protect existing landscape character?\n· Will it protect sensitive landscapes including those within the World Heritage Site or its buffer or Special Landscape Areas?\n· Will it safeguard landscape features such as hedgerows?\n· Will it avoid intrusion into the greenbelt?","Yes","Direct","High","Long(20+yrs)","Localised","Permanent/Irreversible","Significant Negative","Development on greenfield land in the Derby Fringe land is anticipated to result in loss of landscape features, and alteration of landscape character and visual amenity. ","Yes"]

{"sheet":"Option B","index":6,"n_rows":23,"n_cols":11,"rows_kept":23,"cut":false,"hidden":false,"merged":[[5,0,5,1],[5,3,5,10]]}
["Spatial Option","Option B"]
["Option Summary"]
["Option Description","0% Derby Fringe, 100% Swadlincote and Key Service Villages (equal split between all)"]
["Assumptions Made"]
[]
["SA Framework",null,"GIS Inputs","SA Policy Assessment"]
["SA objective","SA sub-objective","Spatially assessable? ","Direct/\nIndirect","Magnitude","Duration","Spatial Extent","Permanence/ Reversibility","Significance","Description of potential effects","Potential for cumulative effects? "]
["S01 Biodiversity\nTo safeguard and enhance biodiversity (including BAP habitats and species) and geodiversity through biodiversity net gain and improve connectivity between, and access to, green spaces and functional habitats.","· Will it conserve and enhance natural or semi natural habitats including internationally, nationally and locally designated wildlife sites, or create new wildlife habitats, and contribute to the creation of a network of habitats and green infrastructure in the District?\n· Will it protect BAP or protected species and contribute to the delivery of new, or safeguard existing BAP priority species and habitats?\n· Will it protect sites of geological importance?","Yes","N/A","N/A","N/A","N/A","N/A","Uncertain","Development in Swadlincote and key service villages has potential to result in  loss of biodiversity, particularly given the quantities of greenfield land in these areas. However, this will depend on the exact location of development that may occur.","Yes"]
["S02 Housing\nTo ensure everyone has access to sustainable housing, which is affordable, and meets the needs of all residents including the elderly and other vulnerable groups and will support the vitality of existing communities and settlements. ","· Will it reduce the number of households waiting for accommodation or accepted as homeless?\n· Will it increase the number and mix of housing? \n· Will it improve the suitability of new homes for older and disabled people?\n· Will it provide affordable housing for those unable to access market housing?\n· Will it meet the needs of the travelling community and show people?\n· Will it secure infrastructure or community facilities?","Yes","Direct","Medium","Long(20+yrs)","District-wide","Permanent/Irreversible","Minor Positive","This option provides 15,263 homes within South Derbyshire, also contributing to meeting Derby's unmet housing need as part of the Derby HMA. However, this option doesn't provide homes close to Derby City where the unmet need arises.\n\nDevelopment in Swadlincote and key service villages will be of unknown sizes and locations and therefore it could be less likely to deliver infrastructure and community facilities alongside it. However, housing in Swadlincote and key service villages could help support the vitality of existing community facilities in these locations. ","Yes"]
["S03 Accessibility and Health\nTo improve local accessibility to healthcare, education, employment, retail facilities and recreational resources (including open spaces and sports facilities) and enhance wellbeing, promoting healthy and sustainable lifestyles.","· Will it promote healthy lifestyles?\n· Will it deliver new, or contribute to the expansion or improvement of existing open spaces, green infrastructure, schools or healthcare facilities within reasonable walking distance?\n· Will it deliver growth within reasonable walking distance to a planned or existing major employment area (5ha +) or town centre?\n· Will it improve opportunities for active travel including walking and cycling?\n· Will it deliver services or facilities on-site or elsewhere within the District? ","Yes","Direct","Medium","Medium(10yrs)","Localised","Permanent/Irreversible","Minor Negative","The development of housing located around Swadlincote and key services villages has potential to encourage active lifestyles and improve mental wellbeing due to proximity to open space. However, existing healthcare services in these areas may require additional development in order to support increased housing numbers. There may be limited opportunities to access facilities, services  and employment by active travel depending on where the development is located and the services that would be available nearby. ","Yes"]
["S04 Quality of Life\nTo create safe and attractive places which contribute towards quality of life and community cohesion.","· Will it contribute towards reducing crime or fear of crime?\n· Will it provide attractive places which provide opportunities for communities to mix and meet?","No","N/A","N/A","N/A","N/A","N/A","Uncertain","The area of Swadlincote has high levels of crime deprivation. Development in this area may result in reduced fear of crime due to designing out crime principles and additional active frontages. This is likely to be determined by individual scheme design and therefore an uncertain effect is identified.","Yes"]
["S05 Inequalities\nEnsure all residents have equitable access to employment, education, community services and facilities irrespective of race, religion, sex, age, sexual orientation, disability, gender reassignment, marriage and civil partnership or pregnancy/maternity.","· Ensure the option / policy does not have an adverse/ discriminatory impact on protected characteristics/ equality groups?\n· Will it narrow the inequality gap between the richest and poorest in the District?\n· Will it reduce inequalities associated with deprivation across the District?","Yes","Indirect","Low","Medium/Long","Localised","Permanent/Reversible","Minor Positive","This option includes development in Swadlincote, which may aid in developing affordable housing and community services. The provision of more community infrastructure and accessibility across the district, could help to reduce levels of inequalities and promote equity, in an area of deprivation.","Yes"]
["S06 Economy\nTo deliver growth in key employment sectors and support the creation of new and retention of existing businesses in urban and rural areas.","· Will it encourage the creation of new businesses and existing businesses to grow?\n· Will it encourage economic diversification?\n· Will it help support and encourage the growth of the local economy (including in rural areas)?\n· Will it support the enhancement of the District’s tourism and cultural offer?","Yes","Indirect","Medium","Medium(10yrs)","District-wide","Permanent/Irreversible","Minor Positive","Development in Swadlincote has potential to improve the economy in these areas through encouraging investment, and providing affordable housing for workers. This option may also encourage economic growth in rural areas through housing development in key service villages.","Yes"]
["S07 Employment\nTo create greater employment opportunities and higher value jobs across the whole District","· Will it help to improve skills levels and access to training within the District?\n· Will it reduce unemployment rates overall and reduce disparities which exist across different parts of the District?","Yes","N/A","N/A","N/A","N/A","N/A","Neutral","Swadlincote is an employment hub, therefore locating development closer to Swadlincote could help to bring residents closer to employment opportunities. Increased housing development in these areas may result in increased commuting out of South Derbyshire in order to access employment.","Yes"]
["S08 Infrastructure\nTo deliver improved infrastructure to support growth and economic competitiveness of urban and rural businesses and communities.","· Will it minimise the impact of traffic congestion on the strategic and local road network through the delivery of new or enhanced transport infrastructure?\n· Will it provide opportunities to access key services, including doctor’s surgeries, education facilities, employment and town, local or village centres by means other than car?\n· Will it make the best use of other infrastructure which serves new development?","No","Direct","Medium","Medium(10yrs)","District-wide","Permanent/Irreversible","Minor Negative","It is anticipated that development within Swadlincote and key service villages may increase congestion on the local road network due to limited public transport availability, which could increase reliance on private vehicles when accessing key services. Whilst services may be provided in Swadlincote it is unlikely that key service villages will be able to provide the same level of services. ","Yes"]
["S09 Sustainable Travel\nTo promote sustainable travel habits including walking, cycling and public transport (bus and rail) usage.  ","· Will it reduce journey lengths and times? \n· Will it maximise opportunities for walking and cycling?\n· Will it maximise opportunities to access public transport provision?","Yes","Direct","Medium","Medium(10yrs)","District-wide","Permanent/Irreversible","Minor Negative","Development in  key service villages may present barriers in accessing public and active travel modes due to limited connectivity, increasing private vehicle reliance and the need to travel further for services. Swadlincote, however, does have existing good connections and a good range of services. The maximisation of opportunities of walking and cycling and public transport access for these developments  is unknown. ","Yes"]
["S010 Town and Village Centres\nTo ensure that town and village centres are vibrant and viable.","· Will it improve existing shopping facilities within town and village centres? \n· Will it help safeguard existing town and village centres?","Yes","Direct","Medium","Medium/Long","District-wide","Permanent/Irreversible","Minor Positive","Development located in Swadlincote and key service villages is should support own and village centres, encouraging the growth and vitality of these centres.","Yes"]
["S011 Resources\nTo minimise waste and ensure the sustainable use and protection of natural resources including greenfield land, soil and minerals resources.  ","· Will it enhance opportunities for increased levels of recycling in the District?\n· Will it improve or remediate contaminated land or reuse previously developed land which has not been restored?\n· Will it protect Best and Most Versatile (BMV) Agricultural Land?\n· Will it avoid the sterilisation of minerals resources?","Yes","Direct","High","Medium/Long","Localised","Permanent/Irreversible","Significant Negative","It is anticipated that development around Swadlincote and key service villages would require land take of greenfield land that is currently utilised as agricultural land. Development will subsequently lead to the irreversible loss of greenfield land, and potentially soils considered as the 'best and most versatile'.","Yes"]
["S012 Pollution\nTo minimise water, air, light and noise pollution and ensure that future growth does not lead to the further deterioration of environmental conditions.","· Will it contribute to improvements in water quality in the District?\n· Will it avoid increasing noise levels locally or introducing incompatible uses into an already noisy location?\n· Will it avoid deterioration in air quality within the District?\n· Will it avoid exacerbating light pollution by keeping external lighting to the minimum required for safety and security?","Yes","Indirect","Low","Medium(10yrs)","Localised","Permanent/Reversible","Minor Negative","Swadlincote has higher levels of light pollution than the rest of South Derbyshire. It is likely that development in this area will increase both noise and light pollution. Without mitigation, there is potential that development at this scale may increase pollution in South Derbyshire.","Yes"]
["S013 Contributions to Climate Change \nTo reduce the District’s contribution towards the emission of climate change gases.","· Will it provide opportunities to access local services and facilities by public transport walking or cycling?\n· Will it support the delivery of renewable energy capacity (including small scale or community energy projects)?\n· Will it support the shift toward usage of electric and ultralow emissions vehicles? ","Yes","Indirect","Low","Medium(10yrs)","Localised","Permanent/Reversible","Minor Negative","The location of this spatial option has potential to deliver new housing in areas with restricted access to sustainable transport modes within South Derbyshire, therefore this may increase reliance on private vehicles and increased greenhouse gas emissions.","Yes"]
["S014 Adaptation to Climate Change \nTo manage the effects of climate change including flood risk, reduced water availability and overheating.","· Will it minimise flood risk?\n· Will it include provision of sustainable urban drainage which mimic natural drainage patterns?\n· Will it contribute towards sustainable water use?","Yes","N/A","N/A","N/A","N/A","N/A","Uncertain","Development on greenfield land has potential to reduce climate resilience through reducing green infrastructure provision within South Derbyshire. There are limited areas within South Derbyshire located in flood zones, however depending on the location of key service villages, there is potential for development to be proposed on flood zone 2 and 3. This would be determined by individual site location.","Yes"]
["S015 Townscape and Historic Environment\nTo conserve and enhance the townscape, historic environment, heritage assets (including known and unknown archaeological sites) and their settings. ","· Will it protect and enhance the condition and setting of historic, cultural, architectural and archaeological features in South Derbyshire?\n· Does it improve the quality of the built environment, and respect and protect existing townscape character?\n· Will it improve access to, and understanding of, the District’s historic and cultural assets for enjoyment and educational purposes?","Yes","N/A","N/A","N/A","N/A","N/A","Uncertain","Development arising from this spatial strategy option has potential to alter the setting of heritage assets located around Swadlincote and key service villages. There is potential for alteration of the townscape character within key service villages as a result of development which might delivered in these villages under this option.","Yes"]
["S016 Landscape\nTo conserve and enhance the District’s landscape character.","· Does it respect and protect existing landscape character?\n· Will it protect sensitive landscapes including those within the World Heritage Site or its buffer or Special Landscape Areas?\n· Will it safeguard landscape features such as hedgerows?\n· Will it avoid intrusion into the greenbelt?","Yes","Direct","Low","Long(20+yrs)","District-wide","Permanent/Irreversible","Uncertain","Development on greenfield land is anticipated to result in loss of landscape features, and alteration of landscape character and visual amenity. This option could involve development sites in or on the edge of Swadlincote and the key service villages across the district and could therefore result in more widespread negative effects on landscape compared with Option A. However, this will be determined by individual site location. ","Yes"]

{"sheet":"Option C","index":7,"n_rows":23,"n_cols":11,"rows_kept":23,"cut":false,"hidden":false,"merged":[[5,0,5,1],[5,3,5,10]]}
["Spatial Option","Option C"]
["Option Summary"]
["Option Description","0% Derby Fringe, 50% Swadlincote and 50% Key Service Villages"]
["Assumptions Made"]
[]
["SA Framework",null,"GIS Inputs","SA Policy Assessment"]
["SA objective","SA sub-objective","Spatially assessable? ","Direct/\nIndirect","Magnitude","Duration","Spatial Extent","Permanence/ Reversibility","Significance","Description of potential effects","Potential for cumulative effects? "]
["S01 Biodiversity\nTo safeguard and enhance biodiversity (including BAP habitats and species) and geodiversity through biodiversity net gain and improve connectivity between, and access to, green spaces and functional habitats.","· Will it conserve and enhance natural or semi natural habitats including internationally, nationally and locally designated wildlife sites, or create new wildlife habitats, and contribute to the creation of a network of habitats and green infrastructure in the District?\n· Will it protect BAP or protected species and contribute to the delivery of new, or safeguard existing BAP priority species and habitats?\n· Will it protect sites of geological importance?","Yes","N/A","N/A","N/A","N/A","N/A","Uncertain","Development in Swadlincote and key service villages has potential to result in  loss of biodiversity, particularly given the quantities of greenfield land in these areas. However, this is likely to depend on the location of development that may occur.","Yes"]
["S02 Housing\nTo ensure everyone has access to sustainable housing, which is affordable, and meets the needs of all residents including the elderly and other vulnerable groups and will support the vitality of existing communities and settlements. ","· Will it reduce the number of households waiting for accommodation or accepted as homeless?\n· Will it increase the number and mix of housing? \n· Will it improve the suitability of new homes for older and disabled people?\n· Will it provide affordable housing for those unable to access market housing?\n· Will it meet the needs of the travelling community and show people?\n· Will it secure infrastructure or community facilities?","Yes","Direct","Medium","Long(20+yrs)","District-wide","Permanent/Irreversible","Minor Positive","This option provides 15.263 homes within South Derbyshire, also contributing to meeting Derby's unmet housing need as part of the Derby HMA. However, this option also locates housing further south from Derby City, which may restrict the infrastructure that is available to support additional housing requirements.","Yes"]
["S03 Accessibility and Health\nTo improve local accessibility to healthcare, education, employment, retail facilities and recreational resources (including open spaces and sports facilities) and enhance wellbeing, promoting healthy and sustainable lifestyles.","· Will it promote healthy lifestyles?\n· Will it deliver new, or contribute to the expansion or improvement of existing open spaces, green infrastructure, schools or healthcare facilities within reasonable walking distance?\n· Will it deliver growth within reasonable walking distance to a planned or existing major employment area (5ha +) or town centre?\n· Will it improve opportunities for active travel including walking and cycling?\n· Will it deliver services or facilities on-site or elsewhere within the District? ","Yes","Direct","Medium","Medium(10yrs)","Localised","Permanent/Irreversible","Minor Negative","The development of housing located around key services villages has potential to encourage active lifestyles and improve mental wellbeing due to proximity to open space. However, existing healthcare services in key service villages may require additional development in order to support increased resident numbers. Without additional development, there is potential to overstretch these services. There is also potential that the location of development may reduce the likelihood of active travel and public transport uptake when accessing Derby and other areas of the Borough due to limited opportunities to access these modes. Development in Swadlincote will have better access to healthcare, employment and services, compared to the key service villages. ","Yes"]
["S04 Quality of Life\nTo create safe and attractive places which contribute towards quality of life and community cohesion.","· Will it contribute towards reducing crime or fear of crime?\n· Will it provide attractive places which provide opportunities for communities to mix and meet?","No","Indirect","Medium","Medium(10yrs)","Localised","Permanent/Irreversible","Uncertain","The area of Swadlincote has high levels of crime deprivation. Therefore, there is potential for increased fear of crime. However, development in this area may result in reduced fear of crime due to designing out crime principles and additional active frontages. This is likely to be determined by individual scheme design and therefore an uncertain effect is identified.","Yes"]
["S05 Inequalities\nEnsure all residents have equitable access to employment, education, community services and facilities irrespective of race, religion, sex, age, sexual orientation, disability, gender reassignment, marriage and civil partnership or pregnancy/maternity.","· Ensure the option / policy does not have an adverse/ discriminatory impact on protected characteristics/ equality groups?\n· Will it narrow the inequality gap between the richest and poorest in the District?\n· Will it reduce inequalities associated with deprivation across the District?","Yes","Indirect","Low","Medium/Long","Localised","Permanent/Reversible","Minor Positive","This option includes development in Swadlincote, which may aid in developing affordable housing and community services. The provision of more community infrastructure and accessibility across the district, could help to reduce levels of inequalities and promote equity, in an area of deprivation.","Yes"]
["S06 Economy\nTo deliver growth in key employment sectors and support the creation of new and retention of existing businesses in urban and rural areas.","· Will it encourage the creation of new businesses and existing businesses to grow?\n· Will it encourage economic diversification?\n· Will it help support and encourage the growth of the local economy (including in rural areas)?\n· Will it support the enhancement of the District’s tourism and cultural offer?","Yes","Indirect","Medium","Medium(10yrs)","District-wide","Permanent/Irreversible","Minor Positive","Development in Swadlincote and key service villages has potential to improve the economy in these areas through encouraging investment, this may also encourage growth in rural areas at key service villages.","Yes"]
["S07 Employment\nTo create greater employment opportunities and higher value jobs across the whole District","· Will it help to improve skills levels and access to training within the District?\n· Will it reduce unemployment rates overall and reduce disparities which exist across different parts of the District?","Yes","Indirect","Medium","Medium/Long","District-wide","Permanent/Irreversible","Neutral","Swadlincote is an employment hub, therefore locating development closer to Swadlincote could help to bring residents closer to employment opportunities. Increased housing development in these areas may result in increased commuting out of South Derbyshire in order to access employment.","Yes"]
["S08 Infrastructure\nTo deliver improved infrastructure to support growth and economic competitiveness of urban and rural businesses and communities.","· Will it minimise the impact of traffic congestion on the strategic and local road network through the delivery of new or enhanced transport infrastructure?\n· Will it provide opportunities to access key services, including doctor’s surgeries, education facilities, employment and town, local or village centres by means other than car?\n· Will it make the best use of other infrastructure which serves new development?","No","Direct","Medium","Medium(10yrs)","District-wide","Permanent/Irreversible","Minor Negative","It is anticipated that development within Swadlincote and key service villages may increase congestion on the local road network due to limited public transport availability, which could increase reliance on private vehicles when accessing key services. Whilst services may be provided in Swadlincote it is unlikely that key service villages will be able to provide the same level of services. ","Yes"]
["S09 Sustainable Travel\nTo promote sustainable travel habits including walking, cycling and public transport (bus and rail) usage.  ","· Will it reduce journey lengths and times? \n· Will it maximise opportunities for walking and cycling?\n· Will it maximise opportunities to access public transport provision?","Yes","Direct","Medium","Medium(10yrs)","District-wide","Permanent/Irreversible","Neutral","Swadlincote, has existing good connections and a good range of services, greater development here could lead to slightly more positive effects for Option C compared to B. However, development in key service villages could still present barriers in accessing public and active travel modes due to limited connectivity, increasing private vehicle reliance and the need to travel further for services. The maximisation of opportunities of walking and cycling and public transport access for these developments  is unknown. ","Yes"]
["S010 Town and Village Centres\nTo ensure that town and village centres are vibrant and viable.","· Will it improve existing shopping facilities within town and village centres? \n· Will it help safeguard existing town and village centres?","Yes","Direct","Medium","Medium/Long","District-wide","Permanent/Irreversible","Minor Positive","Development located in Swadlincote and key service villages is should support own and village centres, encouraging the growth and vitality of these centres.","Yes"]
["S011 Resources\nTo minimise waste and ensure the sustainable use and protection of natural resources including greenfield land, soil and minerals resources.  ","· Will it enhance opportunities for increased levels of recycling in the District?\n· Will it improve or remediate contaminated land or reuse previously developed land which has not been restored?\n· Will it protect Best and Most Versatile (BMV) Agricultural Land?\n· Will it avoid the sterilisation of minerals resources?","Yes","Direct","High","Medium/Long","Localised","Permanent/Irreversible","Significant Negative","It is anticipated that development around Swadlincote and key service villages would require land take of greenfield land that is currently utilised as agricultural land. Development will subsequently lead to the irreversible loss of greenfield land, and potentially soils considered as the 'best and most versatile'.","Yes"]
["S012 Pollution\nTo minimise water, air, light and noise pollution and ensure that future growth does not lead to the further deterioration of environmental conditions.","· Will it contribute to improvements in water quality in the District?\n· Will it avoid increasing noise levels locally or introducing incompatible uses into an already noisy location?\n· Will it avoid deterioration in air quality within the District?\n· Will it avoid exacerbating light pollution by keeping external lighting to the minimum required for safety and security?","Yes","Indirect","Medium","Medium(10yrs)","Localised","Permanent/Reversible","Minor Negative","Swadlincote has higher levels of light pollution than the rest of South Derbyshire. However, key service villages are likely to have lower levels of light and noise pollution. It is likely that development in this area will increase both noise and light pollution. Without mitigation, there is potential that development at this scale may increase pollution in South Derbyshire.","Yes"]
["S013 Contributions to Climate Change \nTo reduce the District’s contribution towards the emission of climate change gases.","· Will it provide opportunities to access local services and facilities by public transport walking or cycling?\n· Will it support the delivery of renewable energy capacity (including small scale or community energy projects)?\n· Will it support the shift toward usage of electric and ultralow emissions vehicles? ","Yes","Indirect","Low","Medium(10yrs)","Localised","Permanent/Reversible","Minor Negative","The location of this spatial option has potential to deliver new housing in areas with restricted access to sustainable transport modes within South Derbyshire, therefore this may increase reliance on private vehicles and increased greenhouse gas emissions.","Yes"]
["S014 Adaptation to Climate Change \nTo manage the effects of climate change including flood risk, reduced water availability and overheating.","· Will it minimise flood risk?\n· Will it include provision of sustainable urban drainage which mimic natural drainage patterns?\n· Will it contribute towards sustainable water use?","Yes","N/A","N/A","N/A","N/A","N/A","Uncertain","Development on greenfield land has potential to reduce climate resilience through reducing green infrastructure provision within South Derbyshire. There are limited areas within South Derbyshire located in flood zones, however depending on the location of key service villages, there is potential for development to be proposed on flood zone 2 and 3. This would be determined by individual site location.","Yes"]
["S015 Townscape and Historic Environment\nTo conserve and enhance the townscape, historic environment, heritage assets (including known and unknown archaeological sites) and their settings. ","· Will it protect and enhance the condition and setting of historic, cultural, architectural and archaeological features in South Derbyshire?\n· Does it improve the quality of the built environment, and respect and protect existing townscape character?\n· Will it improve access to, and understanding of, the District’s historic and cultural assets for enjoyment and educational purposes?","Yes","Direct","Medium","Long(20+yrs)","Localised","Permanent/Irreversible","Uncertain","Development arising from this spatial strategy option has potential to alter the setting of heritage assets located around Swadlincote and key service villages. There is potential for alteration of the townscape character within key service villages as a result of development which might delivered in these villages under this option.","Yes"]
["S016 Landscape\nTo conserve and enhance the District’s landscape character.","· Does it respect and protect existing landscape character?\n· Will it protect sensitive landscapes including those within the World Heritage Site or its buffer or Special Landscape Areas?\n· Will it safeguard landscape features such as hedgerows?\n· Will it avoid intrusion into the greenbelt?","Yes","Direct","High","Long(20+yrs)","Localised","Permanent/Irreversible","Uncertain","Development on greenfield land is anticipated to result in loss of landscape features, and alteration of landscape character and visual amenity. This option could involve development sites in or on the edge of Swadlincote and the key service villages across the district and could therefore result in more widespread negative effects on landscape compared with Option A. However, this will be determined by individual site location. ","Yes"]

{"sheet":"Option D","index":8,"n_rows":23,"n_cols":11,"rows_kept":23,"cut":false,"hidden":false,"merged":[[5,0,5,1],[5,3,5,10]]}
["Spatial Option","Option D"]
["Option Summary"]
["Option Description","0% Derby Fringe, 40% Swadlincote, 40% split between Key Service Villages and 20% other Local Service Villages"]
["Assumptions Made"]
[]
["SA Framework",null,"GIS Inputs","SA Policy Assessment"]
["SA objective","SA sub-objective","Spatially assessable? ","Direct/\nIndirect","Magnitude","Duration","Spatial Extent","Permanence/ Reversibility","Significance","Description of potential effects","Potential for cumulative effects? "]
["S01 Biodiversity\nTo safeguard and enhance biodiversity (including BAP habitats and species) and geodiversity through biodiversity net gain and improve connectivity between, and access to, green spaces and functional habitats.","· Will it conserve and enhance natural or semi natural habitats including internationally, nationally and locally designated wildlife sites, or create new wildlife habitats, and contribute to the creation of a network of habitats and green infrastructure in the District?\n· Will it protect BAP or protected species and contribute to the delivery of new, or safeguard existing BAP priority species and habitats?\n· Will it protect sites of geological importance?","Yes","Direct","Low","Medium(10yrs)","Localised","Permeant/Irreversible","Uncertain","Development as part of this option could be much wider spread compared to the other options and large quantities of greenfield land may  be developed in and around local service villages. However, effects will be dependent upon the sites that come forward. ","Yes"]
["S02 Housing\nTo ensure everyone has access to sustainable housing, which is affordable, and meets the needs of all residents including the elderly and other vulnerable groups and will support the vitality of existing communities and settlements. ","· Will it reduce the number of households waiting for accommodation or accepted as homeless?\n· Will it increase the number and mix of housing? \n· Will it improve the suitability of new homes for older and disabled people?\n· Will it provide affordable housing for those unable to access market housing?\n· Will it meet the needs of the travelling community and show people?\n· Will it secure infrastructure or community facilities?","Yes","Direct","Medium","Long(20+yrs)","District-wide","Permeant/Irreversible","Minor Positive","This option provides 15,263 homes within South Derbyshire, also contributing to meeting Derby's unmet housing need as part of the Derby HMA. However, this option doesn't provide homes close to Derby City where the unmet need arises\n\nDevelopment in Swadlincote, local service villages and key service villages will be of unknown sizes and locations and therefore it could be less likely to deliver infrastructure and community facilities alongside it. However, housing in Swadlincote and key service villages could help support the vitality of existing community facilities in these locations. ","Yes"]
["S03 Accessibility and Health\nTo improve local accessibility to healthcare, education, employment, retail facilities and recreational resources (including open spaces and sports facilities) and enhance wellbeing, promoting healthy and sustainable lifestyles.","· Will it promote healthy lifestyles?\n· Will it deliver new, or contribute to the expansion or improvement of existing open spaces, green infrastructure, schools or healthcare facilities within reasonable walking distance?\n· Will it deliver growth within reasonable walking distance to a planned or existing major employment area (5ha +) or town centre?\n· Will it improve opportunities for active travel including walking and cycling?\n· Will it deliver services or facilities on-site or elsewhere within the District? ","Yes","Direct","Medium","Medium(10yrs)","Localised","Permeant/Irreversible","Minor Negative","The development of housing located around key services villages and local service villages has potential to encourage active lifestyles and improve mental wellbeing due to proximity to open space. However, existing healthcare services in key service villages and local service villages may require additional development in order to support increased resident numbers. \n\nWithout additional development, there is potential to overstretch these services. There is also potential that the location of development may reduce the likelihood of active travel and public transport uptake when accessing Derby and other areas of the Borough due to limited opportunities to access these modes. Development in Swadlincote will have better access to healthcare, employment and services, compared to the key service villages. ","Yes"]
["S04 Quality of Life\nTo create safe and attractive places which contribute towards quality of life and community cohesion.","· Will it contribute towards reducing crime or fear of crime?\n· Will it provide attractive places which provide opportunities for communities to mix and meet?","No","Indirect","Medium","Medium(10yrs)","Localised","Permeant/Irreversible","Uncertain","The area of Swadlincote has high levels of crime deprivation. Therefore, there is potential for increased fear of crime. However, development in this area may result in reduced fear of crime due to designing out crime principles and additional active frontages. This is likely to be determined by individual scheme design and therefore an uncertain effect is identified.","Yes"]
["S05 Inequalities\nEnsure all residents have equitable access to employment, education, community services and facilities irrespective of race, religion, sex, age, sexual orientation, disability, gender reassignment, marriage and civil partnership or pregnancy/maternity.","· Ensure the option / policy does not have an adverse/ discriminatory impact on protected characteristics/ equality groups?\n· Will it narrow the inequality gap between the richest and poorest in the District?\n· Will it reduce inequalities associated with deprivation across the District?","Yes","Indirect","Low","Medium/Long","Localised","Permeant/Reversible","Uncertain","This option includes development in Swadlincote, which may aid in developing affordable housing and community services. The provision of more community infrastructure and accessibility across the district, could help to reduce levels of inequalities and promote equity, in an area of deprivation. However, development in rural areas and key service villages may have less access to services which could mean residents may need to travel further to services. This could widen the equality gap, but it may depend on the developments that come forward. ","Yes"]
["S06 Economy\nTo deliver growth in key employment sectors and support the creation of new and retention of existing businesses in urban and rural areas.","· Will it encourage the creation of new businesses and existing businesses to grow?\n· Will it encourage economic diversification?\n· Will it help support and encourage the growth of the local economy (including in rural areas)?\n· Will it support the enhancement of the District’s tourism and cultural offer?","Yes","Indirect","Medium","Medium(10yrs)","District-wide","Permeant/Irreversible","Minor Positive","Development in Swadlincote, key service villages and local service villages has potential to improve the economy in these areas through encouraging investment, this may also encourage growth in rural areas and support diversification within these areas.","Yes"]
["S07 Employment\nTo create greater employment opportunities and higher value jobs across the whole District","· Will it help to improve skills levels and access to training within the District?\n· Will it reduce unemployment rates overall and reduce disparities which exist across different parts of the District?","Yes","Indirect","Medium","Medium/Long","District-wide","Permeant/Irreversible","Minor Negative","Increased development in key service villages and local service villages may present barriers to employment due to lack of employment opportunities. However, Swadlincote is an employment hub, therefore locating development closer to Swadlincote could help to bring residents closer to employment opportunities. Increased housing development in these areas may result in increased commuting out of South Derbyshire in order to access employment.","Yes"]
["S08 Infrastructure\nTo deliver improved infrastructure to support growth and economic competitiveness of urban and rural businesses and communities.","· Will it minimise the impact of traffic congestion on the strategic and local road network through the delivery of new or enhanced transport infrastructure?\n· Will it provide opportunities to access key services, including doctor’s surgeries, education facilities, employment and town, local or village centres by means other than car?\n· Will it make the best use of other infrastructure which serves new development?","No","Direct","Medium","Medium(10yrs)","District-wide","Permeant/Irreversible","Significant Negative","It is anticipated that development within Swadlincote, key service villages and local service villages may increase congestion on the local road network due to limited public transport availability, and increased reliance on private vehicles when accessing key services. There could also be an additional requirement for improved infrastructure to support increased populations within local service villages.","Yes"]
["S09 Sustainable Travel\nTo promote sustainable travel habits including walking, cycling and public transport (bus and rail) usage.  ","· Will it reduce journey lengths and times? \n· Will it maximise opportunities for walking and cycling?\n· Will it maximise opportunities to access public transport provision?","Yes","Direct","Medium","Medium(10yrs)","District-wide","Permeant/Irreversible","Significant Negative","Increased proportions of development in local service villages is likely to increase barriers in accessing public and active travel modes due to limited connectivity, increasing private vehicle reliance. Swadlincote, however, does have existing good connections and a good range of services. The maximisation of opportunities of walking and cycling and public transport access for these developments  is unknown. ","Yes"]
["S010 Town and Village Centres\nTo ensure that town and village centres are vibrant and viable.","· Will it improve existing shopping facilities within town and village centres? \n· Will it help safeguard existing town and village centres?","Yes","Direct","Medium","Medium/Long","District-wide","Permeant/Irreversible","Minor Positive","Development located in Swadlincote, key service villages and local service villages supports development within local town and village centres, encouraging the growth and vitality of these centres. This may also support the preservation of facilities in village centres.","Yes"]
["S011 Resources\nTo minimise waste and ensure the sustainable use and protection of natural resources including greenfield land, soil and minerals resources.  ","· Will it enhance opportunities for increased levels of recycling in the District?\n· Will it improve or remediate contaminated land or reuse previously developed land which has not been restored?\n· Will it protect Best and Most Versatile (BMV) Agricultural Land?\n· Will it avoid the sterilisation of minerals resources?","Yes","Direct","High","Medium/Long","Localised","Permeant/Irreversible","Significant Negative","It is anticipated that higher proportions of development around local service villages would require higher quantities of land take of greenfield land that is currently agricultural land. Development will subsequently lead to the irreversible loss of greenfield land and potentially soils considered as the 'best and most versatile'.","Yes"]
["S012 Pollution\nTo minimise water, air, light and noise pollution and ensure that future growth does not lead to the further deterioration of environmental conditions.","· Will it contribute to improvements in water quality in the District?\n· Will it avoid increasing noise levels locally or introducing incompatible uses into an already noisy location?\n· Will it avoid deterioration in air quality within the District?\n· Will it avoid exacerbating light pollution by keeping external lighting to the minimum required for safety and security?","Yes","Indirect","Medium","Medium(10yrs)","Localised","Permeant/Reversible","Significant Negative","Higher proportions of development located in key service villages and local service villages is likely to exacerbate levels of light and noise pollution in areas of currently low pollution, which may also impact the River Mease catchment area.","Yes"]
["S013 Contributions to Climate Change \nTo reduce the District’s contribution towards the emission of climate change gases.","· Will it provide opportunities to access local services and facilities by public transport walking or cycling?\n· Will it support the delivery of renewable energy capacity (including small scale or community energy projects)?\n· Will it support the shift toward usage of electric and ultralow emissions vehicles? ","Yes","Indirect","Medium","Medium(10yrs)","Localised","Permeant/Reversible","Significant Negative","The location of this spatial option has potential to limit access to sustainable transport modes within South Derbyshire, therefore this may increase reliance on private vehicles and increased greenhouse gas emissions, particularly in rural areas. ","Yes"]
["S014 Adaptation to Climate Change \nTo manage the effects of climate change including flood risk, reduced water availability and overheating.","· Will it minimise flood risk?\n· Will it include provision of sustainable urban drainage which mimic natural drainage patterns?\n· Will it contribute towards sustainable water use?","Yes","N/A","N/A","N/A","N/A","N/A","Uncertain","Development on greenfield land has potential to reduce climate resilience through reducing green infrastructure provision within South Derbyshire. There are limited areas within South Derbyshire located in flood zones, however depending on the location of key service villages, there is potential for development to be proposed on flood zone 2 and 3. This would be determined by individual site location.","Yes"]
["S015 Townscape and Historic Environment\nTo conserve and enhance the townscape, historic environment, heritage assets (including known and unknown archaeological sites) and their settings. ","· Will it protect and enhance the condition and setting of historic, cultural, architectural and archaeological features in South Derbyshire?\n· Does it improve the quality of the built environment, and respect and protect existing townscape character?\n· Will it improve access to, and understanding of, the District’s historic and cultural assets for enjoyment and educational purposes?","Yes","Direct","Medium","Long(20+yrs)","Localised","Permeant/Irreversible","Uncertain","Development arising from this spatial strategy option has potential to alter the setting of heritage assets located around key service villages and local service villages, as well as Swadlincote. There is potential for alteration of the townscape character within key service villages and local service villages as a result of this quantity of development in villages.","Yes"]
["S016 Landscape\nTo conserve and enhance the District’s landscape character.","· Does it respect and protect existing landscape character?\n· Will it protect sensitive landscapes including those within the World Heritage Site or its buffer or Special Landscape Areas?\n· Will it safeguard landscape features such as hedgerows?\n· Will it avoid intrusion into the greenbelt?","Yes","Direct","Low","Long(20+yrs)","Localised","Permeant/Irreversible","Significant Negative","Development on greenfield land is anticipated to result in loss of landscape features, and alteration of landscape character and visual amenity. This is particularly likely to alter the setting of the rural landscape in and around local service villages. ","Yes"]

{"sheet":"Option E","index":9,"n_rows":23,"n_cols":11,"rows_kept":23,"cut":false,"hidden":false,"merged":[[5,0,5,1],[5,3,5,10]]}
["Spatial Option","Option E"]
["Option Summary"]
["Option Description","50% Derby Fringe, 50% equal dispersion Swadlincote and Key Service Villages"]
["Assumptions Made"]
[]
["SA Framework",null,"GIS Inputs","SA Policy Assessment"]
["SA objective","SA sub-objective","Spatially assessable? ","Direct/\nIndirect","Magnitude","Duration","Spatial Extent","Permanence/ Reversibility","Significance","Description of potential effects","Potential for cumulative effects? "]
["S01 Biodiversity\nTo safeguard and enhance biodiversity (including BAP habitats and species) and geodiversity through biodiversity net gain and improve connectivity between, and access to, green spaces and functional habitats.","· Will it conserve and enhance natural or semi natural habitats including internationally, nationally and locally designated wildlife sites, or create new wildlife habitats, and contribute to the creation of a network of habitats and green infrastructure in the District?\n· Will it protect BAP or protected species and contribute to the delivery of new, or safeguard existing BAP priority species and habitats?\n· Will it protect sites of geological importance?","Yes","N/A","N/A","N/A","N/A","N/A","Uncertain","Development in the Derby Fringe, Swadlincote and key service villages has potential to result in  loss of biodiversity, particularly given the quantities of greenfield land in these areas. However, this will depend on the exact location of development that may occur.","Yes"]
["S02 Housing\nTo ensure everyone has access to sustainable housing, which is affordable, and meets the needs of all residents including the elderly and other vulnerable groups and will support the vitality of existing communities and settlements. ","· Will it reduce the number of households waiting for accommodation or accepted as homeless?\n· Will it increase the number and mix of housing? \n· Will it improve the suitability of new homes for older and disabled people?\n· Will it provide affordable housing for those unable to access market housing?\n· Will it meet the needs of the travelling community and show people?\n· Will it secure infrastructure or community facilities?","Yes","Direct","Medium","Long(20+yrs)","District-wide","Permanent/Irreversible","Minor Positive","This option provides 15,263 homes within South Derbyshire, also contributing to meeting Derby's unmet housing need as part of the Derby HMA. This option also provides 2,250 homes close to Derby City where the unmet need arises. However, the quantity of homes located within the Derby Fringe does not meet Derby's unmet need.\n\nDevelopment in Swadlincote and key service villages will be of unknown sizes and locations and therefore it is uncertain whether it would deliver infrastructure and community facilities alongside it, because delivery may depend on the size of individual developments and identified need. However, housing in Swadlincote and key service villages could help support the vitality of existing community facilities in these locations. ","Yes"]
["S03 Accessibility and Health\nTo improve local accessibility to healthcare, education, employment, retail facilities and recreational resources (including open spaces and sports facilities) and enhance wellbeing, promoting healthy and sustainable lifestyles.","· Will it promote healthy lifestyles?\n· Will it deliver new, or contribute to the expansion or improvement of existing open spaces, green infrastructure, schools or healthcare facilities within reasonable walking distance?\n· Will it deliver growth within reasonable walking distance to a planned or existing major employment area (5ha +) or town centre?\n· Will it improve opportunities for active travel including walking and cycling?\n· Will it deliver services or facilities on-site or elsewhere within the District? ","Yes","Direct","Medium","Medium(10yrs)","District-wide","Permanent/Irreversible","Minor Positive","The development of housing located within the Derby Fringe has potential to encourage active travel when accessing local services and facilities. Development within the Derby Fringe also has potential to result in reduced barriers to healthcare services, by bringing residents closer to community infrastructure and healthcare.\n\nThe development of housing located around Swadlincote and key services villages has potential to encourage active lifestyles and improve mental wellbeing due to proximity to open space. However, existing healthcare services in these areas may require additional development in order to support increased housing numbers. There may be limited opportunities to access facilities, services  and employment by active travel depending on where the development is located and the services that would be available nearby. ","Yes"]
["S04 Quality of Life\nTo create safe and attractive places which contribute towards quality of life and community cohesion.","· Will it contribute towards reducing crime or fear of crime?\n· Will it provide attractive places which provide opportunities for communities to mix and meet?","No","Indirect","Low","Medium(10yrs)","Localised","Permanent/Reversible","Minor Positive","It is anticipated that development may improve feelings of safety as a result of delivering well design new development, providing natural surveillance and active frontages. The Derby Fringe area of South Derbyshire has existing low levels of deprivation, whilst the area of Swadlincote has high levels of crime deprivation. Therefore development in this area is anticipated to result in improved feelings of safety.","Yes"]
["S05 Inequalities\nEnsure all residents have equitable access to employment, education, community services and facilities irrespective of race, religion, sex, age, sexual orientation, disability, gender reassignment, marriage and civil partnership or pregnancy/maternity.","· Ensure the option / policy does not have an adverse/ discriminatory impact on protected characteristics/ equality groups?\n· Will it narrow the inequality gap between the richest and poorest in the District?\n· Will it reduce inequalities associated with deprivation across the District?","Yes","Indirect","Low","Medium/Long","Localised","Permanent/Reversible","Minor Positive","The area of Swadlincote has high levels of deprivation. This option includes development in Swadlincote, which may aid in developing affordable housing and community services. The provision of more community infrastructure and accessibility across the district, could help to reduce levels of inequalities and promote equity, in an area of deprivation.","Yes"]
["S06 Economy\nTo deliver growth in key employment sectors and support the creation of new and retention of existing businesses in urban and rural areas.","· Will it encourage the creation of new businesses and existing businesses to grow?\n· Will it encourage economic diversification?\n· Will it help support and encourage the growth of the local economy (including in rural areas)?\n· Will it support the enhancement of the District’s tourism and cultural offer?","Yes","Indirect","Low","Medium(10yrs)","Regional","Permanent/Irreversible","Minor Positive","Development in the Derby Fringe is anticipated to improve the economy in the north of South Derbyshire district, and also allow access to Derby City, providing opportunities for businesses and employment. Additionally, development in Swadlincote and Key Service Villages has potential to improve the economy in these more rural areas through encouraging investment, and providing affordable housing for workers.","Yes"]
["S07 Employment\nTo create greater employment opportunities and higher value jobs across the whole District","· Will it help to improve skills levels and access to training within the District?\n· Will it reduce unemployment rates overall and reduce disparities which exist across different parts of the District?","Yes","Indirect","High","Medium/Long","Regional","Permanent/Irreversible","Minor Positive","Development in the Derby Fringe area is well located close to a number of large employment opportunities, including the Toyota manufacturing site, East Midlands Freeport, and Rolls Royce, in addition to having good access to employment in Derby City centre. Additionally, Swadlincote is an employment hub. As a result, housing provision in these areas is anticipated to provide good access to employment opportunities for residents. However, whilst increased quantities of housing development in Swadlincote and key service villages could provide worker housing for those employed in these areas it may also result in increased commuting out of South Derbyshire in order to access employment.","Yes"]
["S08 Infrastructure\nTo deliver improved infrastructure to support growth and economic competitiveness of urban and rural businesses and communities.","· Will it minimise the impact of traffic congestion on the strategic and local road network through the delivery of new or enhanced transport infrastructure?\n· Will it provide opportunities to access key services, including doctor’s surgeries, education facilities, employment and town, local or village centres by means other than car?\n· Will it make the best use of other infrastructure which serves new development?","No","Direct","Medium","Medium(10yrs)","Regional","Permanent/Irreversible","Minor Negative","It is anticipated that development focused within Derby Fringe has potential to reduce congestion on the local road network, as well as providing access to services located within Derby. However, it is anticipated that development within Swadlincote and key service villages may increase congestion on the local road network due to limited public transport availability, which could increase reliance on private vehicles when accessing key services. Whilst services may be provided in Swadlincote it is unlikely that key service villages will be able to provide the same level of services. ","Yes"]
["S09 Sustainable Travel\nTo promote sustainable travel habits including walking, cycling and public transport (bus and rail) usage.  ","· Will it reduce journey lengths and times? \n· Will it maximise opportunities for walking and cycling?\n· Will it maximise opportunities to access public transport provision?","Yes","Direct","Medium","Medium(10yrs)","Regional","Permanent/Irreversible","Minor Negative","Development within Derby Fringe has potential to improve access to sustainable transport modes into Derby, including through public transport, therefore minimising private vehicle use. Swadlincote also has good connections to public and active travel modes. However, development in key service villages may present barriers in accessing public and active travel modes due to limited connectivity, increasing private vehicle reliance and the need to travel further for services.","Yes"]
["S010 Town and Village Centres\nTo ensure that town and village centres are vibrant and viable.","· Will it improve existing shopping facilities within town and village centres? \n· Will it help safeguard existing town and village centres?","Yes","Indirect","Medium","Medium/Long","District-wide","Permanent/Irreversible","Minor Positive","This option splits development between the Derby Fringe, Swadlincote and key service villages. There is potential for development located in the Derby Fringe to draw development away from local town and village centres. However, due to the proportion of housing development proposed within the Derby Fringe in this option, this is not anticipated to restrict the growth and vitality of local centres elsewhere in South Derbyshire. Additionally, development located in Swadlincote and key service villages should support town and village centres, encouraging the growth and vitality of these centres.","Yes"]
["S011 Resources\nTo minimise waste and ensure the sustainable use and protection of natural resources including greenfield land, soil and minerals resources.  ","· Will it enhance opportunities for increased levels of recycling in the District?\n· Will it improve or remediate contaminated land or reuse previously developed land which has not been restored?\n· Will it protect Best and Most Versatile (BMV) Agricultural Land?\n· Will it avoid the sterilisation of minerals resources?","Yes","Direct","High","Medium/Long","Localised","Permanent/Irreversible","Significant Negative","The Derby Fringe area largely consists of agricultural land, some of which is Grade 3 agricultural land. Additionally, it is anticipated that development around Swadlincote and key service villages would require land take of greenfield land that is currently utilised as agricultural land. Development will subsequently lead to the irreversible loss of greenfield land, and potentially soils considered as the 'best and most versatile'.","Yes"]
["S012 Pollution\nTo minimise water, air, light and noise pollution and ensure that future growth does not lead to the further deterioration of environmental conditions.","· Will it contribute to improvements in water quality in the District?\n· Will it avoid increasing noise levels locally or introducing incompatible uses into an already noisy location?\n· Will it avoid deterioration in air quality within the District?\n· Will it avoid exacerbating light pollution by keeping external lighting to the minimum required for safety and security?","Yes","Direct","Low","Medium(10yrs)","Localised","Permanent/Irreversible","Minor Negative","Derby Fringe has high noise pollution and some light pollution, whilst Swadlincote has higher levels of light pollution than the rest of South Derbyshire. It is likely that development in this area will increase both noise and light pollution, and thus exacerbate existing issues. ","Yes"]
["S013 Contributions to Climate Change \nTo reduce the District’s contribution towards the emission of climate change gases.","· Will it provide opportunities to access local services and facilities by public transport walking or cycling?\n· Will it support the delivery of renewable energy capacity (including small scale or community energy projects)?\n· Will it support the shift toward usage of electric and ultralow emissions vehicles? ","Yes","Indirect","Low","Medium/Long","District-wide","Permanent/Reversible","Minor Negative","During construction there may be increase construction traffic and HGVs which could effect accessibility and result in driver delays. This may also contribute to increased emissions. However, it is anticipated that development focused within Derby Fringe has potential to improve access to sustainable transport modes into Derby, including through buses and therefore may aid in reducing the emission of greenhouse gases from private vehicles. This option also has potential to deliver new housing in areas with restricted access to sustainable transport modes within South Derbyshire, therefore this may increase reliance on private vehicles and increased greenhouse gas emissions.","Yes"]
["S014 Adaptation to Climate Change \nTo manage the effects of climate change including flood risk, reduced water availability and overheating.","· Will it minimise flood risk?\n· Will it include provision of sustainable urban drainage which mimic natural drainage patterns?\n· Will it contribute towards sustainable water use?","Yes","Direct","Medium","Medium/Long","Localised","Permanent/Irreversible","Significant Negative","Development on greenfield land has potential to reduce climate resilience through reducing green infrastructure provision within South Derbyshire and the Derby Fringe. Areas of the Derby Fringe are also located within flood zones 2 and 3 and there is potential for development within key service villages to intersect with flood zones 2 and 3. Therefore, increased development in these areas may exacerbate flood risk.","Yes"]
["S015 Townscape and Historic Environment\nTo conserve and enhance the townscape, historic environment, heritage assets (including known and unknown archaeological sites) and their settings. ","· Will it protect and enhance the condition and setting of historic, cultural, architectural and archaeological features in South Derbyshire?\n· Does it improve the quality of the built environment, and respect and protect existing townscape character?\n· Will it improve access to, and understanding of, the District’s historic and cultural assets for enjoyment and educational purposes?","Yes","Direct","Medium","Long(20+yrs)","Localised","Permanent/Irreversible","Uncertain","Development arising from this spatial strategy option has potential to alter the setting of heritage assets located in the Derby Fringe and around Swadlincote and key service villages. This option has potential to improve the setting of the townscape on the Derby Fringe. There is potential for alteration of the townscape character within key service villages as a result of development which may be delivered. However, this will be determined by individual site location.","Yes"]
["S016 Landscape\nTo conserve and enhance the District’s landscape character.","· Does it respect and protect existing landscape character?\n· Will it protect sensitive landscapes including those within the World Heritage Site or its buffer or Special Landscape Areas?\n· Will it safeguard landscape features such as hedgerows?\n· Will it avoid intrusion into the greenbelt?","Yes","Direct","High","Long(20+yrs)","Localised","Permanent/Irreversible","Uncertain","Development on greenfield land in the Derby Fringe land is anticipated to result in loss of landscape features, and alteration of landscape character and visual amenity. This option could involve development sites in or on the edge of Swadlincote and the key service villages across the district and could therefore result in more widespread negative effects on landscape. However, this will be determined by individual site location. ","Yes"]

{"sheet":"Site_2","index":10,"n_rows":27,"n_cols":22,"rows_kept":27,"cut":false,"hidden":true,"merged":[[9,0,9,2],[9,3,9,6],[9,7,9,17]]}
["Site Name",null,"Site_2"]
["Site Address",null,"Thulston Fields"]
["Town/Locality",null,"Elvaston"]
["Est Housing Yield/Employment Space",null,"1750 dwellings"]
["Site Area (ha)",null,108]
["Site Description",null,"The site suggests the provision of:\n- A new local centre\n- A new primary school (including playing fields)\n- Open space\n- New recreation facilities (including sports pitches, play space, community orchard)\n"]
["Greenfield/Brownfield",null,"Greenfield"]
["Assumptions Made",null,"This allocation will work alongside the policies set out in the South Derbyshire Local Plan Part 1."]
[]
["SA Framework",null,null,"GIS Inputs",null,null,null,"SA Policy Assessment"]
["SA objective","SA","SA sub-objective","GIS Data Available?","R","A","G","Direct/\nIndirect","Magnitude","Duration","Spatial Extent","Permanence/ Reversibility","Significance","Description of potential effects","Potential for cumulative effects? ","Policy Mitigation","Mitigation Recommendations","Enhancement Recommendation","SDDC Comments",null,null,"Link "]
["S01 Biodiversity\nTo safeguard and enhance biodiversity (including BAP habitats and species) and geodiversity through biodiversity net gain and improve connectivity between, and access to, green spaces and functional habitats.","S01","· Will it conserve and enhance natural or semi natural habitats including internationally, nationally and locally designated wildlife sites, or create new wildlife habitats?\n· Will it protect BAP or protected species and contribute to the delivery of new, or safeguard existing BAP priority species and habitats?\n· Will it protect sites of geological importance?","Yes",{"$f":"COUNTIFS(INDIRECT(\"RAG!$C$\"&$V12&\":$AX$\"&$V12),E$11,#REF!,$B12)","v":{"$error":"#REF!"}},{"$f":"COUNTIFS(INDIRECT(\"RAG!$C$\"&$V12&\":$AX$\"&$V12),F$11,#REF!,$B12)","v":{"$error":"#REF!"}},{"$f":"COUNTIFS(INDIRECT(\"RAG!$C$\"&$V12&\":$AX$\"&$V12),G$11,#REF!,$B12)","v":{"$error":"#REF!"}},"Direct","Medium","Medium/Long","Localised","Permanent/Irreversible","Significant Positive","There are no internationally designated/BAP species or habitats located on or near to this site, nor are there any locally designated wildlife sites nearby. Therefore, development of this site is not expected to alter current biodiversity or geodiversity. It is assumed that this allocation works alongside Policy BNE3 Biodiversity, which requires development to avoid any adverse impact on sites of nature conservation value, as well as deliver a minimum of 10% BNG. Therefore, a potential significant positive effect is identified.","Yes",null,null,"The site should be required to implement blue/green infrastructure where possible, particularly where the site can be connected to the Derby City Green Wedge. The site should also maintain as much existing vegetation as possible.",null,null,null,{"$f":"MATCH($C$1,#REF!, 0)","v":{"$error":"#REF!"}}]
["S02 Housing\nTo ensure everyone has access to sustainable housing, which is affordable, and meets the needs of all residents including the elderly and other vulnerable groups and will support the vitality of existing communities and settlements. ","S02","· Will it reduce the number of households waiting for accommodation or accepted as homeless?\n· Will it increase the number and mix of housing? \n· Will it improve the suitability of new homes for older and disabled people?\n· Will it provide affordable housing for those unable to access market housing?\n· Will it meet the needs of the travelling community and show people?\n· Will it secure infrastructure or community facilities?","Yes",{"$f":"COUNTIFS(INDIRECT(\"RAG!$C$\"&$V13&\":$AX$\"&$V13),E$11,#REF!,$B13)","v":{"$error":"#REF!"}},{"$f":"COUNTIFS(INDIRECT(\"RAG!$C$\"&$V13&\":$AX$\"&$V13),F$11,#REF!,$B13)","v":{"$error":"#REF!"}},{"$f":"COUNTIFS(INDIRECT(\"RAG!$C$\"&$V13&\":$AX$\"&$V13),G$11,#REF!,$B13)","v":{"$error":"#REF!"}},"Direct","Medium","Long(20+yrs)","Localised","Permanent/Irreversible","Significant Positive","The site proposes to provide up to 1750 dwellings. It is assumed that this allocation works alongside Policy H20 Affordable Housing, which requires developments within 10 or more dwellings to provide 40% of the gross number of dwellings in the form of  'affordable housing', and alongside Policy H19 Housing Balance and Custom/Self-build, which requires developments to provide a mixed size and tenure of dwellings. The site plan also highlights that the site will aim to provide infrastructure/community facilities, including a primary school. Therefore, a potential significant positive effect is identified.","Yes",null,null,null,null,null,null,{"$f":"MATCH($C$1,#REF!, 0)","v":{"$error":"#REF!"}}]
["S03 Accessibility and Health\nTo improve local accessibility to healthcare, education, employment, retail facilities and recreational resources (including open spaces and sports facilities) and enhance wellbeing, promoting healthy and sustainable lifestyles.","S03","· Will it promote healthy lifestyles?\n· Will it deliver new, or contribute to the expansion or improvement of existing open spaces, schools or healthcare facilities within reasonable walking distance?\n· Will it deliver growth within reasonable walking distance to a planned or existing major employment area (5ha +) or town centre?\n· Will it improve opportunities for active travel including walking and cycling?\n· Will it deliver services or facilities on-site or elsewhere within the District? ","Yes",{"$f":"COUNTIFS(INDIRECT(\"RAG!$C$\"&$V14&\":$AX$\"&$V14),E$11,#REF!,$B14)","v":{"$error":"#REF!"}},{"$f":"COUNTIFS(INDIRECT(\"RAG!$C$\"&$V14&\":$AX$\"&$V14),F$11,#REF!,$B14)","v":{"$error":"#REF!"}},{"$f":"COUNTIFS(INDIRECT(\"RAG!$C$\"&$V14&\":$AX$\"&$V14),G$11,#REF!,$B14)","v":{"$error":"#REF!"}},"N/A","N/A","N/A","N/A","N/A","Neutral","The site has good access to a primary school which currently has capacity.  However, the site has poor access to: a secondary school which is 3km walking distance (with capacity), a GP surgery (over 400m walking distance), and an existing employment site (over 800m walking distance). Mitigation will be provided by Policy INF1, which highlights that new development will only be permitted if necessary infrastructure (both on- and off-site) is already in place. It can therefore be assumed that infrastructure to support growth will be delivered alongside development. Therefore, a neutral effect is identified.","Yes","Policy INF1 Infrastructure and Developer Contributions will only permit development if necessary infrastructure (both on- and off-site) is already in place.",null,"The site should be required to provide infrastructure/community facilities to support growth, such as primary/secondary schools and employment land. ",null,null,null,{"$f":"MATCH($C$1,#REF!, 0)","v":{"$error":"#REF!"}}]
["S04 Quality of Life\nTo create safe and attractive places which contribute towards quality of life and community cohesion.","S04","· Will it contribute towards reducing crime or fear of crime?\n· Will it provide attractive places which provide opportunities for communities to mix and meet?","No",null,null,null,"N/A","N/A","N/A","N/A","N/A","Neutral","It is assumed that this allocation works alongside Policy BNE1 Design Excellence, which requires developments to be designed to minimise opportunities for crime and anti-social behaviour, and encourage diversity and social interaction. The development of this site in isolation is unlikely to contribute towards designing out crime or enhancing community cohesion. Therefore, a neutral effect is identified.","No","Policy BNE1 Design Excellence requires developments to be designed to minimise opportunities for crime and anti-social behaviour, and encourage diversity and social interaction.",null,null,null,null,null,{"$f":"MATCH($C$1,#REF!, 0)","v":{"$error":"#REF!"}}]
["S05 Inequalities\nEnsure all residents have equitable access to employment, education, community services and facilities irrespective of race, religion, sex, age, sexual orientation, disability, gender reassignment, marriage and civil partnership or pregnancy/maternity.","S05","· Ensure the option / policy does not have an adverse/ discriminatory impact on protected characteristics/ equality groups?\n· Will it narrow the inequality gap between the richest and poorest in the District?\n· Will it reduce inequalities associated with deprivation across the District?","Yes",{"$f":"COUNTIFS(INDIRECT(\"RAG!$C$\"&$V16&\":$AX$\"&$V16),E$11,#REF!,$B16)","v":{"$error":"#REF!"}},{"$f":"COUNTIFS(INDIRECT(\"RAG!$C$\"&$V16&\":$AX$\"&$V16),F$11,#REF!,$B16)","v":{"$error":"#REF!"}},{"$f":"COUNTIFS(INDIRECT(\"RAG!$C$\"&$V16&\":$AX$\"&$V16),G$11,#REF!,$B16)","v":{"$error":"#REF!"}},"N/A","N/A","N/A","N/A","N/A","Neutral","This site is within a low IMD deprivation area. However, development of this site alone will not necessarily reduce the gap between the richest and poorest in the District.","Yes",null,null,null,null,null,null,{"$f":"MATCH($C$1,#REF!, 0)","v":{"$error":"#REF!"}}]
["S06 Economy\nTo deliver growth in key employment sectors and support the creation of new and retention of existing businesses in urban and rural areas.","S06","· Will it encourage the creation of new businesses and existing businesses to grow?\n· Will it encourage economic diversification?\n· Will it help support and encourage the growth of the local economy (including in rural areas)?\n· Will it support the enhancement of the District’s tourism and cultural offer?","Yes",{"$f":"COUNTIFS(INDIRECT(\"RAG!$C$\"&$V17&\":$AX$\"&$V17),E$11,#REF!,$B17)","v":{"$error":"#REF!"}},{"$f":"COUNTIFS(INDIRECT(\"RAG!$C$\"&$V17&\":$AX$\"&$V17),F$11,#REF!,$B17)","v":{"$error":"#REF!"}},{"$f":"COUNTIFS(INDIRECT(\"RAG!$C$\"&$V17&\":$AX$\"&$V17),G$11,#REF!,$B17)","v":{"$error":"#REF!"}},"Direct","Low","Medium/Long","Localised","Permanent/Irreversible","Minor Positive","The site will not deliver any employment space, although development here could indirectly support existing businesses within Aston-on-Trent local centre and Derby City. Therefore, a potential minor positive effect is identified.","Yes",null,null,null,null,null,null,{"$f":"MATCH($C$1,#REF!, 0)","v":{"$error":"#REF!"}}]
["S07 Employment\nTo create greater employment opportunities and higher value jobs across the whole District","S07","· Will it help to improve skills levels and access to training within the District?\n· Will it reduce unemployment rates overall and reduce disparities which exist across different parts of the District?","Yes",{"$f":"COUNTIFS(INDIRECT(\"RAG!$C$\"&$V18&\":$AX$\"&$V18),E$11,#REF!,$B18)","v":{"$error":"#REF!"}},{"$f":"COUNTIFS(INDIRECT(\"RAG!$C$\"&$V18&\":$AX$\"&$V18),F$11,#REF!,$B18)","v":{"$error":"#REF!"}},{"$f":"COUNTIFS(INDIRECT(\"RAG!$C$\"&$V18&\":$AX$\"&$V18),G$11,#REF!,$B18)","v":{"$error":"#REF!"}},"Direct","Low","Medium/Long","Localised","Permanent/Irreversible","Significant Negative","The site will not deliver any employment space, and it located more than 800m from an existing employment centre. Therefore, a potential significant negative effect is identified.","No",null,"Due to the location of the site, this impact cannot be mitigated.",null,null,null,null,{"$f":"MATCH($C$1,#REF!, 0)","v":{"$error":"#REF!"}}]
["S08 Infrastructure\nTo deliver improved infrastructure to support growth and economic competitiveness of urban and rural businesses and communities.","S08","· Will it minimise the impact of traffic congestion on the strategic and local road network through the delivery of new or enhanced transport infrastructure?\n· Will it provide opportunities to access key services, including doctor’s surgeries, education facilities, employment and town, local or village centres by means other than car?\n· Will it make the best use of other infrastructure which serves new development?","No",{"$f":"COUNTIFS(INDIRECT(\"RAG!$C$\"&$V19&\":$AX$\"&$V19),E$11,#REF!,$B19)","v":{"$error":"#REF!"}},{"$f":"COUNTIFS(INDIRECT(\"RAG!$C$\"&$V19&\":$AX$\"&$V19),F$11,#REF!,$B19)","v":{"$error":"#REF!"}},{"$f":"COUNTIFS(INDIRECT(\"RAG!$C$\"&$V19&\":$AX$\"&$V19),G$11,#REF!,$B19)","v":{"$error":"#REF!"}},"N/A","N/A","N/A","N/A","N/A","Neutral","The site has good access to a primary school which currently has capacity.  However, the site has poor access to: a secondary school which is 3km walking distance (with capacity), a GP surgery (over 400m walking distance), and an existing employment site (over 800m walking distance). Mitigation will be provided by Policy INF1, which highlights that new development will only be permitted if necessary infrastructure (both on- and off-site) is already in place; this includes the provision of community facilities. It can therefore be assumed that infrastructure to support growth will be delivered alongside development. Therefore, a neutral effect is identified.","No","Policy INF1 Infrastructure and Developer Contributions will only permit development if necessary infrastructure (both on- and off-site) is already in place.",null,null,null,null,null,{"$f":"MATCH($C$1,#REF!, 0)","v":{"$error":"#REF!"}}]
["S09 Sustainable Travel\nTo promote sustainable travel habits including walking, cycling and public transport (bus and rail) usage.  ","S09","· Will it reduce journey lengths and times? \n· Will it maximise opportunities for walking and cycling?\n· Will it maximise opportunities to access public transport provision?","Yes",{"$f":"COUNTIFS(INDIRECT(\"RAG!$C$\"&$V20&\":$AX$\"&$V20),E$11,#REF!,$B20)","v":{"$error":"#REF!"}},{"$f":"COUNTIFS(INDIRECT(\"RAG!$C$\"&$V20&\":$AX$\"&$V20),F$11,#REF!,$B20)","v":{"$error":"#REF!"}},{"$f":"COUNTIFS(INDIRECT(\"RAG!$C$\"&$V20&\":$AX$\"&$V20),G$11,#REF!,$B20)","v":{"$error":"#REF!"}},"N/A","N/A",null,"N/A","N/A","Uncertain","The site is more than 800m from a train station, more than 400m from a bus stop, and does not connect to existing cycle routes. There are also issues surrounding access to the site, which is noted as creating issues on the wider road network, despite proposed mitigation. Mitigation is provided by Policy INF1, which highlights that new development will only be permitted if necessary infrastructure (both on- and off-site) is already in place; this includes the provision and improvement of transport infrastructure. Due to the issues identified in relation to the road network however, it is it is not clear whether all potential effects can be minimised through mitigation. Therefore, an uncertain effect is identified.","No","Policy INF1 Infrastructure and Developer Contributions will only permit development if necessary infrastructure (both on- and off-site) is already in place. ",null,"The site should be required to provide improved transport facilities (e.g.: new bus stops), as well as connect to existing pedestrian/cycle routes where possible.",null,null,null,{"$f":"MATCH($C$1,#REF!, 0)","v":{"$error":"#REF!"}}]
["S010 Town and Village Centres\nTo ensure that town and village centres are vibrant and viable.","S010","· Will it improve existing shopping facilities within town and village centres? \n· Will it help safeguard existing town and village centres?","Yes",{"$f":"COUNTIFS(INDIRECT(\"RAG!$C$\"&$V21&\":$AX$\"&$V21),E$11,#REF!,$B21)","v":{"$error":"#REF!"}},{"$f":"COUNTIFS(INDIRECT(\"RAG!$C$\"&$V21&\":$AX$\"&$V21),F$11,#REF!,$B21)","v":{"$error":"#REF!"}},{"$f":"COUNTIFS(INDIRECT(\"RAG!$C$\"&$V21&\":$AX$\"&$V21),G$11,#REF!,$B21)","v":{"$error":"#REF!"}},"Direct","Medium","Medium/Long","Localised","Permanent/Irreversible","Minor Negative","The site is not located within or adjacent to a town or village centre (it is located on the edge of Derby City, and around 1.5km from the village of Aston on Trent). The development of a new local centre within the site would provide local facilities for new residents, enabling some self containment. These facilities would not be designed to provide facilities for the wider area but residents may not support existing town and village centres. Therefore, a potential minor negative effect is identified.","Yes",null,"Development proposals could be accompanied by an assessment of the impact of the development on the local economy. ",null,null,null,null,{"$f":"MATCH($C$1,#REF!, 0)","v":{"$error":"#REF!"}}]
["S011 Resources\nTo minimise waste and ensure the sustainable use and protection of natural resources including greenfield land, soil and minerals resources.  ","S011","· Will it enhance opportunities for increased levels of recycling in the District?\n· Will it improve or remediate contaminated land or reuse previously developed land which has not been restored?\n· Will it protect Best and Most Versatile (BMV) Agricultural Land?\n· Will it avoid the sterilisation of minerals resources?","Yes",{"$f":"COUNTIFS(INDIRECT(\"RAG!$C$\"&$V22&\":$AX$\"&$V22),E$11,#REF!,$B22)","v":{"$error":"#REF!"}},{"$f":"COUNTIFS(INDIRECT(\"RAG!$C$\"&$V22&\":$AX$\"&$V22),F$11,#REF!,$B22)","v":{"$error":"#REF!"}},{"$f":"COUNTIFS(INDIRECT(\"RAG!$C$\"&$V22&\":$AX$\"&$V22),G$11,#REF!,$B22)","v":{"$error":"#REF!"}},"Direct","Low","Medium/Long","Localised","Permanent/Irreversible","Significant Negative","The site is located within  a sand and gravel mineral safeguarding zone. This site is also located on grade 2 and 3 agricultural land; development will subsequently lead to the irreversible loss of greenfield land, and soils considered as the 'best and most versatile'. The development of this site in isolation will likely have no influence on the levels of recycling across South Derbyshire. However, Policy BNE1 Design Excellence, will requires developments to provide adequate space for waste storage and collection. Therefore, as the loss of greenfield land/Grade 2 and 3 agricultural land cannot be mitigated, a potential significant negative effect is identified.","Yes","Policy BNE1 Design Excellence will require developments to provide adequate space for waste storage and collection.","Loss of greenfield land and Grade 2 and 3 agricultural land cannot be mitigated.",null,null,null,null,{"$f":"MATCH($C$1,#REF!, 0)","v":{"$error":"#REF!"}}]
["S012 Pollution\nTo minimise water, air, light and noise pollution and ensure that future growth does not lead to the further deterioration of environmental conditions.","S012","· Will it contribute to improvements in water quality in the District?\n· Will it avoid increasing noise levels locally or introducing incompatible uses into an already noisy location?\n· Will it avoid deterioration in air quality within the District?\n· Will it avoid exacerbating light pollution by keeping external lighting to the minimum required for safety and security?","Yes",{"$f":"COUNTIFS(INDIRECT(\"RAG!$C$\"&$V23&\":$AX$\"&$V23),E$11,#REF!,$B23)","v":{"$error":"#REF!"}},{"$f":"COUNTIFS(INDIRECT(\"RAG!$C$\"&$V23&\":$AX$\"&$V23),F$11,#REF!,$B23)","v":{"$error":"#REF!"}},{"$f":"COUNTIFS(INDIRECT(\"RAG!$C$\"&$V23&\":$AX$\"&$V23),G$11,#REF!,$B23)","v":{"$error":"#REF!"}},"N/A","N/A","N/A","N/A","N/A","Uncertain","The site currently experiences high noise pollution and high light pollution. It is likely that development at this scale will increase both noise and light pollution further. The A50 and A6 are located adjacent to the site so the site is currently exposed to some air pollution. It is likely that development at this scale will increase air pollution in South Derbyshire, as well as in Derby City as residents may commute into the city for work. The site does not lie within the River Mease nutrient neutrality zone or any groundwater protection zones. The site should be required to implement noise and light mitigation measures, although it is not clear whether all potential effects can be minimised through mitigation. Therefore, an uncertain effect is identified.","Yes",null,"The site should be required to implement noise and light mitigation measures.",null,null,null,null,{"$f":"MATCH($C$1,#REF!, 0)","v":{"$error":"#REF!"}}]
["S013 Contributions to Climate Change \nTo reduce the District’s contribution towards the emission of climate change gases.","S013","· Will it provide opportunities to access local services and facilities by public transport walking or cycling?\n· Will it support the delivery of renewable energy capacity (including small scale or community energy projects)?\n· Will it support the shift toward usage of electric and ultralow emissions vehicles? ","Yes",{"$f":"COUNTIFS(INDIRECT(\"RAG!$C$\"&$V24&\":$AX$\"&$V24),E$11,#REF!,$B24)","v":{"$error":"#REF!"}},{"$f":"COUNTIFS(INDIRECT(\"RAG!$C$\"&$V24&\":$AX$\"&$V24),F$11,#REF!,$B24)","v":{"$error":"#REF!"}},{"$f":"COUNTIFS(INDIRECT(\"RAG!$C$\"&$V24&\":$AX$\"&$V24),G$11,#REF!,$B24)","v":{"$error":"#REF!"}},"N/A","N/A","N/A","N/A","N/A","Neutral","The site is more than 600m of a public EV charger. However, Policy INF2 Sustainable Transport will require the development to make provision for EV chargers. Additionally, the sites location (near to Derby City) may assist in the development of heat networks incorporating new homes, providing low carbon heating for future residents. Therefore, a neutral effect is identified.","No","Policy INF2 Sustainable Transport will require  developments to make provision for EV chargers.",null,"The site should be built to low-carbon standards with high levels of energy efficiency and individual energy generation technologies (e.g.: heat source pumps, solar PV) being be promoted where possible.",null,null,null,{"$f":"MATCH($C$1,#REF!, 0)","v":{"$error":"#REF!"}}]
["S014 Adaptation to Climate Change \nTo manage the effects of climate change including flood risk, reduced water availability and overheating.","S014","· Will it minimise flood risk?\n· Will it include provision of sustainable urban drainage which mimic natural drainage patterns?\n· Will it contribute towards sustainable water use?","Yes",{"$f":"COUNTIFS(INDIRECT(\"RAG!$C$\"&$V25&\":$AX$\"&$V25),E$11,#REF!,$B25)","v":{"$error":"#REF!"}},{"$f":"COUNTIFS(INDIRECT(\"RAG!$C$\"&$V25&\":$AX$\"&$V25),F$11,#REF!,$B25)","v":{"$error":"#REF!"}},{"$f":"COUNTIFS(INDIRECT(\"RAG!$C$\"&$V25&\":$AX$\"&$V25),G$11,#REF!,$B25)","v":{"$error":"#REF!"}},"Direct","Medium","Medium/Long","Localised","Permanent/Irreversible","Minor Negative","Although the majority of the site lies within Flood Zone 1, an area of the site lies within Flood Zone 2 and within 1000m of a watercourse, which may place development on the site at risk of flooding. However, Policy SD2 Flood Risk will require the site to incorporate flood risk mitigation, such as SuDs. Although this won't eradicate flood risk, it will reduce the likelihood of a flood risk event taking place. Therefore, as the site is still at risk of flood events following policy mitigation, a potential minor negative effect is identified.","No","Policy SD2 Flood Risk will require developments to incorporate flood risk mitigation, such as SuDs. ",null,null,null,null,null,{"$f":"MATCH($C$1,#REF!, 0)","v":{"$error":"#REF!"}}]
["S015 Townscape and Historic Environment\nTo conserve and enhance the townscape, historic environment, heritage assets (including known and unknown archaeological sites) and their settings. ","S015","· Will it protect and enhance the condition and setting of historic, cultural, architectural and archaeological features in South Derbyshire?\n· Does it improve the quality of the built environment, and respect and protect existing townscape character?\n· Will it improve access to, and understanding of, the District’s historic and cultural assets for enjoyment and educational purposes?","Yes",{"$f":"COUNTIFS(INDIRECT(\"RAG!$C$\"&$V26&\":$AX$\"&$V26),E$11,#REF!,$B26)","v":{"$error":"#REF!"}},{"$f":"COUNTIFS(INDIRECT(\"RAG!$C$\"&$V26&\":$AX$\"&$V26),F$11,#REF!,$B26)","v":{"$error":"#REF!"}},{"$f":"COUNTIFS(INDIRECT(\"RAG!$C$\"&$V26&\":$AX$\"&$V26),G$11,#REF!,$B26)","v":{"$error":"#REF!"}},"Direct","Low","Medium/Long","Localised","Permanent/Irreversible","Significant Positive","The site contributes to the protection and enhancement of the townscape and it's historic environment, as it is not within close proximity to any designated heritage assets. Therefore, a potential significant positive effect is identified.","No",null,null,null,null,null,null,{"$f":"MATCH($C$1,#REF!, 0)","v":{"$error":"#REF!"}}]
["S016 Landscape\nTo conserve and enhance the District’s landscape character.","S016","· Does it respect and protect existing landscape character?\n· Will it protect sensitive landscapes including those within the World Heritage Site or its buffer or Special Landscape Areas?\n· Will it safeguard landscape features such as hedgerows?\n· Will it avoid intrusion into the greenbelt?","Yes",{"$f":"COUNTIFS(INDIRECT(\"RAG!$C$\"&$V27&\":$AX$\"&$V27),E$11,#REF!,$B27)","v":{"$error":"#REF!"}},{"$f":"COUNTIFS(INDIRECT(\"RAG!$C$\"&$V27&\":$AX$\"&$V27),F$11,#REF!,$B27)","v":{"$error":"#REF!"}},{"$f":"COUNTIFS(INDIRECT(\"RAG!$C$\"&$V27&\":$AX$\"&$V27),G$11,#REF!,$B27)","v":{"$error":"#REF!"}},"Direct","Low","Medium/Long","Localised","Permanent/Irreversible","Significant Negative","Although the does not lie within any areas of multiple environmental sensitivity, it does lie within the Greenbelt and a national character area. Development on Greenbelt land would be permanent. Additionally, the development of this site could lead to the 'trapping in' of current green wedges within Derby City, cutting these greenfield land areas off from the surrounding open land. This could alter the current landscape, both within South Derbyshire and Derby City. Mitigation will be provided by Policy BNE4 Landscape Character and Local Distinctiveness, which will require developments to conserve local distinctiveness, retain landscape features (e.g.: hedgerows) and offset any damage to landscape features. The site should also link to existing green wedges within Derby City where possible, in order to minimise impacts of 'trapping', although it is not clear whether all potential effects can be minimised through mitigation. Therefore, as development on Greenbelt land cannot be mitigated, a potential significant negative effect is identified.","Yes","Policy BNE4 Landscape Character and Local Distinctiveness will require developments to conserve local distinctiveness, retain landscape features (e.g.: hedgerows) and offset any damage to landscape features.","Loss of Greenbelt land cannot be mitigated.","The site should link to existing green wedges within Derby City, in order to maintain a similar landscape pattern. ",null,null,null,{"$f":"MATCH($C$1,#REF!, 0)","v":{"$error":"#REF!"}}]

{"sheet":"Site_3","index":11,"n_rows":27,"n_cols":22,"rows_kept":27,"cut":false,"hidden":true,"merged":[[9,0,9,2],[9,3,9,6],[9,7,9,17]]}
["Site Name",null,"Site_3"]
["Site Address",null,"Land South of Mickleover"]
["Town/Locality",null,"Burnaston"]
["Est Housing Yield/Employment Space",null,"2500 homes"]
["Site Area (ha)",null,200]
["Site Description",null,"The site suggests the provision of:\n- Provision of Gypsy and Traveller pitches\n- A new local centre (including retail facilities)\n- A primary school\n- A secondary school\n- A sports hub\n- Financial contributions towards a secondary school and healthcare\n"]
["Greenfield/Brownfield",null,"Greenfield"]
["Assumptions Made",null,"This allocation will work alongside the policies set out in the South Derbyshire Local Plan Part 1."]
[]
["SA Framework",null,null,"GIS Inputs",null,null,null,"SA Policy Assessment"]
["SA objective","SA","SA sub-objective","GIS Data Available?","R","A","G","Direct/\nIndirect","Magnitude","Duration","Spatial Extent","Permanence/ Reversibility","Significance","Description of potential effects","Potential for cumulative effects? ","Policy Mitigation","Mitigation Recommendations","Enhancement Recommendation","SDDC Comments",null,null,"Link "]
["S01 Biodiversity\nTo safeguard and enhance biodiversity (including BAP habitats and species) and geodiversity through biodiversity net gain and improve connectivity between, and access to, green spaces and functional habitats.","S01","· Will it conserve and enhance natural or semi natural habitats including internationally, nationally and locally designated wildlife sites, or create new wildlife habitats?\n· Will it protect BAP or protected species and contribute to the delivery of new, or safeguard existing BAP priority species and habitats?\n· Will it protect sites of geological importance?","Yes",{"$f":"COUNTIFS(INDIRECT(\"RAG!$C$\"&$V12&\":$AX$\"&$V12),E$11,#REF!,$B12)","v":{"$error":"#REF!"}},{"$f":"COUNTIFS(INDIRECT(\"RAG!$C$\"&$V12&\":$AX$\"&$V12),F$11,#REF!,$B12)","v":{"$error":"#REF!"}},{"$f":"COUNTIFS(INDIRECT(\"RAG!$C$\"&$V12&\":$AX$\"&$V12),G$11,#REF!,$B12)","v":{"$error":"#REF!"}},"Direct","Medium","Medium/Long","Localised","Permanent/Irreversible","Significant Positive","There are no internationally designated/BAP species or habitats located on or near to this site, nor are there any locally designated wildlife sites nearby. The site is within 10m of a number of TPOs. However as this allocation works alongside Policy BNE3 Biodiversity, which requires development to avoid any adverse impact on sites of nature conservation value, as well as deliver a minimum of 10% BNG, it is very unlikely that these will be damaged or removed during development. Therefore, a potential significant positive effect is identified.","Yes",null,null,"The site should be required to implement blue/green infrastructure where possible, particularly where the site can be connected to the Derby City Green Wedge. The site should also maintain as much existing vegetation as possible.",null,null,null,{"$f":"MATCH($C$1,#REF!, 0)","v":{"$error":"#REF!"}}]
["S02 Housing\nTo ensure everyone has access to sustainable housing, which is affordable, and meets the needs of all residents including the elderly and other vulnerable groups and will support the vitality of existing communities and settlements. ","S02","· Will it reduce the number of households waiting for accommodation or accepted as homeless?\n· Will it increase the number and mix of housing? \n· Will it improve the suitability of new homes for older and disabled people?\n· Will it provide affordable housing for those unable to access market housing?\n· Will it meet the needs of the travelling community and show people?\n· Will it secure infrastructure or community facilities?","Yes",{"$f":"COUNTIFS(INDIRECT(\"RAG!$C$\"&$V13&\":$AX$\"&$V13),E$11,#REF!,$B13)","v":{"$error":"#REF!"}},{"$f":"COUNTIFS(INDIRECT(\"RAG!$C$\"&$V13&\":$AX$\"&$V13),F$11,#REF!,$B13)","v":{"$error":"#REF!"}},{"$f":"COUNTIFS(INDIRECT(\"RAG!$C$\"&$V13&\":$AX$\"&$V13),G$11,#REF!,$B13)","v":{"$error":"#REF!"}},"Direct","Medium","Medium/Long","Localised","Permanent/Irreversible","Significant Positive","The site proposes to provide up to 2500 dwellings. It is assumed that this allocation works alongside Policy H20 Affordable Housing, which requires developments within 10 or more dwellings to provide 40% of the gross number of dwellings in the form of  'affordable housing', and alongside Policy H19 Housing Balance and Custom/Self-build, which requires developments to provide a mixed size and tenure of dwellings. Therefore, a potential significant positive effect is identified.","Yes",null,null,null,null,null,null,{"$f":"MATCH($C$1,#REF!, 0)","v":{"$error":"#REF!"}}]
["S03 Accessibility and Health\nTo improve local accessibility to healthcare, education, employment, retail facilities and recreational resources (including open spaces and sports facilities) and enhance wellbeing, promoting healthy and sustainable lifestyles.","S03","· Will it promote healthy lifestyles?\n· Will it deliver new, or contribute to the expansion or improvement of existing open spaces, schools or healthcare facilities within reasonable walking distance?\n· Will it deliver growth within reasonable walking distance to a planned or existing major employment area (5ha +) or town centre?\n· Will it improve opportunities for active travel including walking and cycling?\n· Will it deliver services or facilities on-site or elsewhere within the District? ","Yes",{"$f":"COUNTIFS(INDIRECT(\"RAG!$C$\"&$V14&\":$AX$\"&$V14),E$11,#REF!,$B14)","v":{"$error":"#REF!"}},{"$f":"COUNTIFS(INDIRECT(\"RAG!$C$\"&$V14&\":$AX$\"&$V14),F$11,#REF!,$B14)","v":{"$error":"#REF!"}},{"$f":"COUNTIFS(INDIRECT(\"RAG!$C$\"&$V14&\":$AX$\"&$V14),G$11,#REF!,$B14)","v":{"$error":"#REF!"}},"N/A","N/A","N/A","N/A","N/A","Neutral","The site has good access to a primary school which currently has capacity.  However, the site has poor walking access to: a secondary school which is 3km walking distance (with capacity), a GP surgery, an existing employment site, and formal and informal recreation which are all over 800m walking distance. Policy INF1 highlights that new development will only be permitted if necessary infrastructure (both on- and off-site) is already in place. For example, the site plan references the provision for a new primary and secondary school, and a sports hub. It can therefore be determined that infrastructure to support growth will be delivered alongside development. Therefore, a neutral effect is identified.","Yes","Policy INF1 Infrastructure and Developer Contributions will only permit development if necessary infrastructure (both on- and off-site) is already in place.",null,"The site should be required to provide infrastructure/community facilities to support growth, such as primary/secondary schools and employment land. ",null,null,null,{"$f":"MATCH($C$1,#REF!, 0)","v":{"$error":"#REF!"}}]
["S04 Quality of Life\nTo create safe and attractive places which contribute towards quality of life and community cohesion.","S04","· Will it contribute towards reducing crime or fear of crime?\n· Will it provide attractive places which provide opportunities for communities to mix and meet?","No",null,null,null,"N/A","N/A","N/A","N/A","N/A","Neutral","It is assumed that this allocation works alongside Policy BNE1 Design Excellence, which requires developments to be designed to minimise opportunities for crime and anti-social behaviour, and encourage diversity and social interaction. The development of this site in isolation is unlikely to contribute towards designing out crime or enhancing community cohesion. Therefore, a neutral effect is identified.","No","Policy BNE1 Design Excellence requires developments to be designed to minimise opportunities for crime and anti-social behaviour, and encourage diversity and social interaction.",null,null,null,null,null,{"$f":"MATCH($C$1,#REF!, 0)","v":{"$error":"#REF!"}}]
["S05 Inequalities\nEnsure all residents have equitable access to employment, education, community services and facilities irrespective of race, religion, sex, age, sexual orientation, disability, gender reassignment, marriage and civil partnership or pregnancy/maternity.","S05","· Ensure the option / policy does not have an adverse/ discriminatory impact on protected characteristics/ equality groups?\n· Will it narrow the inequality gap between the richest and poorest in the District?\n· Will it reduce inequalities associated with deprivation across the District?","Yes",{"$f":"COUNTIFS(INDIRECT(\"RAG!$C$\"&$V16&\":$AX$\"&$V16),E$11,#REF!,$B16)","v":{"$error":"#REF!"}},{"$f":"COUNTIFS(INDIRECT(\"RAG!$C$\"&$V16&\":$AX$\"&$V16),F$11,#REF!,$B16)","v":{"$error":"#REF!"}},{"$f":"COUNTIFS(INDIRECT(\"RAG!$C$\"&$V16&\":$AX$\"&$V16),G$11,#REF!,$B16)","v":{"$error":"#REF!"}},"N/A","N/A","N/A","N/A","N/A","Neutral","This site is within a low IMD deprivation area. However, development of this site alone will not necessarily reduce the gap between the richest and poorest in the District. Therefore, a neutral effect is identified.","Yes",null,null,null,null,null,null,{"$f":"MATCH($C$1,#REF!, 0)","v":{"$error":"#REF!"}}]
["S06 Economy\nTo deliver growth in key employment sectors and support the creation of new and retention of existing businesses in urban and rural areas.","S06","· Will it encourage the creation of new businesses and existing businesses to grow?\n· Will it encourage economic diversification?\n· Will it help support and encourage the growth of the local economy (including in rural areas)?\n· Will it support the enhancement of the District’s tourism and cultural offer?","Yes",{"$f":"COUNTIFS(INDIRECT(\"RAG!$C$\"&$V17&\":$AX$\"&$V17),E$11,#REF!,$B17)","v":{"$error":"#REF!"}},{"$f":"COUNTIFS(INDIRECT(\"RAG!$C$\"&$V17&\":$AX$\"&$V17),F$11,#REF!,$B17)","v":{"$error":"#REF!"}},{"$f":"COUNTIFS(INDIRECT(\"RAG!$C$\"&$V17&\":$AX$\"&$V17),G$11,#REF!,$B17)","v":{"$error":"#REF!"}},"Direct","Low","Medium/Long","Localised","Permanent/Irreversible","Significant Positive","The site will deliver between 5-10ha of employment space. Development here could also indirectly support existing businesses within Findern local centre and Derby City. Therefore, a potential significant positive effect is identified.","Yes",null,null,null,null,null,null,{"$f":"MATCH($C$1,#REF!, 0)","v":{"$error":"#REF!"}}]
["S07 Employment\nTo create greater employment opportunities and higher value jobs across the whole District","S07","· Will it help to improve skills levels and access to training within the District?\n· Will it reduce unemployment rates overall and reduce disparities which exist across different parts of the District?","Yes",{"$f":"COUNTIFS(INDIRECT(\"RAG!$C$\"&$V18&\":$AX$\"&$V18),E$11,#REF!,$B18)","v":{"$error":"#REF!"}},{"$f":"COUNTIFS(INDIRECT(\"RAG!$C$\"&$V18&\":$AX$\"&$V18),F$11,#REF!,$B18)","v":{"$error":"#REF!"}},{"$f":"COUNTIFS(INDIRECT(\"RAG!$C$\"&$V18&\":$AX$\"&$V18),G$11,#REF!,$B18)","v":{"$error":"#REF!"}},"Direct","Low","Medium/Long","Localised","Permanent/Irreversible","Significant Positive","The site will deliver between 5-10ha of employment space, and is located around 1.5km from a large employment site (the Toyota manufacturing site). The site will also subsequently be located around 2km from the East Midlands Intermodal Park once built. There will subsequently be a large number of employment opportunities both on- and off-site for residents. Therefore, a potential significant positive effect is identified.","No",null,null,null,null,null,null,{"$f":"MATCH($C$1,#REF!, 0)","v":{"$error":"#REF!"}}]
["S08 Infrastructure\nTo deliver improved infrastructure to support growth and economic competitiveness of urban and rural businesses and communities.","S08","· Will it minimise the impact of traffic congestion on the strategic and local road network through the delivery of new or enhanced transport infrastructure?\n· Will it provide opportunities to access key services, including doctor’s surgeries, education facilities, employment and town, local or village centres by means other than car?\n· Will it make the best use of other infrastructure which serves new development?","No",{"$f":"COUNTIFS(INDIRECT(\"RAG!$C$\"&$V19&\":$AX$\"&$V19),E$11,#REF!,$B19)","v":{"$error":"#REF!"}},{"$f":"COUNTIFS(INDIRECT(\"RAG!$C$\"&$V19&\":$AX$\"&$V19),F$11,#REF!,$B19)","v":{"$error":"#REF!"}},{"$f":"COUNTIFS(INDIRECT(\"RAG!$C$\"&$V19&\":$AX$\"&$V19),G$11,#REF!,$B19)","v":{"$error":"#REF!"}},"N/A","N/A","N/A","N/A","N/A","Neutral","The site is not located near to existing infrastructure with the nearest secondary school being 3km walking distance (with capacity), and the nearest GP surgery, existing employment site, and formal and informal recreation sites being over 800m walking distance. However, Policy INF1 highlights that new development will only be permitted if necessary infrastructure (both on- and off-site) is already in place; this includes the provision of community facilities. It can therefore be determined that infrastructure to support growth will be delivered alongside development. Therefore, a neutral effect is identified.","No","Policy INF1 Infrastructure and Developer Contributions will only permit development if necessary infrastructure (both on- and off-site) is already in place.",null,null,null,null,null,{"$f":"MATCH($C$1,#REF!, 0)","v":{"$error":"#REF!"}}]
["S09 Sustainable Travel\nTo promote sustainable travel habits including walking, cycling and public transport (bus and rail) usage.  ","S09","· Will it reduce journey lengths and times? \n· Will it maximise opportunities for walking and cycling?\n· Will it maximise opportunities to access public transport provision?","Yes",{"$f":"COUNTIFS(INDIRECT(\"RAG!$C$\"&$V20&\":$AX$\"&$V20),E$11,#REF!,$B20)","v":{"$error":"#REF!"}},{"$f":"COUNTIFS(INDIRECT(\"RAG!$C$\"&$V20&\":$AX$\"&$V20),F$11,#REF!,$B20)","v":{"$error":"#REF!"}},{"$f":"COUNTIFS(INDIRECT(\"RAG!$C$\"&$V20&\":$AX$\"&$V20),G$11,#REF!,$B20)","v":{"$error":"#REF!"}},"Direct","Low",null,"Localised","Permanent/Irreversible","Minor Positive","The site currently lies within an acceptable distance to an existing bus stop, and to existing cycle routes. The site is more than 800m from a train station however. Policy INF1 highlights that new development will only be permitted if necessary infrastructure (both on- and off-site) is already in place; this includes the provision and improvement of transport infrastructure. For example, the site plan references the provision of new and upgrading pedestrian and cycle routes. This should improve travel within South Derbyshire, as well as into Derby City. It can therefore be determined that infrastructure to support growth will be delivered alongside development. Therefore, a potential minor positive effect is identified.","No","Policy INF1 Infrastructure and Developer Contributions will only permit development if necessary infrastructure (both on- and off-site) is already in place. ",null,"The site should be required to provide improved transport facilities (e.g.: new bus stops), as well as connect to existing pedestrian/cycle routes where possible.",null,null,null,{"$f":"MATCH($C$1,#REF!, 0)","v":{"$error":"#REF!"}}]
["S010 Town and Village Centres\nTo ensure that town and village centres are vibrant and viable.","S010","· Will it improve existing shopping facilities within town and village centres? \n· Will it help safeguard existing town and village centres?","Yes",{"$f":"COUNTIFS(INDIRECT(\"RAG!$C$\"&$V21&\":$AX$\"&$V21),E$11,#REF!,$B21)","v":{"$error":"#REF!"}},{"$f":"COUNTIFS(INDIRECT(\"RAG!$C$\"&$V21&\":$AX$\"&$V21),F$11,#REF!,$B21)","v":{"$error":"#REF!"}},{"$f":"COUNTIFS(INDIRECT(\"RAG!$C$\"&$V21&\":$AX$\"&$V21),G$11,#REF!,$B21)","v":{"$error":"#REF!"}},"Direct","Medium","Medium/Long","Localised","Permanent/Irreversible","Minor Negative","The site is not located within or adjacent to a town or village centre (it is located on the edge of Derby City, and around 1.5km from the village of Findern). The development of a new local centre within the site would provide local facilities for new residents, enabling some self containment. These facilities would not be designed to provide facilities for the wider area but residents may not support existing town and village centres. Therefore, a potential minor negative effect is identified.","Yes",null,"Development proposals could be accompanied by an assessment of the impact of the development on the local economy. ",null,null,null,null,{"$f":"MATCH($C$1,#REF!, 0)","v":{"$error":"#REF!"}}]
["S011 Resources\nTo minimise waste and ensure the sustainable use and protection of natural resources including greenfield land, soil and minerals resources.  ","S011","· Will it enhance opportunities for increased levels of recycling in the District?\n· Will it improve or remediate contaminated land or reuse previously developed land which has not been restored?\n· Will it protect Best and Most Versatile (BMV) Agricultural Land?\n· Will it avoid the sterilisation of minerals resources?","Yes",{"$f":"COUNTIFS(INDIRECT(\"RAG!$C$\"&$V22&\":$AX$\"&$V22),E$11,#REF!,$B22)","v":{"$error":"#REF!"}},{"$f":"COUNTIFS(INDIRECT(\"RAG!$C$\"&$V22&\":$AX$\"&$V22),F$11,#REF!,$B22)","v":{"$error":"#REF!"}},{"$f":"COUNTIFS(INDIRECT(\"RAG!$C$\"&$V22&\":$AX$\"&$V22),G$11,#REF!,$B22)","v":{"$error":"#REF!"}},"Direct","Low","Medium/Long","Localised","Permanent/Irreversible","Significant Negative","This site is located on grade 3 agricultural land; development will subsequently lead to the irreversible loss of greenfield land, and soils considered as the 'best and most versatile'. The site does not lie within a sand and gravel mineral safeguarding zone or a historic landfill site. The development of this site in isolation will likely have no influence on the levels of recycling across South Derbyshire. However, Policy BNE1 Design Excellence, will requires developments to provide adequate space for waste storage and collection. Therefore, as the loss of greenfield land/Grade 3 agricultural land cannot be mitigated, a potential significant negative effect is identified.","Yes","Policy BNE1 Design Excellence will require developments to provide adequate space for waste storage and collection.","Loss of greenfield land and Grade 3 agricultural land cannot be mitigated.",null,null,null,null,{"$f":"MATCH($C$1,#REF!, 0)","v":{"$error":"#REF!"}}]
["S012 Pollution\nTo minimise water, air, light and noise pollution and ensure that future growth does not lead to the further deterioration of environmental conditions.","S012","· Will it contribute to improvements in water quality in the District?\n· Will it avoid increasing noise levels locally or introducing incompatible uses into an already noisy location?\n· Will it avoid deterioration in air quality within the District?\n· Will it avoid exacerbating light pollution by keeping external lighting to the minimum required for safety and security?","Yes",{"$f":"COUNTIFS(INDIRECT(\"RAG!$C$\"&$V23&\":$AX$\"&$V23),E$11,#REF!,$B23)","v":{"$error":"#REF!"}},{"$f":"COUNTIFS(INDIRECT(\"RAG!$C$\"&$V23&\":$AX$\"&$V23),F$11,#REF!,$B23)","v":{"$error":"#REF!"}},{"$f":"COUNTIFS(INDIRECT(\"RAG!$C$\"&$V23&\":$AX$\"&$V23),G$11,#REF!,$B23)","v":{"$error":"#REF!"}},"N/A","N/A","N/A","N/A","N/A","Uncertain","The site currently experiences high noise pollution and some light pollution. It is likely that development at this scale will increase both noise and light pollution. The A38 and A516 are located adjacent to the site so the site is currently exposed to some air pollution. It is likely that development at this scale will increase air pollution in South Derbyshire, as well as in Derby City as residents may commute into the city for work. The site should be required to implement noise and light mitigation measures, although it is not clear whether all potential effects can be minimised through mitigation. Therefore, an uncertain effect is identified.","Yes",null,"The site should be required to implement noise and light mitigation measures.",null,null,null,null,{"$f":"MATCH($C$1,#REF!, 0)","v":{"$error":"#REF!"}}]
["S013 Contributions to Climate Change \nTo reduce the District’s contribution towards the emission of climate change gases.","S013","· Will it provide opportunities to access local services and facilities by public transport walking or cycling?\n· Will it support the delivery of renewable energy capacity (including small scale or community energy projects)?\n· Will it support the shift toward usage of electric and ultralow emissions vehicles? ","Yes",{"$f":"COUNTIFS(INDIRECT(\"RAG!$C$\"&$V24&\":$AX$\"&$V24),E$11,#REF!,$B24)","v":{"$error":"#REF!"}},{"$f":"COUNTIFS(INDIRECT(\"RAG!$C$\"&$V24&\":$AX$\"&$V24),F$11,#REF!,$B24)","v":{"$error":"#REF!"}},{"$f":"COUNTIFS(INDIRECT(\"RAG!$C$\"&$V24&\":$AX$\"&$V24),G$11,#REF!,$B24)","v":{"$error":"#REF!"}},"N/A","N/A","N/A","N/A","N/A","Neutral","The site is within 600m from an EV charger. However mitigation will be provided by Policy INF2 Sustainable Transport, which will require the development to make provision for EV chargers. Additionally, the sites location (near to Derby City) may assist in the development of heat networks incorporating new homes, providing low carbon heating for future residents. Therefore, a neutral effect is identified.","No","Policy INF2 Sustainable Transport will require  developments to make provision for EV chargers.",null,"The site should be built to low-carbon standards with high levels of energy efficiency and individual energy generation technologies (e.g.: heat source pumps, solar PV) being be promoted where possible.",null,null,null,{"$f":"MATCH($C$1,#REF!, 0)","v":{"$error":"#REF!"}}]
["S014 Adaptation to Climate Change \nTo manage the effects of climate change including flood risk, reduced water availability and overheating.","S014","· Will it minimise flood risk?\n· Will it include provision of sustainable urban drainage which mimic natural drainage patterns?\n· Will it contribute towards sustainable water use?","Yes",{"$f":"COUNTIFS(INDIRECT(\"RAG!$C$\"&$V25&\":$AX$\"&$V25),E$11,#REF!,$B25)","v":{"$error":"#REF!"}},{"$f":"COUNTIFS(INDIRECT(\"RAG!$C$\"&$V25&\":$AX$\"&$V25),F$11,#REF!,$B25)","v":{"$error":"#REF!"}},{"$f":"COUNTIFS(INDIRECT(\"RAG!$C$\"&$V25&\":$AX$\"&$V25),G$11,#REF!,$B25)","v":{"$error":"#REF!"}},"Direct","Medium","Medium/Long","Localised","Permanent/Irreversible","Minor Negative","Part of the site lies within Flood Zone 2 and within 1000m of a watercourse, which may place development on the site at risk of flooding. However, mitigation will be provided by Policy SD2 Flood Risk, which will require the site to incorporate flood risk mitigation, such as SuDs. Although this won't eradicate flood risk, it will reduce the likelihood of a flood risk event taking place. Therefore, as the site is still at risk of flood events following policy mitigation, a potential minor negative effect is identified.","No","Policy SD2 Flood Risk will require developments to incorporate flood risk mitigation, such as SuDs. \n",null,null,null,null,null,{"$f":"MATCH($C$1,#REF!, 0)","v":{"$error":"#REF!"}}]
["S015 Townscape and Historic Environment\nTo conserve and enhance the townscape, historic environment, heritage assets (including known and unknown archaeological sites) and their settings. ","S015","· Will it protect and enhance the condition and setting of historic, cultural, architectural and archaeological features in South Derbyshire?\n· Does it improve the quality of the built environment, and respect and protect existing townscape character?\n· Will it improve access to, and understanding of, the District’s historic and cultural assets for enjoyment and educational purposes?","Yes",{"$f":"COUNTIFS(INDIRECT(\"RAG!$C$\"&$V26&\":$AX$\"&$V26),E$11,#REF!,$B26)","v":{"$error":"#REF!"}},{"$f":"COUNTIFS(INDIRECT(\"RAG!$C$\"&$V26&\":$AX$\"&$V26),F$11,#REF!,$B26)","v":{"$error":"#REF!"}},{"$f":"COUNTIFS(INDIRECT(\"RAG!$C$\"&$V26&\":$AX$\"&$V26),G$11,#REF!,$B26)","v":{"$error":"#REF!"}},"Direct","Low","Medium/Long","Localised","Permanent/Irreversible","Significant Positive","The site does contribute to the protection and enhancement of the townscape and it's historic environment as it is not within close proximity to any designated heritage assets. Therefore, a potential significant positive effect is identified.","No",null,null,null,null,null,null,{"$f":"MATCH($C$1,#REF!, 0)","v":{"$error":"#REF!"}}]
["S016 Landscape\nTo conserve and enhance the District’s landscape character.","S016","· Does it respect and protect existing landscape character?\n· Will it protect sensitive landscapes including those within the World Heritage Site or its buffer or Special Landscape Areas?\n· Will it safeguard landscape features such as hedgerows?\n· Will it avoid intrusion into the greenbelt?","Yes",{"$f":"COUNTIFS(INDIRECT(\"RAG!$C$\"&$V27&\":$AX$\"&$V27),E$11,#REF!,$B27)","v":{"$error":"#REF!"}},{"$f":"COUNTIFS(INDIRECT(\"RAG!$C$\"&$V27&\":$AX$\"&$V27),F$11,#REF!,$B27)","v":{"$error":"#REF!"}},{"$f":"COUNTIFS(INDIRECT(\"RAG!$C$\"&$V27&\":$AX$\"&$V27),G$11,#REF!,$B27)","v":{"$error":"#REF!"}},"N/A","N/A","N/A","N/A","N/A","Uncertain","The site contributes towards protecting landscape character and sensitive landscapes as it does not lie within the Greenbelt or any areas of multiple environmental sensitivity. However, the development of this site could lead to the 'trapping in' of current green wedges within Derby City, cutting these greenfield land areas off from the surrounding open land. This could alter the current townscape, both within South Derbyshire and Derby City. The site should link to existing green wedges within Derby City where possible, in order to minimise impacts of 'trapping', although it is not clear whether all potential effects can be minimised through mitigation.  Therefore, an uncertain effect is identified.","Yes","Policy BNE4 Landscape Character and Local Distinctiveness will require developments to conserve local distinctiveness, retain landscape features (e.g.: hedgerows) and offset any damage to landscape features.","The site should link to existing green wedges within Derby City, in order to maintain a similar landscape pattern. ",null,null,null,null,{"$f":"MATCH($C$1,#REF!, 0)","v":{"$error":"#REF!"}}]

{"sheet":"Site_4","index":12,"n_rows":27,"n_cols":22,"rows_kept":27,"cut":false,"hidden":true,"merged":[[9,0,9,2],[9,3,9,6],[9,7,9,17]]}
["Site Name",null,"Site_4"]
["Site Address",null,"South of Littleover"]
["Town/Locality",null,"Twyford & Stenson and Stenson Fields"]
["Est Housing Yield/Employment Space",null,"7,200 dwellings"]
["Site Area (ha)",null,361]
["Site Description",null,"The site suggests the provision of:\n- A new primary school\n- A new train station linked to the South Derby Integrated Transport Link development"]
["Greenfield/Brownfield",null,"Greenfield"]
["Assumptions Made",null,"This allocation will work alongside the policies set out in the South Derbyshire Local Plan Part 1."]
[]
["SA Framework",null,null,"GIS Inputs",null,null,null,"SA Policy Assessment"]
["SA objective","SA","SA sub-objective","GIS Data Available?","R","A","G","Direct/\nIndirect","Magnitude","Duration","Spatial Extent","Permanence/ Reversibility","Significance","Description of potential effects","Potential for cumulative effects? ","Policy Mitigation","Mitigation Recommendations","Enhancement Recommendation","SDDC Comments",null,null,"Link "]
["S01 Biodiversity\nTo safeguard and enhance biodiversity (including BAP habitats and species) and geodiversity through biodiversity net gain and improve connectivity between, and access to, green spaces and functional habitats.","S01","· Will it conserve and enhance natural or semi natural habitats including internationally, nationally and locally designated wildlife sites, or create new wildlife habitats?\n· Will it protect BAP or protected species and contribute to the delivery of new, or safeguard existing BAP priority species and habitats?\n· Will it protect sites of geological importance?","Yes",{"$f":"COUNTIFS(INDIRECT(\"RAG!$C$\"&$V12&\":$AX$\"&$V12),E$11,#REF!,$B12)","v":{"$error":"#REF!"}},{"$f":"COUNTIFS(INDIRECT(\"RAG!$C$\"&$V12&\":$AX$\"&$V12),F$11,#REF!,$B12)","v":{"$error":"#REF!"}},{"$f":"COUNTIFS(INDIRECT(\"RAG!$C$\"&$V12&\":$AX$\"&$V12),G$11,#REF!,$B12)","v":{"$error":"#REF!"}},"N/A","N/A","N/A","N/A","N/A","Neutral","There are no designations for nature conservation within the site. The site is located within 50m of a LIG however, and contains a number of TPOs. Development may subsequently negatively impact on biodiversity. However, mitigation will be provided by Policy BNE3 Biodiversity, which requires development to avoid any adverse impact on sites of nature conservation value, as well as deliver a minimum of 10% BNG. Therefore, a neutral effect is identified.","Yes","Policy BNE3 Biodiversity requires developments to  avoid any adverse impact on sites of nature conservation value, as well as deliver a minimum of 10% BNG, in line with national policy requirements.",null,"The site should implement blue/green infrastructure where possible, particularly where the site can be connected to the Derby City Green Wedge. The site should also maintain as much existing vegetation as possible.",null,null,null,{"$f":"MATCH($C$1,#REF!, 0)","v":{"$error":"#REF!"}}]
["S02 Housing\nTo ensure everyone has access to sustainable housing, which is affordable, and meets the needs of all residents including the elderly and other vulnerable groups and will support the vitality of existing communities and settlements. ","S02","· Will it reduce the number of households waiting for accommodation or accepted as homeless?\n· Will it increase the number and mix of housing? \n· Will it improve the suitability of new homes for older and disabled people?\n· Will it provide affordable housing for those unable to access market housing?\n· Will it meet the needs of the travelling community and show people?\n· Will it secure infrastructure or community facilities?","Yes",{"$f":"COUNTIFS(INDIRECT(\"RAG!$C$\"&$V13&\":$AX$\"&$V13),E$11,#REF!,$B13)","v":{"$error":"#REF!"}},{"$f":"COUNTIFS(INDIRECT(\"RAG!$C$\"&$V13&\":$AX$\"&$V13),F$11,#REF!,$B13)","v":{"$error":"#REF!"}},{"$f":"COUNTIFS(INDIRECT(\"RAG!$C$\"&$V13&\":$AX$\"&$V13),G$11,#REF!,$B13)","v":{"$error":"#REF!"}},"Direct","Medium","Medium/Long","Localised","Permanent/Irreversible","Significant Positive","The site proposes to provide up to 7,200 dwellings. It is assumed that this allocation works alongside Policy H20 Affordable Housing, which requires developments within 10 or more dwellings to provide 40% of the gross number of dwellings in the form of  'affordable housing', and alongside Policy H19 Housing Balance and Custom/Self-build, which requires developments to provide a mixed size and tenure of dwellings. Therefore, a potential significant positive effect is identified.","Yes",null,null,null,null,null,null,{"$f":"MATCH($C$1,#REF!, 0)","v":{"$error":"#REF!"}}]
["S03 Accessibility and Health\nTo improve local accessibility to healthcare, education, employment, retail facilities and recreational resources (including open spaces and sports facilities) and enhance wellbeing, promoting healthy and sustainable lifestyles.","S03","· Will it promote healthy lifestyles?\n· Will it deliver new, or contribute to the expansion or improvement of existing open spaces, schools or healthcare facilities within reasonable walking distance?\n· Will it deliver growth within reasonable walking distance to a planned or existing major employment area (5ha +) or town centre?\n· Will it improve opportunities for active travel including walking and cycling?\n· Will it deliver services or facilities on-site or elsewhere within the District? ","Yes",{"$f":"COUNTIFS(INDIRECT(\"RAG!$C$\"&$V14&\":$AX$\"&$V14),E$11,#REF!,$B14)","v":{"$error":"#REF!"}},{"$f":"COUNTIFS(INDIRECT(\"RAG!$C$\"&$V14&\":$AX$\"&$V14),F$11,#REF!,$B14)","v":{"$error":"#REF!"}},{"$f":"COUNTIFS(INDIRECT(\"RAG!$C$\"&$V14&\":$AX$\"&$V14),G$11,#REF!,$B14)","v":{"$error":"#REF!"}},"N/A","N/A","N/A","N/A","N/A","Neutral","The site has good access to a primary school which currently has capacity. However, the site has poor access to: a secondary school which is 3km walking distance (with capacity); over 1km to a GP surgery; and over 800m to formal and informal recreation. Mitigation will be provided by Policy INF1, which highlights that new development will only be permitted if necessary infrastructure (both on- and off-site) is already in place. It can therefore be assumed that infrastructure to support growth will be delivered alongside development. Therefore, a neutral effect is identified.","Yes","Policy INF1 Infrastructure and Developer Contributions will only permit development if necessary infrastructure (both on- and off-site) is already in place.",null,"The site should provide infrastructure/community facilities to support growth, such as primary/secondary schools and employment land. ",null,null,null,{"$f":"MATCH($C$1,#REF!, 0)","v":{"$error":"#REF!"}}]
["S04 Quality of Life\nTo create safe and attractive places which contribute towards quality of life and community cohesion.","S04","· Will it contribute towards reducing crime or fear of crime?\n· Will it provide attractive places which provide opportunities for communities to mix and meet?","No",null,null,null,"N/A","N/A","N/A","N/A","N/A","Neutral","It is assumed that this allocation works alongside Policy BNE1 Design Excellence, which requires developments to be designed to minimise opportunities for crime and anti-social behaviour, and encourage diversity and social interaction. The development of this site in isolation is unlikely to contribute towards designing out crime or enhancing community cohesion. Therefore, a neutral effect is identified.","No","Policy BNE1 Design Excellence requires developments to be designed to minimise opportunities for crime and anti-social behaviour, and encourage diversity and social interaction.",null,null,null,null,null,{"$f":"MATCH($C$1,#REF!, 0)","v":{"$error":"#REF!"}}]
["S05 Inequalities\nEnsure all residents have equitable access to employment, education, community services and facilities irrespective of race, religion, sex, age, sexual orientation, disability, gender reassignment, marriage and civil partnership or pregnancy/maternity.","S05","· Ensure the option / policy does not have an adverse/ discriminatory impact on protected characteristics/ equality groups?\n· Will it narrow the inequality gap between the richest and poorest in the District?\n· Will it reduce inequalities associated with deprivation across the District?","Yes",{"$f":"COUNTIFS(INDIRECT(\"RAG!$C$\"&$V16&\":$AX$\"&$V16),E$11,#REF!,$B16)","v":{"$error":"#REF!"}},{"$f":"COUNTIFS(INDIRECT(\"RAG!$C$\"&$V16&\":$AX$\"&$V16),F$11,#REF!,$B16)","v":{"$error":"#REF!"}},{"$f":"COUNTIFS(INDIRECT(\"RAG!$C$\"&$V16&\":$AX$\"&$V16),G$11,#REF!,$B16)","v":{"$error":"#REF!"}},"N/A","N/A","N/A","N/A","N/A","Neutral","This site is within a medium IMD deprivation area. However, development of this site alone will not necessarily reduce the gap between the richest and poorest in the District. Therefore, a neutral effect is identified.","Yes",null,null,null,null,null,null,{"$f":"MATCH($C$1,#REF!, 0)","v":{"$error":"#REF!"}}]
["S06 Economy\nTo deliver growth in key employment sectors and support the creation of new and retention of existing businesses in urban and rural areas.","S06","· Will it encourage the creation of new businesses and existing businesses to grow?\n· Will it encourage economic diversification?\n· Will it help support and encourage the growth of the local economy (including in rural areas)?\n· Will it support the enhancement of the District’s tourism and cultural offer?","Yes",{"$f":"COUNTIFS(INDIRECT(\"RAG!$C$\"&$V17&\":$AX$\"&$V17),E$11,#REF!,$B17)","v":{"$error":"#REF!"}},{"$f":"COUNTIFS(INDIRECT(\"RAG!$C$\"&$V17&\":$AX$\"&$V17),F$11,#REF!,$B17)","v":{"$error":"#REF!"}},{"$f":"COUNTIFS(INDIRECT(\"RAG!$C$\"&$V17&\":$AX$\"&$V17),G$11,#REF!,$B17)","v":{"$error":"#REF!"}},"Indirect","Low","Medium/Long","Localised","Permanent/Irreversible","Minor Positive","The site will not deliver any employment space, although development here could indirectly support existing businesses within Findern local centre and Derby City. Therefore, a potential minor positive effect is identified.","Yes",null,null,"The site should be required to provide retail facilities to support growth.",null,null,null,{"$f":"MATCH($C$1,#REF!, 0)","v":{"$error":"#REF!"}}]
["S07 Employment\nTo create greater employment opportunities and higher value jobs across the whole District","S07","· Will it help to improve skills levels and access to training within the District?\n· Will it reduce unemployment rates overall and reduce disparities which exist across different parts of the District?","Yes",{"$f":"COUNTIFS(INDIRECT(\"RAG!$C$\"&$V18&\":$AX$\"&$V18),E$11,#REF!,$B18)","v":{"$error":"#REF!"}},{"$f":"COUNTIFS(INDIRECT(\"RAG!$C$\"&$V18&\":$AX$\"&$V18),F$11,#REF!,$B18)","v":{"$error":"#REF!"}},{"$f":"COUNTIFS(INDIRECT(\"RAG!$C$\"&$V18&\":$AX$\"&$V18),G$11,#REF!,$B18)","v":{"$error":"#REF!"}},"Direct","Low","Medium/Long","Localised","Permanent/Irreversible","Minor Positive","The site will not deliver any employment space. However, the site is located around 3km from a large employment site (the Toyota manufacturing site), and will subsequently be located around 3km from the East Midlands Intermodal Park once built. As a result, there will be a large number of employment opportunities off-site for residents. Therefore, a potential minor positive effect is identified.","No",null,null,null,null,null,null,{"$f":"MATCH($C$1,#REF!, 0)","v":{"$error":"#REF!"}}]
["S08 Infrastructure\nTo deliver improved infrastructure to support growth and economic competitiveness of urban and rural businesses and communities.","S08","· Will it minimise the impact of traffic congestion on the strategic and local road network through the delivery of new or enhanced transport infrastructure?\n· Will it provide opportunities to access key services, including doctor’s surgeries, education facilities, employment and town, local or village centres by means other than car?\n· Will it make the best use of other infrastructure which serves new development?","No",{"$f":"COUNTIFS(INDIRECT(\"RAG!$C$\"&$V19&\":$AX$\"&$V19),E$11,#REF!,$B19)","v":{"$error":"#REF!"}},{"$f":"COUNTIFS(INDIRECT(\"RAG!$C$\"&$V19&\":$AX$\"&$V19),F$11,#REF!,$B19)","v":{"$error":"#REF!"}},{"$f":"COUNTIFS(INDIRECT(\"RAG!$C$\"&$V19&\":$AX$\"&$V19),G$11,#REF!,$B19)","v":{"$error":"#REF!"}},"N/A","N/A","N/A","N/A","N/A","Neutral","The site is not located near to existing infrastructure such as employment space, GP practice, secondary school or formal/informal recreation. However, mitigation will be provided by Policy INF1, which highlights that new development will only be permitted if necessary infrastructure (both on- and off-site) is already in place; this includes the provision of community facilities. It can therefore be assumed that infrastructure to support growth will be delivered alongside development. Therefore, a neutral effect is identified.","No","Policy INF1 Infrastructure and Developer Contributions will only permit development if necessary infrastructure (both on- and off-site) is already in place.",null,null,null,null,null,{"$f":"MATCH($C$1,#REF!, 0)","v":{"$error":"#REF!"}}]
["S09 Sustainable Travel\nTo promote sustainable travel habits including walking, cycling and public transport (bus and rail) usage.  ","S09","· Will it reduce journey lengths and times? \n· Will it maximise opportunities for walking and cycling?\n· Will it maximise opportunities to access public transport provision?","Yes",{"$f":"COUNTIFS(INDIRECT(\"RAG!$C$\"&$V20&\":$AX$\"&$V20),E$11,#REF!,$B20)","v":{"$error":"#REF!"}},{"$f":"COUNTIFS(INDIRECT(\"RAG!$C$\"&$V20&\":$AX$\"&$V20),F$11,#REF!,$B20)","v":{"$error":"#REF!"}},{"$f":"COUNTIFS(INDIRECT(\"RAG!$C$\"&$V20&\":$AX$\"&$V20),G$11,#REF!,$B20)","v":{"$error":"#REF!"}},"N/A","N/A",null,"N/A","N/A","Neutral","The site currently lies within an acceptable distance to an existing bus stop, and to existing cycle routes, but is more than 800m from an existing train station. However, mitigation will be provided by Policy INF1, which highlights that new development will only be permitted if necessary infrastructure (both on- and off-site) is already in place; this includes the provision and improvement of transport infrastructure. For example, a new train station may be developed next to the site as part of the South Derbyshire Integrated Transport Link. This should improve travel within South Derbyshire, as well as into Derby City. It can therefore be assumed that infrastructure to support growth will be delivered alongside development. Therefore, a neutral effect is identified.","No","Policy INF1 Infrastructure and Developer Contributions will only permit development if necessary infrastructure (both on- and off-site) is already in place. ",null,"The site should provide improved transport facilities (e.g.: new bus stops), as well as connect to existing pedestrian/cycle routes where possible.",null,null,null,{"$f":"MATCH($C$1,#REF!, 0)","v":{"$error":"#REF!"}}]
["S010 Town and Village Centres\nTo ensure that town and village centres are vibrant and viable.","S010","· Will it improve existing shopping facilities within town and village centres? \n· Will it help safeguard existing town and village centres?","Yes",{"$f":"COUNTIFS(INDIRECT(\"RAG!$C$\"&$V21&\":$AX$\"&$V21),E$11,#REF!,$B21)","v":{"$error":"#REF!"}},{"$f":"COUNTIFS(INDIRECT(\"RAG!$C$\"&$V21&\":$AX$\"&$V21),F$11,#REF!,$B21)","v":{"$error":"#REF!"}},{"$f":"COUNTIFS(INDIRECT(\"RAG!$C$\"&$V21&\":$AX$\"&$V21),G$11,#REF!,$B21)","v":{"$error":"#REF!"}},"Direct","Medium","Medium/Long","Localised","Permanent/Irreversible","Minor Positive","The site is located on the edge of Derby City, and less than 800m from the village of Findern; the level of development proposed should subsequently increase footfall in the city centre and the village centre. Therefore, a potential minor positive effect is identified.","Yes",null,null,"The site should be required to provide retail facilities to support growth.",null,null,null,{"$f":"MATCH($C$1,#REF!, 0)","v":{"$error":"#REF!"}}]
["S011 Resources\nTo minimise waste and ensure the sustainable use and protection of natural resources including greenfield land, soil and minerals resources.  ","S011","· Will it enhance opportunities for increased levels of recycling in the District?\n· Will it improve or remediate contaminated land or reuse previously developed land which has not been restored?\n· Will it protect Best and Most Versatile (BMV) Agricultural Land?\n· Will it avoid the sterilisation of minerals resources?","Yes",{"$f":"COUNTIFS(INDIRECT(\"RAG!$C$\"&$V22&\":$AX$\"&$V22),E$11,#REF!,$B22)","v":{"$error":"#REF!"}},{"$f":"COUNTIFS(INDIRECT(\"RAG!$C$\"&$V22&\":$AX$\"&$V22),F$11,#REF!,$B22)","v":{"$error":"#REF!"}},{"$f":"COUNTIFS(INDIRECT(\"RAG!$C$\"&$V22&\":$AX$\"&$V22),G$11,#REF!,$B22)","v":{"$error":"#REF!"}},"Direct","Low","Medium/Long","Localised","Permanent/Irreversible","Significant Negative","This site is located on grade 3 agricultural land; development will subsequently lead to the irreversible loss of greenfield land, and soils considered as the 'best and most versatile'. The site also lies partially within a sand and gravel mineral safeguarding zone and a historic landfill site; development may subsequently lead to the sterilisation of mineral resources. The development of this site in isolation will likely have no influence on the levels of recycling across South Derbyshire. However, Policy BNE1 Design Excellence, will requires developments to provide adequate space for waste storage and collection. Therefore, as the loss of greenfield land/Grade 3 agricultural land cannot be mitigated, a potential significant negative effect is identified.","Yes","Policy BNE1 Design Excellence will require developments to provide adequate space for waste storage and collection.","Loss of greenfield land and Grade 3 agricultural land cannot be mitigated.",null,null,null,null,{"$f":"MATCH($C$1,#REF!, 0)","v":{"$error":"#REF!"}}]
["S012 Pollution\nTo minimise water, air, light and noise pollution and ensure that future growth does not lead to the further deterioration of environmental conditions.","S012","· Will it contribute to improvements in water quality in the District?\n· Will it avoid increasing noise levels locally or introducing incompatible uses into an already noisy location?\n· Will it avoid deterioration in air quality within the District?\n· Will it avoid exacerbating light pollution by keeping external lighting to the minimum required for safety and security?","Yes",{"$f":"COUNTIFS(INDIRECT(\"RAG!$C$\"&$V23&\":$AX$\"&$V23),E$11,#REF!,$B23)","v":{"$error":"#REF!"}},{"$f":"COUNTIFS(INDIRECT(\"RAG!$C$\"&$V23&\":$AX$\"&$V23),F$11,#REF!,$B23)","v":{"$error":"#REF!"}},{"$f":"COUNTIFS(INDIRECT(\"RAG!$C$\"&$V23&\":$AX$\"&$V23),G$11,#REF!,$B23)","v":{"$error":"#REF!"}},"N/A","N/A","N/A","N/A","N/A","Uncertain","The site currently experiences low noise pollution and some light pollution. It is likely that development at this scale will increase both noise and light pollution. The A38 and A50 are located adjacent to the site so the site is currently exposed to some air pollution. It is likely that development at this scale will increase air pollution in South Derbyshire, as well as in Derby City as residents may commute into the city for work. The site does not lie within the River Mease nutrient neutrality zone or any groundwater protection zones. The site should be required to implement noise and light mitigation measures, although it is not clear whether all potential effects can be minimised through mitigation. Therefore, an uncertain effect is identified.","Yes",null,"The site should be required to implement noise and light mitigation measures.",null,null,null,null,{"$f":"MATCH($C$1,#REF!, 0)","v":{"$error":"#REF!"}}]
["S013 Contributions to Climate Change \nTo reduce the District’s contribution towards the emission of climate change gases.","S013","· Will it provide opportunities to access local services and facilities by public transport walking or cycling?\n· Will it support the delivery of renewable energy capacity (including small scale or community energy projects)?\n· Will it support the shift toward usage of electric and ultralow emissions vehicles? ","Yes",{"$f":"COUNTIFS(INDIRECT(\"RAG!$C$\"&$V24&\":$AX$\"&$V24),E$11,#REF!,$B24)","v":{"$error":"#REF!"}},{"$f":"COUNTIFS(INDIRECT(\"RAG!$C$\"&$V24&\":$AX$\"&$V24),F$11,#REF!,$B24)","v":{"$error":"#REF!"}},{"$f":"COUNTIFS(INDIRECT(\"RAG!$C$\"&$V24&\":$AX$\"&$V24),G$11,#REF!,$B24)","v":{"$error":"#REF!"}},"N/A","N/A","N/A","N/A","N/A","Neutral","The site is more than 600m from an EV charger. However mitigation will be provided by Policy INF2 Sustainable Transport, which will require the development to make provision for EV chargers. Additionally, the sites location (near to Derby City) may assist in the development of heat networks incorporating new homes, providing low carbon heating for future residents. Therefore, a neutral effect is identified.","No","Policy INF2 Sustainable Transport will require  developments to make provision for EV chargers.",null,"The site should be built to low-carbon standards with high levels of energy efficiency and individual energy generation technologies (e.g.: heat source pumps, solar PV) being be promoted where possible.",null,null,null,{"$f":"MATCH($C$1,#REF!, 0)","v":{"$error":"#REF!"}}]
["S014 Adaptation to Climate Change \nTo manage the effects of climate change including flood risk, reduced water availability and overheating.","S014","· Will it minimise flood risk?\n· Will it include provision of sustainable urban drainage which mimic natural drainage patterns?\n· Will it contribute towards sustainable water use?","Yes",{"$f":"COUNTIFS(INDIRECT(\"RAG!$C$\"&$V25&\":$AX$\"&$V25),E$11,#REF!,$B25)","v":{"$error":"#REF!"}},{"$f":"COUNTIFS(INDIRECT(\"RAG!$C$\"&$V25&\":$AX$\"&$V25),F$11,#REF!,$B25)","v":{"$error":"#REF!"}},{"$f":"COUNTIFS(INDIRECT(\"RAG!$C$\"&$V25&\":$AX$\"&$V25),G$11,#REF!,$B25)","v":{"$error":"#REF!"}},"Direct","Medium","Medium/Long","Localised","Permanent/Irreversible","Minor Negative","The site lies within Flood Zone 3 and within 10m of a watercourse, which may place development on the site at risk of flooding. However, mitigation will be provided by Policy SD2 Flood Risk which will require the site to incorporate flood risk mitigation, such as SuDs. Although this won't eradicate flood risk, it will reduce the likelihood of a flood risk event taking place. Therefore, as the site is still at risk of flood events following policy mitigation, a potential minor negative effect is identified.","No","Policy SD2 Flood Risk will require developments to incorporate flood risk mitigation, such as SuDs. ",null,null,null,null,null,{"$f":"MATCH($C$1,#REF!, 0)","v":{"$error":"#REF!"}}]
["S015 Townscape and Historic Environment\nTo conserve and enhance the townscape, historic environment, heritage assets (including known and unknown archaeological sites) and their settings. ","S015","· Will it protect and enhance the condition and setting of historic, cultural, architectural and archaeological features in South Derbyshire?\n· Does it improve the quality of the built environment, and respect and protect existing townscape character?\n· Will it improve access to, and understanding of, the District’s historic and cultural assets for enjoyment and educational purposes?","Yes",{"$f":"COUNTIFS(INDIRECT(\"RAG!$C$\"&$V26&\":$AX$\"&$V26),E$11,#REF!,$B26)","v":{"$error":"#REF!"}},{"$f":"COUNTIFS(INDIRECT(\"RAG!$C$\"&$V26&\":$AX$\"&$V26),F$11,#REF!,$B26)","v":{"$error":"#REF!"}},{"$f":"COUNTIFS(INDIRECT(\"RAG!$C$\"&$V26&\":$AX$\"&$V26),G$11,#REF!,$B26)","v":{"$error":"#REF!"}},"Direct","Low","Medium/Long","Localised","Permanent/Irreversible","Significant Positive","The site does contribute to the protection and enhancement of the townscape and it's historic environment as it is not within close proximity to any designated heritage assets. Therefore, a potential significant positive effect is identified.","No",null,null,null,null,null,null,{"$f":"MATCH($C$1,#REF!, 0)","v":{"$error":"#REF!"}}]
["S016 Landscape\nTo conserve and enhance the District’s landscape character.","S016","· Does it respect and protect existing landscape character?\n· Will it protect sensitive landscapes including those within the World Heritage Site or its buffer or Special Landscape Areas?\n· Will it safeguard landscape features such as hedgerows?\n· Will it avoid intrusion into the greenbelt?","Yes",{"$f":"COUNTIFS(INDIRECT(\"RAG!$C$\"&$V27&\":$AX$\"&$V27),E$11,#REF!,$B27)","v":{"$error":"#REF!"}},{"$f":"COUNTIFS(INDIRECT(\"RAG!$C$\"&$V27&\":$AX$\"&$V27),F$11,#REF!,$B27)","v":{"$error":"#REF!"}},{"$f":"COUNTIFS(INDIRECT(\"RAG!$C$\"&$V27&\":$AX$\"&$V27),G$11,#REF!,$B27)","v":{"$error":"#REF!"}},"N/A","N/A","N/A","N/A","N/A","Uncertain","The site does not lie within the Greenbelt. However, it does lie within a secondary area of multiple environmental sensitivity and a landscape character area. Additionally, the development of this site could lead to the 'trapping in' of current green wedges within Derby City, cutting these greenfield land areas off from the surrounding open land. This could alter the current townscape, both within South Derbyshire and Derby City. Mitigation will be provided by Policy BNE4 Landscape Character and Local Distinctiveness, which will require developments to conserve local distinctiveness, retain landscape features (e.g.: hedgerows) and offset any damage to landscape features. The site should also link to existing green wedges within Derby City where possible, in order to minimise impacts of 'trapping', although it is not clear whether all potential effects can be minimised through mitigation. Therefore, an uncertain effect is identified.","Yes","Policy BNE4 Landscape Character and Local Distinctiveness will require developments to conserve local distinctiveness, retain landscape features (e.g.: hedgerows) and offset any damage to landscape features.","The site should link to existing green wedges within Derby City, in order to maintain a similar landscape pattern. ",null,null,null,null,{"$f":"MATCH($C$1,#REF!, 0)","v":{"$error":"#REF!"}}]

{"sheet":"Site_1","index":13,"n_rows":27,"n_cols":22,"rows_kept":27,"cut":false,"hidden":true,"merged":[[9,0,9,2],[9,7,9,17],[9,3,9,6]]}
["Site Name",null,"Site_1"]
["Site Address",null,"Infinity Garden Village"]
["Town/Locality",null,"Barrow Upon Trent; Stenson Fields; Twyford and Stenson and Swarkestone"]
["Est Housing Yield/Employment Space",null,"2000 dwellings, 70ha employment land"]
["Site Area (ha)",null,205]
["Site Description",null,"The development of this site will also provide:\n- Provision of Gypsy and Traveller pitches\n- Primary vehicle accesses via a new junction on the A50 and junctions via Infinity Park Way\n- A new local centre (including retail facilities)\n- A two form entry primary school\n- A secondary school (including community sport facilities)\n- Recreation facilities"]
["Greenfield/Brownfield",null,"Greenfield"]
["Assumptions Made",null,"This allocation will work alongside the policies set out in the South Derbyshire Local Plan Part 1."]
[]
["SA Framework",null,null,"GIS Inputs",null,null,null,"SA Policy Assessment"]
["SA objective","SA","SA sub-objective","GIS Data Available?","R","A","G","Direct/\nIndirect","Magnitude","Duration","Spatial Extent","Permanence/ Reversibility","Significance","Description of potential effects","Potential for cumulative effects? ","Policy Mitigation","Mitigation Recommendations","Enhancement Recommendation","SDDC Comments",null,null,"Link "]
["S01 Biodiversity\nTo safeguard and enhance biodiversity (including BAP habitats and species) and geodiversity through biodiversity net gain and improve connectivity between, and access to, green spaces and functional habitats.","S01","· Will it conserve and enhance natural or semi natural habitats including internationally, nationally and locally designated wildlife sites, or create new wildlife habitats?\n· Will it protect BAP or protected species and contribute to the delivery of new, or safeguard existing BAP priority species and habitats?\n· Will it protect sites of geological importance?","Yes",{"$f":"COUNTIFS(INDIRECT(\"RAG!$C$\"&$V12&\":$AX$\"&$V12),E$11,#REF!,$B12)","v":{"$error":"#REF!"}},{"$f":"COUNTIFS(INDIRECT(\"RAG!$C$\"&$V12&\":$AX$\"&$V12),F$11,#REF!,$B12)","v":{"$error":"#REF!"}},{"$f":"COUNTIFS(INDIRECT(\"RAG!$C$\"&$V12&\":$AX$\"&$V12),G$11,#REF!,$B12)","v":{"$error":"#REF!"}},"N/A","N/A","N/A","N/A","N/A","Neutral","The site contains a local wildlife site, a LIG, and contains a number of TPOs. Development may subsequently negatively impact on biodiversity. However, mitigation will be provided by Policy BNE3 Biodiversity, which requires development to avoid any adverse impact on sites of nature conservation value, as well as deliver a minimum of 10% BNG. Therefore, a neutral effect is identified.","Yes","Policy BNE3 Biodiversity requires developments to  avoid any adverse impact on sites of nature conservation value, as well as deliver a minimum of 10% BNG, in line with national policy requirements.",null,"The site should be required to implement blue/green infrastructure where possible, particularly where the site can be connected to the Derby City Green Wedge. The site should also maintain as much existing vegetation as possible. ",null,null,null,{"$f":"MATCH($C$1,#REF!, 0)","v":{"$error":"#REF!"}}]
["S02 Housing\nTo ensure everyone has access to sustainable housing, which is affordable, and meets the needs of all residents including the elderly and other vulnerable groups and will support the vitality of existing communities and settlements. ","S02","· Will it reduce the number of households waiting for accommodation or accepted as homeless?\n· Will it increase the number and mix of housing? \n· Will it improve the suitability of new homes for older and disabled people?\n· Will it provide affordable housing for those unable to access market housing?\n· Will it meet the needs of the travelling community and show people?\n· Will it secure infrastructure or community facilities?","Yes",{"$f":"COUNTIFS(INDIRECT(\"RAG!$C$\"&$V13&\":$AX$\"&$V13),E$11,#REF!,$B13)","v":{"$error":"#REF!"}},{"$f":"COUNTIFS(INDIRECT(\"RAG!$C$\"&$V13&\":$AX$\"&$V13),F$11,#REF!,$B13)","v":{"$error":"#REF!"}},{"$f":"COUNTIFS(INDIRECT(\"RAG!$C$\"&$V13&\":$AX$\"&$V13),G$11,#REF!,$B13)","v":{"$error":"#REF!"}},"Direct","Medium","Medium/Long","Localised","Permanent/Irreversible","Significant Positive","The site proposes to provide up to 2000 dwellings. It is assumed that this allocation works alongside Policy H20 Affordable Housing, which requires developments within 10 or more dwellings to provide 40% of the gross number of dwellings in the form of  'affordable housing', and alongside Policy H19 Housing Balance and Custom/Self-build, which requires developments to provide a mixed size and tenure of dwellings. Therefore, a potential significant positive effect is identified.","Yes",null,null,null,null,null,null,{"$f":"MATCH($C$1,#REF!, 0)","v":{"$error":"#REF!"}}]
["S03 Accessibility and Health\nTo improve local accessibility to healthcare, education, employment, retail facilities and recreational resources (including open spaces and sports facilities) and enhance wellbeing, promoting healthy and sustainable lifestyles.","S03","· Will it promote healthy lifestyles?\n· Will it deliver new, or contribute to the expansion or improvement of existing open spaces, schools or healthcare facilities within reasonable walking distance?\n· Will it deliver growth within reasonable walking distance to a planned or existing major employment area (5ha +) or town centre?\n· Will it improve opportunities for active travel including walking and cycling?\n· Will it deliver services or facilities on-site or elsewhere within the District? ","Yes",{"$f":"COUNTIFS(INDIRECT(\"RAG!$C$\"&$V14&\":$AX$\"&$V14),E$11,#REF!,$B14)","v":{"$error":"#REF!"}},{"$f":"COUNTIFS(INDIRECT(\"RAG!$C$\"&$V14&\":$AX$\"&$V14),F$11,#REF!,$B14)","v":{"$error":"#REF!"}},{"$f":"COUNTIFS(INDIRECT(\"RAG!$C$\"&$V14&\":$AX$\"&$V14),G$11,#REF!,$B14)","v":{"$error":"#REF!"}},"N/A","N/A","N/A","N/A","N/A","Neutral","The site has good access to a primary school which currently has capacity, a GP surgery. The site has poor access to: a secondary school and an existing employment site. The site does have good access to a safeguarded site for a secondary school development however. Mitigation will be provided by Policy INF1, which highlights that new development will only be permitted if necessary infrastructure (both on- and off-site) is already in place. For example, the site plan references the provision for a new primary and secondary school, employment floor space and recreational facilities, as well as support for the refurbishment of the existing Sinfin Health Centre, which will serve the site. It can therefore be assumed that infrastructure to support growth will be delivered alongside development. Therefore, a neutral effect is identified.","Yes","Policy INF1 Infrastructure and Developer Contributions will only permit development if necessary infrastructure (both on- and off-site) is already in place.",null,"The site should be required to provide infrastructure/community facilities to support growth, such as primary/secondary schools and employment land. ",null,null,null,{"$f":"MATCH($C$1,#REF!, 0)","v":{"$error":"#REF!"}}]
["S04 Quality of Life\nTo create safe and attractive places which contribute towards quality of life and community cohesion.","S04","· Will it contribute towards reducing crime or fear of crime?\n· Will it provide attractive places which provide opportunities for communities to mix and meet?","No",null,null,null,"N/A","N/A","N/A","N/A","N/A","Neutral","It is assumed that this allocation works alongside Policy BNE1 Design Excellence, which requires developments to be designed to minimise opportunities for crime and anti-social behaviour, and encourage diversity and social interaction. The development of this site in isolation is unlikely to contribute towards designing out crime or enhancing community cohesion. Therefore, a neutral effect is identified.","No","Policy BNE1 Design Excellence requires developments to be designed to minimise opportunities for crime and anti-social behaviour, and encourage diversity and social interaction.",null,null,null,null,null,{"$f":"MATCH($C$1,#REF!, 0)","v":{"$error":"#REF!"}}]
["S05 Inequalities\nEnsure all residents have equitable access to employment, education, community services and facilities irrespective of race, religion, sex, age, sexual orientation, disability, gender reassignment, marriage and civil partnership or pregnancy/maternity.","S05","· Ensure the option / policy does not have an adverse/ discriminatory impact on protected characteristics/ equality groups?\n· Will it narrow the inequality gap between the richest and poorest in the District?\n· Will it reduce inequalities associated with deprivation across the District?","Yes",{"$f":"COUNTIFS(INDIRECT(\"RAG!$C$\"&$V16&\":$AX$\"&$V16),E$11,#REF!,$B16)","v":{"$error":"#REF!"}},{"$f":"COUNTIFS(INDIRECT(\"RAG!$C$\"&$V16&\":$AX$\"&$V16),F$11,#REF!,$B16)","v":{"$error":"#REF!"}},{"$f":"COUNTIFS(INDIRECT(\"RAG!$C$\"&$V16&\":$AX$\"&$V16),G$11,#REF!,$B16)","v":{"$error":"#REF!"}},"N/A","N/A","N/A","N/A","N/A","Neutral","This site is within a low IMD deprivation area. However, development of this site alone will not necessarily reduce the gap between the richest and poorest in the District.","Yes",null,null,null,null,null,null,{"$f":"MATCH($C$1,#REF!, 0)","v":{"$error":"#REF!"}}]
["S06 Economy\nTo deliver growth in key employment sectors and support the creation of new and retention of existing businesses in urban and rural areas.","S06","· Will it encourage the creation of new businesses and existing businesses to grow?\n· Will it encourage economic diversification?\n· Will it help support and encourage the growth of the local economy (including in rural areas)?\n· Will it support the enhancement of the District’s tourism and cultural offer?","Yes",{"$f":"COUNTIFS(INDIRECT(\"RAG!$C$\"&$V17&\":$AX$\"&$V17),E$11,#REF!,$B17)","v":{"$error":"#REF!"}},{"$f":"COUNTIFS(INDIRECT(\"RAG!$C$\"&$V17&\":$AX$\"&$V17),F$11,#REF!,$B17)","v":{"$error":"#REF!"}},{"$f":"COUNTIFS(INDIRECT(\"RAG!$C$\"&$V17&\":$AX$\"&$V17),G$11,#REF!,$B17)","v":{"$error":"#REF!"}},"Direct","Medium","Medium/Long","District-wide","Permanent/Irreversible","Significant Positive","The site will support economic growth by providing 70ha of new employment floorspace. Additionally, although the site is more than 800m away from the nearest town centre, development of the site could also indirectly support existing businesses within Findern local centre and Derby City as residents travel in. Therefore, a potential minor positive effect is identified.","Yes",null,null,"The site should be required to provide retail facilities to support growth.",null,null,null,{"$f":"MATCH($C$1,#REF!, 0)","v":{"$error":"#REF!"}}]
["S07 Employment\nTo create greater employment opportunities and higher value jobs across the whole District","S07","· Will it help to improve skills levels and access to training within the District?\n· Will it reduce unemployment rates overall and reduce disparities which exist across different parts of the District?","Yes",{"$f":"COUNTIFS(INDIRECT(\"RAG!$C$\"&$V18&\":$AX$\"&$V18),E$11,#REF!,$B18)","v":{"$error":"#REF!"}},{"$f":"COUNTIFS(INDIRECT(\"RAG!$C$\"&$V18&\":$AX$\"&$V18),F$11,#REF!,$B18)","v":{"$error":"#REF!"}},{"$f":"COUNTIFS(INDIRECT(\"RAG!$C$\"&$V18&\":$AX$\"&$V18),G$11,#REF!,$B18)","v":{"$error":"#REF!"}},"Direct","Medium","Medium/Long","District-wide","Permanent/Irreversible","Significant Positive","The site will support the provision of employment, by creating permanent and temporary jobs during construction and operation. For example, it is estimated that 530 jobs could be supported over the 20-year construction phase. The site is also located around 3km from a large employment site (the Toyota manufacturing site), and will subsequently be located around 2km from the East Midlands Intermodal Park once built. As a result, there will be a large number of employment opportunities both on- and off-site for residents. Therefore, a potential significant positive effect is identified.","Yes",null,null,null,null,null,null,{"$f":"MATCH($C$1,#REF!, 0)","v":{"$error":"#REF!"}}]
["S08 Infrastructure\nTo deliver improved infrastructure to support growth and economic competitiveness of urban and rural businesses and communities.","S08","· Will it minimise the impact of traffic congestion on the strategic and local road network through the delivery of new or enhanced transport infrastructure?\n· Will it provide opportunities to access key services, including doctor’s surgeries, education facilities, employment and town, local or village centres by means other than car?\n· Will it make the best use of other infrastructure which serves new development?","No",{"$f":"COUNTIFS(INDIRECT(\"RAG!$C$\"&$V19&\":$AX$\"&$V19),E$11,#REF!,$B19)","v":{"$error":"#REF!"}},{"$f":"COUNTIFS(INDIRECT(\"RAG!$C$\"&$V19&\":$AX$\"&$V19),F$11,#REF!,$B19)","v":{"$error":"#REF!"}},{"$f":"COUNTIFS(INDIRECT(\"RAG!$C$\"&$V19&\":$AX$\"&$V19),G$11,#REF!,$B19)","v":{"$error":"#REF!"}},"N/A","N/A","N/A","N/A","N/A","Neutral","The site has good access to a primary school which currently has capacity, a GP surgery. The site has poor access to: a secondary school and an existing employment site. The site does have good access to a safeguarded site for a secondary school development however. Mitigation will be provided by Policy INF1, which highlights that new development will only be permitted if necessary infrastructure (both on- and off-site) is already in place. For example, the site plan references the provision for a new primary and secondary school, employment floor space and recreational facilities, as well as support for the refurbishment of the existing Sinfin Health Centre, which will serve the site. New access points to the site will also be developed in order to ease road pressure. It can therefore be assumed that infrastructure to support growth will be delivered alongside development. Therefore, a neutral effect is identified.","No","Policy INF1 Infrastructure and Developer Contributions will only permit development if necessary infrastructure (both on- and off-site) is already in place.",null,null,null,null,null,{"$f":"MATCH($C$1,#REF!, 0)","v":{"$error":"#REF!"}}]
["S09 Sustainable Travel\nTo promote sustainable travel habits including walking, cycling and public transport (bus and rail) usage.  ","S09","· Will it reduce journey lengths and times? \n· Will it maximise opportunities for walking and cycling?\n· Will it maximise opportunities to access public transport provision?","Yes",{"$f":"COUNTIFS(INDIRECT(\"RAG!$C$\"&$V20&\":$AX$\"&$V20),E$11,#REF!,$B20)","v":{"$error":"#REF!"}},{"$f":"COUNTIFS(INDIRECT(\"RAG!$C$\"&$V20&\":$AX$\"&$V20),F$11,#REF!,$B20)","v":{"$error":"#REF!"}},{"$f":"COUNTIFS(INDIRECT(\"RAG!$C$\"&$V20&\":$AX$\"&$V20),G$11,#REF!,$B20)","v":{"$error":"#REF!"}},"Direct","Medium",null,"Localised","Permanent/Irreversible","Minor Positive","The site currently lies within an acceptable distance to an existing bus stop, and to existing cycle routes. The site is more than 800m to a train station however. Policy INF1 highlights that new development will only be permitted if necessary infrastructure (both on- and off-site) is already in place; this includes the provision and improvement of transport infrastructure. This should improve travel within South Derbyshire, as well as into Derby City. Therefore, a potential minor positive effect is identified.","No","Policy INF1 Infrastructure and Developer Contributions will only permit development if necessary infrastructure (both on- and off-site) is already in place. ",null,"The site should be required to provide improved transport facilities (e.g.: new bus stops), as well as connect to existing pedestrian/cycle routes where possible.",null,null,null,{"$f":"MATCH($C$1,#REF!, 0)","v":{"$error":"#REF!"}}]
["S010 Town and Village Centres\nTo ensure that town and village centres are vibrant and viable.","S010","· Will it improve existing shopping facilities within town and village centres? \n· Will it help safeguard existing town and village centres?","Yes",{"$f":"COUNTIFS(INDIRECT(\"RAG!$C$\"&$V21&\":$AX$\"&$V21),E$11,#REF!,$B21)","v":{"$error":"#REF!"}},{"$f":"COUNTIFS(INDIRECT(\"RAG!$C$\"&$V21&\":$AX$\"&$V21),F$11,#REF!,$B21)","v":{"$error":"#REF!"}},{"$f":"COUNTIFS(INDIRECT(\"RAG!$C$\"&$V21&\":$AX$\"&$V21),G$11,#REF!,$B21)","v":{"$error":"#REF!"}},"Direct","Medium","Medium/Long","Localised","Permanent/Irreversible","Minor Negative","The site is not located within or adjacent to a town or village centre (it is located on the edge of Derby City, and around 1.5km from the village of Findern). The development of a new local centre within the site would provide local facilities for new residents, enabling some self containment. These facilities would not be designed to provide facilities for the wider area but residents may not support existing town and village centres. Therefore, a potential minor negative effect is identified.","Yes",null,"Development proposals could be accompanied by an assessment of the impact of the development on the local economy. ",null,null,null,null,{"$f":"MATCH($C$1,#REF!, 0)","v":{"$error":"#REF!"}}]
["S011 Resources\nTo minimise waste and ensure the sustainable use and protection of natural resources including greenfield land, soil and minerals resources.  ","S011","· Will it enhance opportunities for increased levels of recycling in the District?\n· Will it improve or remediate contaminated land or reuse previously developed land which has not been restored?\n· Will it protect Best and Most Versatile (BMV) Agricultural Land?\n· Will it avoid the sterilisation of minerals resources?","Yes",{"$f":"COUNTIFS(INDIRECT(\"RAG!$C$\"&$V22&\":$AX$\"&$V22),E$11,#REF!,$B22)","v":{"$error":"#REF!"}},{"$f":"COUNTIFS(INDIRECT(\"RAG!$C$\"&$V22&\":$AX$\"&$V22),F$11,#REF!,$B22)","v":{"$error":"#REF!"}},{"$f":"COUNTIFS(INDIRECT(\"RAG!$C$\"&$V22&\":$AX$\"&$V22),G$11,#REF!,$B22)","v":{"$error":"#REF!"}},"Direct","High","Medium/Long","Localised","Permanent/Irreversible","Significant Negative","This site is located on grade 3 agricultural land; development will subsequently lead to the irreversible loss of greenfield land, and soils considered as the 'best and most versatile'. The site also lies partially within a sand and gravel mineral safeguarding zone and a contamination zone; development may subsequently lead to the sterilisation of mineral resources. The development of this site in isolation will likely have no influence on the levels of recycling across South Derbyshire. However, It is assumed that this allocation works alongside Policy BNE1 Design Excellence, which requires developments to provide adequate space for waste storage and collection. Therefore, as the loss of greenfield land/Grade 3 agricultural land cannot be mitigated, a potential significant negative effect is identified.","Yes","Policy BNE1 Design Excellence will require developments to provide adequate space for waste storage and collection.","Loss of greenfield land and Grade 3 agricultural land cannot be mitigated.",null,null,null,null,{"$f":"MATCH($C$1,#REF!, 0)","v":{"$error":"#REF!"}}]
["S012 Pollution\nTo minimise water, air, light and noise pollution and ensure that future growth does not lead to the further deterioration of environmental conditions.","S012","· Will it contribute to improvements in water quality in the District?\n· Will it avoid increasing noise levels locally or introducing incompatible uses into an already noisy location?\n· Will it avoid deterioration in air quality within the District?\n· Will it avoid exacerbating light pollution by keeping external lighting to the minimum required for safety and security?","Yes",{"$f":"COUNTIFS(INDIRECT(\"RAG!$C$\"&$V23&\":$AX$\"&$V23),E$11,#REF!,$B23)","v":{"$error":"#REF!"}},{"$f":"COUNTIFS(INDIRECT(\"RAG!$C$\"&$V23&\":$AX$\"&$V23),F$11,#REF!,$B23)","v":{"$error":"#REF!"}},{"$f":"COUNTIFS(INDIRECT(\"RAG!$C$\"&$V23&\":$AX$\"&$V23),G$11,#REF!,$B23)","v":{"$error":"#REF!"}},"N/A","N/A","N/A","N/A","N/A","Uncertain","The site currently experiences high noise pollution and some light pollution. It is likely that development at this scale will increase both noise and light pollution. The A50 is located adjacent to the site so the site is currently exposed to some air pollution. It is likely that development at this scale will increase air pollution in South Derbyshire, as well as in Derby City as residents may commute into the city for work. The site does not lie within the River Mease nutrient neutrality zone or any groundwater protection zones. The site should be required to implement noise and light mitigation measures, although it is not clear whether all potential effects can be minimised through mitigation. Therefore, an uncertain effect is identified.","Yes",null,"The site should be required to implement noise and light mitigation measures.",null,null,null,null,{"$f":"MATCH($C$1,#REF!, 0)","v":{"$error":"#REF!"}}]
["S013 Contributions to Climate Change \nTo reduce the District’s contribution towards the emission of climate change gases.","S013","· Will it provide opportunities to access local services and facilities by public transport walking or cycling?\n· Will it support the delivery of renewable energy capacity (including small scale or community energy projects)?\n· Will it support the shift toward usage of electric and ultralow emissions vehicles? ","Yes",{"$f":"COUNTIFS(INDIRECT(\"RAG!$C$\"&$V24&\":$AX$\"&$V24),E$11,#REF!,$B24)","v":{"$error":"#REF!"}},{"$f":"COUNTIFS(INDIRECT(\"RAG!$C$\"&$V24&\":$AX$\"&$V24),F$11,#REF!,$B24)","v":{"$error":"#REF!"}},{"$f":"COUNTIFS(INDIRECT(\"RAG!$C$\"&$V24&\":$AX$\"&$V24),G$11,#REF!,$B24)","v":{"$error":"#REF!"}},"N/A","N/A","N/A","N/A","N/A","Neutral","The site is not located near to an existing EV charger, which may discourage residents use of EV vehicles. However, mitigation will be provided by Policy INF2 Sustainable Transport which will require the development to make provision for EV chargers. Finally, the sites location (near to Derby City) may assist in the development of heat networks incorporating new homes, providing low carbon heating for future residents. Therefore, a neutral effect is identified.","No","Policy INF2 Sustainable Transport will require  developments to make provision for EV chargers.",null,"The site should be built to low-carbon standards with high levels of energy efficiency and individual energy generation technologies (e.g.: heat source pumps, solar PV) being be promoted where possible.",null,null,null,{"$f":"MATCH($C$1,#REF!, 0)","v":{"$error":"#REF!"}}]
["S014 Adaptation to Climate Change \nTo manage the effects of climate change including flood risk, reduced water availability and overheating.","S014","· Will it minimise flood risk?\n· Will it include provision of sustainable urban drainage which mimic natural drainage patterns?\n· Will it contribute towards sustainable water use?","Yes",{"$f":"COUNTIFS(INDIRECT(\"RAG!$C$\"&$V25&\":$AX$\"&$V25),E$11,#REF!,$B25)","v":{"$error":"#REF!"}},{"$f":"COUNTIFS(INDIRECT(\"RAG!$C$\"&$V25&\":$AX$\"&$V25),F$11,#REF!,$B25)","v":{"$error":"#REF!"}},{"$f":"COUNTIFS(INDIRECT(\"RAG!$C$\"&$V25&\":$AX$\"&$V25),G$11,#REF!,$B25)","v":{"$error":"#REF!"}},"Direct","Medium","Medium/Long","Localised","Permanent/Irreversible","Minor Negative","The site lies within Flood Zone 3 and within 1000m of a watercourse, which may place development on the site at risk of flooding, which may place development on the site at risk of flooding. However, mitigation will be provided by Policy SD2 Flood Risk which will require the site to incorporate flood risk mitigation, such as SuDs. Although this won't eradicate flood risk, it will reduce the likelihood of a flood risk event taking place. Therefore, as the site is still at risk of flood events following policy mitigation, a potential minor negative effect is identified.","No","Policy SD2 Flood Risk will require developments to incorporate flood risk mitigation, such as SuDs. ",null,null,null,null,null,{"$f":"MATCH($C$1,#REF!, 0)","v":{"$error":"#REF!"}}]
["S015 Townscape and Historic Environment\nTo conserve and enhance the townscape, historic environment, heritage assets (including known and unknown archaeological sites) and their settings. ","S015","· Will it protect and enhance the condition and setting of historic, cultural, architectural and archaeological features in South Derbyshire?\n· Does it improve the quality of the built environment, and respect and protect existing townscape character?\n· Will it improve access to, and understanding of, the District’s historic and cultural assets for enjoyment and educational purposes?","Yes",{"$f":"COUNTIFS(INDIRECT(\"RAG!$C$\"&$V26&\":$AX$\"&$V26),E$11,#REF!,$B26)","v":{"$error":"#REF!"}},{"$f":"COUNTIFS(INDIRECT(\"RAG!$C$\"&$V26&\":$AX$\"&$V26),F$11,#REF!,$B26)","v":{"$error":"#REF!"}},{"$f":"COUNTIFS(INDIRECT(\"RAG!$C$\"&$V26&\":$AX$\"&$V26),G$11,#REF!,$B26)","v":{"$error":"#REF!"}},"Direct","Low","Medium/Long","Localised","Permanent/Irreversible","Significant Positive","The site contributes to the protection and enhancement of the townscape and it's historic environment as it is not within close proximity to any designated heritage assets. Therefore, a potential significant positive effect is identified.","No",null,null,null,null,null,null,{"$f":"MATCH($C$1,#REF!, 0)","v":{"$error":"#REF!"}}]
["S016 Landscape\nTo conserve and enhance the District’s landscape character.","S016","· Does it respect and protect existing landscape character?\n· Will it protect sensitive landscapes including those within the World Heritage Site or its buffer or Special Landscape Areas?\n· Will it safeguard landscape features such as hedgerows?\n· Will it avoid intrusion into the greenbelt?","Yes",{"$f":"COUNTIFS(INDIRECT(\"RAG!$C$\"&$V27&\":$AX$\"&$V27),E$11,#REF!,$B27)","v":{"$error":"#REF!"}},{"$f":"COUNTIFS(INDIRECT(\"RAG!$C$\"&$V27&\":$AX$\"&$V27),F$11,#REF!,$B27)","v":{"$error":"#REF!"}},{"$f":"COUNTIFS(INDIRECT(\"RAG!$C$\"&$V27&\":$AX$\"&$V27),G$11,#REF!,$B27)","v":{"$error":"#REF!"}},"N/A","N/A","N/A","N/A","N/A","Uncertain","The site does not lie within the greenbelt or any areas of multiple environmental sensitivity. However, the development of this site could lead to the 'trapping in' of current green wedges within Derby City, cutting these greenfield land areas off from the surrounding open land. This could alter the current landscape, both within South Derbyshire and Derby City. The site should link to existing green wedges within Derby City where possible, in order to minimise impacts of 'trapping', although it is not clear whether all potential effects can be minimised through mitigation.  Therefore, an uncertain effect is identified.","Yes","Policy BNE4 Landscape Character and Local Distinctiveness will require developments to conserve local distinctiveness, retain landscape features (e.g.: hedgerows) and offset any damage to landscape features.","The site should link to existing green wedges within Derby City, in order to maintain a similar landscape pattern. ",null,null,null,null,{"$f":"MATCH($C$1,#REF!, 0)","v":{"$error":"#REF!"}}]

{"sheet":"Sheet1","index":14,"n_rows":86,"n_cols":12,"rows_kept":86,"cut":false,"hidden":true,"merged":[]}
["Area of search code","Settlement heirarchy","Area of search","LA","Site code","Site name","Potential capacity","Notes","Achieveable? ","Available","Suitable","Allocaed? "]
["C1","DUA","SDDC DUA - west","AVBC","AVBC-2021-0009","Land off Brun Lane, Mackworth",2000,"Assessed at 2000, but promoted capacity of 2250","Y","Y","Y","Y"]
["C1","DUA",null,"AVBC","AVBC-2014-0014","Land off Radbourne Lane, Mackworth",600,null,"Y","Y","Y"]
["C1","DUA",null,"SDDC",252,"Land off Staker Lane, Derby",3657,"Noted that yield could change due to BNG requirements","Y","n - land north of Etwall road is not available","y"]
["C1","DUA",null,"SDDC",155,"Land at Bannell's Lane and Etwall Road, Mickleover",247,"Noted that yield could change due to BNG requirements","y","y","y"]
["C1","DUA",null,"SDDC",123,"Land north of Hospital Lane, Mickleover",234,"Noted that yield could change due to BNG requirements","y","y","y"]
["C1","DUA",null,"SDDC",136,"Land south of Mickleover",3066,"promoted as 1500-2000","y","y","y"]
["C1","DUA",null,"SDDC",221,"Land south of Mickleover",2230,"Noted that yield could change due to BNG requirements","y","y","y"]
["C1","Rural",null,"SDDC",246,"Land on the north side at Etwall Lane Burnaston",104,"Noted that yield could change due to BNG requirements","y","y","y"]
["C1","Rural",null,"SDDC",245,"Land at Etwall Lane Burnaston",34,"Noted that yield could change due to BNG requirements","y","y","y"]
["C1","Rural",null,"SDDC",247,"Land at Elmfield Burnaston",7,"Noted that yield could change due to BNG requirements","y","y","y"]
["C1","Rural",null,"SDDC",218,"Partrap House Etwall",64,"Noted that yield could change due to BNG requirements","y","y","y"]
["C1","DUA",null,"SDDC",158,"Land nto the north of New Buildings Farm Burnaston",846,"Noted that yield could change due to BNG requirements","y","y","y"]
["C1","DUA",null,"SDDC",210,"Land on the west side of Burton Road Burnaston",238,"Noted that yield could change due to BNG requirements","y","y","y"]
["C1","DUA",null,"SDDC",84,"Lnad west of Skater Lane Mickleover (Micklemeadow Farm)",399,"Noted that yield could change due to BNG requirements","y","y","y"]
["C1","DUA",null,"SDDC",159,"New Rnage Farm Burnaston",352,"Noted that yield could change due to BNG requirements","y","y","y"]
["C1","DUA",null,"SDDC",190,"Land adjacent to Fourways, Little Derby Hill Burnaston",1,"Site would need further investigation for residential development; bungalow dwelling refused in 2014, proposed for office space uses. ","y","y","y"]
["C2","Rural","A50 rural ","SDDC",214,"Land north of DC2 Woodyard Lane",0,"Not a residential site","y","y"]
["C2","Rural",null,"SDDC",24,"Land south of Uttoxeter Road Foston",137,"Also a general warehouse and industrial site - need to clarify position","y","y","y"]
["C2","Rural",null,"SDDC",253,"Land to the east of Dove Valley Park",0,"Not resi - for industrial"]
["C2","Key service village",null,"SDDC",201,"Hatton Hall Hatton",121,"Promoted at 150 dwellings","y","y","y"]
["D1","Key service village","Hilton Outskirts","SDDC",227,"Sutton Lane Hilton",138,null,"y","y","y"]
["D1","Key service village",null,"SDDC",32,"Land at Derby Road Hilton",94,"Assessed as resi, or mixed use or emp site. SHELAA assessed number used here, but promoted at 130","y","y","y"]
["D1","Key service village",null,"SDDC",150,"Talbot Farm 75 Derby Road Hilton",0,"Not resi - for industrial"]
["D1","Key service village",null,"SDDC",65,"Land north of Derby Road Hilton",41,null,"y","y","y"]
["D1","Key service village",null,"SDDC",64,"Land at Lucas Lane Hilton",42,"promoted as 57","y","y","y"]
["D1","Key service village",null,"SDDC",163,"Land north of Egginton Road and east of Lucas Lane Holton",822,null,"y","y","y"]
["D1","Key service village",null,"SDDC",202,"Egginton Road Hilton",232,"Site not entirely wihtin area of search- around 30% in it","y","y","y"]
["D2","Local Service village","Willington outskirts","SDDC",162,"Land north east of the A38 A50 Toyota junction Findern",590,"Noted that yield could change due to BNG requirements","y","y","y"]
["D2","Key service village",null,"SDDC",96,"Axis 50 Willington",0,"Not a residential site"]
["D2","Key service village",null,"SDDC",35,"Land east of Etwall Road Willington",329,"Noted that yield could change due to BNG requirements","y","y","y"]
["D2","Key service village",null,"SDDC",114,"Land at mercia Marine 1 Findern Lane Willington",48,"Noted that yield could change due to BNG requirements","y","y","y"]
["D2","Key service village",null,"SDDC",113,"Land to north of the Castle Way Willington",52,"Noted that yield could change due to BNG requirements","y","y","y"]
["D2","Key service village",null,"SDDC",106,"Land off Etwall Road Willington",305,"Noted that yield could change due to BNG requirements","y","y","y"]
["D2","Key service village",null,"SDDC",37,"Land South of the Castle Way Willington Part 1",29,"Noted that yield could change due to BNG requirements","y","y","y"]
["D2","Key service village",null,"SDDC",38,"Land South of the Castle Wat Willington Part 2",29,"Noted that yield could change due to BNG requirements","y","y","y"]
["D2","Key service village",null,"SDDC",233,"Castleway Willington",31,"Noted that yield could change due to BNG requirements","y","y","y"]
["D2","Key service village",null,"SDDC",115,"land at Mercia Marine Findern Lane Willington",0,"Proposed for assisted living and age restricted housing","y","y"]
["D2","Key service village",null,"SDDC",117,"Land at Mercia marine Findern Lane Willington",0,"No resitdential development proposed - office, retail, catering","y","y"]
["D2","Key service village",null,"SDDC",116,"Land at Mercia Marina Findern Lane Willington",0,"no residential - leisure and tourism use"]
["D2","Key service village",null,"SDDC",138,"Willington Power Station",1532,"Noted that yield could change due to BNG requirements","y","y","y"]
["D3","DUA","SDDC DUA - south","SDDC",139,"Land to east and west of Stenson Road",407,"promoted proposed yield 480-560 dwellings","y","y","y"]
["D3","DUA",null,"SDDC",90,"Infinity Garden Village land between Sinfin and Chellaston",4000,"Noted that yield could change due to BNG requirements","y","y","y"]
["D3","DUA",null,"SDDC",225,"Arleston Farm Barrow",96,"Noted that yield could change due to BNG requirements","y","y","y"]
["D3","DUA",null,"SDDC",131,"Former Derby Canal Swarkestone",0,"No residential - Canal and multiuser path"]
["D3","DUA",null,"SDDC",57,"land north west of Swarkestone Road Chellaston",0,"No residential - office, research and developments and light industrial"]
["D3","DUA",null,"SDDC",55,"East of Swarkestone Road Chellaston",0,"No residential - office, research and developments and light industrial"]
["D3","DUA",null,"SDDC",61,"Land to the East side of Swardestone Road, Spring Farm Chellaston",0,"No residential - office, research and developments and light industrial"]
["D3","Rural area/DUA",null,"SDDC",46,"Thulstone Fields",2138,"Promoted proposeld yield of 1750","y","y"]
["D3","Key service village",null,"SDDC",80,"Land to the north of Chellastone Lane Aston on Trent",106,"promoted as 100","y","y","y"]
["D3","Key service village",null,"SDDC",107,"Land off Weston Road Aston on Trent",195,"promoted as 100-200","y","y","y"]
["D3",null,null,"SDDC"]
["E1","Rural","Lilypool and surrounding areas","SDDC",105,"Land east of Kings Newton",749,"promoted as 900","y","y","y"]
["E1","Rural",null,"SDDC",207,"Land north of Blackwell Lane Melbourne",580,"promoted as 500","y","y","y"]
["E1","Rural",null,"SDDC",98,"Land south of Station Road Melbourne",120,"promoted as 160","y","y","y"]
["E1","Rural",null,"SDDC",13,"Land off Main Street Kings Newton",22,"promoted as 9","y","y","y"]
["E1","Rural",null,"SDDC",238,"Main Street Kings Netwon",95,null,"y","y","y"]
["E1","Rural",null,"SDDC",17,"Land north and south of Jawbone Lane Melbourne",103,null,"y","y","y"]
["E1","Rural",null,"SDDC",19,"Land north of Jawbone Lane Melbourne",23,"promoted as 8 site","y","y","y"]
["E1","Rural",null,"SDDC",78,"Land at Main Street Melbourne",91,"91 ntoed as a max figure; promoted as 95 dwellings","y","y","y"]
["E1","Rural",null,"SDDC",79,"Land at Main Street Melbourne",44,"44 noted as a max figure; promoted as 42","y","y","y"]
["E1","Rural",null,"SDDC",168,"Kings Newton Lane Part 2 Kings Newton",34,"site only partially within area of search","y","y","y"]
["E1","Rural",null,"SDDC",87,"Land north of Blackwell Lane Melbourne",72,null,"y","y","y"]
["E1",null,null,"SDDC"]
["E2","Urban area/rural","Burton upon Trent extension","SDDC",52,"Land at Newton Road Newton Solney",144,"promoted as 85","y","y","y"]
["E2","Urban area/rural",null,"SDDC",147,"Land off Newton Road Newton Solney",57,"promoted as 47","y","y","y"]
["E2","Urban area/rural",null,"SDDC",86,"Land at Sales Lane Burton",266,"promoted as 150","y","y","y"]
["E2","Urban area/rural",null,"SDDC",14,"Land off Ashby Road East Bretby",65,"promoted as 70","y","y","n - located in GB"]
["E2","Urban area/rural",null,"SDDC",93,"Land south of Ashby Road East Burton upon Trent",1647,"promoted as 1800","y","y","n - located in GB"]
["E3","Urban area/rural","Swadlincote extension - west","SDDC",184,"Site D north of William Nadin Way Woodview Road Swadlincote",236,"promoted as 150","y","y","y"]
["E3","Urban area/rural",null,"SDDC",250,"Land at Cadley Park",0,"Not resi - offices and leisure centre"]
["E3","Urban area/rural",null,"SDDC",241,"Land at Woodland Road Stanton",28,"promoted as 30-50","y","y","n - a number of crieteria requiring mitigation"]
["E3","Urban area/rural",null,"SDDC",243,"Land at 42 Woodland Road Stanton",38,null,"y","y","n - located in GB"]
["E3","Urban area/rural",null,"SDDC",195,"Land at Cadley Lane Castle Gresley",569,"mixed use site - light industrial and/or general industrial to accompany","y","y","y"]
["E3","Urban area/rural",null,"SDDC",6,"Land West of Burton Road Castle Gresley",566,"promoted as 500-550","y","y","y"]
["E3","Urban area/rural",null,"SDDC",132,"Land south of Cadley Hill Industrial Estate Swadlincote",107,"promoted as 80-100","y","y","y"]
["E3","Urban area/rural",null,"SDDC",213,"Swadlincote Lane Castle Gresley",170,"promoted as 200","y","y","y"]
["E3","Urban area/rural",null,"SDDC",236,"Sandcliffe Road Swadlincote (phase 1)",null,"inlcuded in 45 footprint? 180 dwellings","y","y","y"]
["E4","Urban area/rural","Swadlincote extension - east","SDDC",45,"Sandcliffe Road Swadlincote",834,"promoted as 500; includes site 236? ","y","y","y"]
["E4","Urban area/rural",null,"SDDC",39,"Between Hartshorne and Woodville (Goseley Estate)",1017,"broken up into several sites? ","y","y","y"]
["E4","Urban area/rural",null,"SDDC",177,"Land at Bretby View",35,null,"y","y","y"]
["E4","Urban area/rural",null,"SDDC",34,"Land at Ashby Road Woodville",50,"promoted as 45 dwellings","y","y","? - site within River Mease SAC, further investigation required"]
["E4","Urban area/rural",null,"SDDC"]
["E5","Rural village","Simsby outskirts","SDDC",0]
["F1","Rural village","Walton-on-Trent extension","SDDC",211,"Former Draklelow Power Station",0,"renewable energy centre proposal"]
["F1","Rural village",null,"SDDC",72,"Land east of Walton on Trent",2239,"promoted as 2230","y","y","y"]